Workbook

Sheet Généralités
B1: Fiche architecturale | D1: Version CTIE
B3: OTP MINISTERE DU LOGEMENT
B4: Gestionnaire | D4: à sélectionner
B6: date: xx/xx/202x | D6: Généralités
B8: Promoteur social
B9: Commune
B10: Lieu-dit
B11: Initulé du projet
B12: Sous-projet/ référence du Promoteur social
B13: Descriptif sommaire
B16: Immeubles collectifs
B17: Maisons
B18: STADE du projet:

Sheet maison(s)
E2: Maisons
A5: Récapitulatif | E5: Unités | V5: Typologies | AB5: Surfaces | AM5: Chambres à coucher | CL5: Organisation interne | DR5: Emplacements privés
O7: CPE bien existant | R7: CPE du projet
E9: n° lot (selon plan) | F9: surface terrains (ares) | G9: année de construction | H9: n° de la parcelle cadastrale | I9: numéro de rue | J9: nom de la rue | K9: code postal | L9: localité | M9: bailleur social | N9: destination du logement (vente / location) | O9: Classe de performance énergétique | P9: Classe d'isolation thermique | Q9: Classe de performance environnementale | R9: Classe de performance énergétique | S9: Classe d'isolation thermique | T9: Classe de performance environnementale | V9: adapté PMR | W9: logement collectif (hébergements) | X9: type de logement | Y9: affectation du logement | Z9: typologie logement | AB9: [SUH] m2 logement | AD9: [SUH maximale] m2 CDC logement | AE9: RATIOS | AH9: [SCB] théorique du lot | AJ9: [SCB_log] m2 | AK9: [SNA_log] m2 | AM9: Typologie | AN9: ch 01 m2 | AO9: Typologie | AP9: ch 02 m2 | AQ9: Typologie | AR9: ch 03 m2 | AS9: Typologie | AT9: ch 04 m2 | AU9: Typologie | AV9: ch 05 m2 | AW9: Typologie | AX9: ch 06 m2 | AY9: Typologie | AZ9: ch 07 m2 | BA9: Typologie | BB9: ch 08 m2 | BC9: Typologie | BD9: ch 09 m2 | BE9: Typologie | BF9: ch 10 m2 | BG9: Typologie | BH9: ch 11 m2 | BI9: Typologie | BJ9: ch 12 m2 | BK9: Typologie | BL9: ch 13 m2 | BM9: Typologie | BN9: ch 14 m2 | BO9: Typologie | BP9: ch 15 m2 | BQ9: Typologie | BR9: ch 16 m2 | BS9: Typologie | BT9: ch 17 m2 | BU9: Typologie | BV9: ch 18 m2 | BW9: Typologie | BX9: ch 19 m2 | BY9: Typologie | BZ9: ch 20 m2 | CA9: Typologie | CB9: ch 21 m2 | CC9: Typologie | CD9: ch 22 m2 | CE9: Typologie | CF9: ch 23 m2 | CG9: Typologie | CH9: ch 24 m2 | CI9: Typologie | CJ9: ch 25 m2 | CL9: débarras/ local technique | CM9: niche vestiaire | CN9: buanderie | CO9: cave privative | CP9: n° cadastrale cave | CQ9: grenier | CR9: n° cadastrale grenier | CY9: espace extérieur privatif | CZ9: Pièce d'eau 1 | DA9: Pièce d'eau 2 | DB9: Pièce d'eau 3 | DC9: Pièce d'eau 4 | DN9: cuisine (si logement locatif) | DO9: local rangement/ stockage type abris de jardin | DP9: local vélos avec 1 empl. vélo/ chambre | DR9: Σ nombre d'emplacements par maison | DT9: numéro unité selon plan 1 | DU9: n° cadastre emplacement 1 | DV9: type d'emplacement 1 | DX9: numéro unité selon plan 2 | DY9: n° cadastre emplacement 2 | DZ9: type d'emplacement 2 | EB9: numéro unité selon plan 3 | EC9: n° cadastre emplacement 3 | ED9: type d'emplacement 3 | EF9: numéro unité selon plan 4 | EG9: n° cadastre emplacement 4 | EH9: type d'emplacement 4 | EJ9: numéro unité selon plan 5 | EK9: n° cadastre emplacement 5 | EL9: type d'emplacement 5 | EN9: numéro unité selon plan 6 | EO9: n° cadastre emplacement 6 | EP9: type d'emplacement 6 | ER9: numéro unité selon plan 7 | ES9: n° cadastre emplacement 7 | ET9: type d'emplacement 7 | EV9: numéro unité selon plan 8 | EW9: n° cadastre emplacement 8 | EX9: type d'emplacement 8 | EZ9: numéro unité selon plan 9 | FA9: n° cadastre emplacement 9 | FB9: type d'emplacement 9 | FD9: numéro unité selon plan 10 | FE9: n° cadastre emplacement 10 | FF9: type d'emplacement 10 | FH9: numéro unité selon plan 11 | FI9: n° cadastre emplacement 11 | FJ9: type d'emplacement 11 | FL9: numéro unité selon plan 12 | FM9: n° cadastre emplacement 12 | FN9: type d'emplacement 12 | FP9: numéro unité selon plan 13 | FQ9: n° cadastre emplacement 13 | FR9: type d'emplacement 13 | FT9: numéro unité selon plan 14 | FU9: n° cadastre emplacement 14 | FV9: type d'emplacement 14 | FX9: numéro unité selon plan 15 | FY9: n° cadastre emplacement 15 | FZ9: type d'emplacement 15 | GB9: numéro unité selon plan 16 | GC9: n° cadastre emplacement 16 | GD9: type d'emplacement 16 | GF9: numéro unité selon plan 17 | GG9: n° cadastre emplacement 17 | GH9: type d'emplacement 17 | GJ9: numéro unité selon plan 18 | GK9: n° cadastre emplacement 18 | GL9: type d'emplacement 18 | GN9: numéro unité selon plan 19 | GO9: n° cadastre emplacement 19 | GP9: type d'emplacement 19 | GR9: numéro unité selon plan 20 | GS9: n° cadastre emplacement 20 | GT9: type d'emplacement 20
A10: Σ logements (MU et logements intégrés) | B10: =COUNTA(E10:E60) -> 0 | AF10: [m2]
AD11: =IF(OR(V11="", W11=""), "", IF(AND(V11="non", W11="non"), SUMIFS( Table5[SUH max],Table5[Type], Z11), IF(AND(V11="oui", W11="non"), SUMIFS( Table5[SUH max], Table5[Type], Z11) * 1.1, IF(AND(V11="non", W11="oui"), VLOOKUP(Z11, data!$P$22:$S$54, 3, FALSE), IF(AND(V11="oui", W11="oui"), VLOOKUP(Z11, data!$V$22:$Y$54, 3, FALSE), "" ) ) ) ) ) ->  | AE11: Σ [SUH] max CDC | AF11: =SUM(AD10:AD60) -> 0
A12: Σ emplacements privés | B12: =SUM(DR10:DR60) -> 0 | AD12: =IF(OR(V12="", W12=""), "", IF(AND(V12="non", W12="non"), SUMIFS( Table5[SUH max],Table5[Type], Z12), IF(AND(V12="oui", W12="non"), SUMIFS( Table5[SUH max], Table5[Type], Z12) * 1.1, IF(AND(V12="non", W12="oui"), VLOOKUP(Z12, data!$P$22:$S$54, 3, FALSE), IF(AND(V12="oui", W12="oui"), VLOOKUP(Z12, data!$V$22:$Y$54, 3, FALSE), "" ) ) ) ) ) ->  | AE12: Σ [SUH] | AF12: =SUM(AB10:AB60) -> 0
AD13: =IF(OR(V13="", W13=""), "", IF(AND(V13="non", W13="non"), SUMIFS( Table5[SUH max],Table5[Type], Z13), IF(AND(V13="oui", W13="non"), SUMIFS( Table5[SUH max], Table5[Type], Z13) * 1.1, IF(AND(V13="non", W13="oui"), VLOOKUP(Z13, data!$P$22:$S$54, 3, FALSE), IF(AND(V13="oui", W13="oui"), VLOOKUP(Z13, data!$V$22:$Y$54, 3, FALSE), "" ) ) ) ) ) ->  | AE13: Σ [SUH] + autres surfaces | AF13: =AF12+'autres surfaces'!L12 -> 0
AD14: =IF(OR(V14="", W14=""), "", IF(AND(V14="non", W14="non"), SUMIFS( Table5[SUH max],Table5[Type], Z14), IF(AND(V14="oui", W14="non"), SUMIFS( Table5[SUH max], Table5[Type], Z14) * 1.1, IF(AND(V14="non", W14="oui"), VLOOKUP(Z14, data!$P$22:$S$54, 3, FALSE), IF(AND(V14="oui", W14="oui"), VLOOKUP(Z14, data!$V$22:$Y$54, 3, FALSE), "" ) ) ) ) ) ->  | AE14: Σ [SCB_log] | AF14: =SUM(AJ10:AJ60) -> 0
A15: Logement(s) avec 2 chambres | B15: =IFERROR(SUM(COUNTIF(Z10:Z60,{"2.2";"2.3";"2.4"}))/B10,0) -> 0 | C15: =IFERROR(SUM(COUNTIF(Z10:Z60,{"2.2";"2.3";"2.4"})),0) -> 0 | AD15: =IF(OR(V15="", W15=""), "", IF(AND(V15="non", W15="non"), SUMIFS( Table5[SUH max],Table5[Type], Z15), IF(AND(V15="oui", W15="non"), SUMIFS( Table5[SUH max], Table5[Type], Z15) * 1.1, IF(AND(V15="non", W15="oui"), VLOOKUP(Z15, data!$P$22:$S$54, 3, FALSE), IF(AND(V15="oui", W15="oui"), VLOOKUP(Z15, data!$V$22:$Y$54, 3, FALSE), "" ) ) ) ) ) ->  | AE15: Σ [SNA_log] | AF15: =SUM(AK10:AK60) -> 0
A16: 3 chambres | B16: =IFERROR(SUM(COUNTIF(Z10:Z60,{"3.3";"3.4";"3.5";"3.6"}))/B10,0) -> 0 | C16: =IFERROR(SUM(COUNTIF(Z10:Z60,{"3.3";"3.4";"3.5";"3.6"})),0) -> 0 | AD16: =IF(OR(V16="", W16=""), "", IF(AND(V16="non", W16="non"), SUMIFS( Table5[SUH max],Table5[Type], Z16), IF(AND(V16="oui", W16="non"), SUMIFS( Table5[SUH max], Table5[Type], Z16) * 1.1, IF(AND(V16="non", W16="oui"), VLOOKUP(Z16, data!$P$22:$S$54, 3, FALSE), IF(AND(V16="oui", W16="oui"), VLOOKUP(Z16, data!$V$22:$Y$54, 3, FALSE), "" ) ) ) ) ) ->  | AE16: % logement | AF16: =IFERROR(AF12/AF13,0) -> 0
A17: 4 chambres | B17: =IFERROR(SUM(COUNTIF(Z10:Z60,{"4.4";"4.5";"4.6";"4.7";"4.8"}))/B10,0) -> 0 | C17: =IFERROR(SUM(COUNTIF(Z10:Z60,{"4.4";"4.5";"4.6";"4.7";"4.8"})),0) -> 0 | AD17: =IF(OR(V17="", W17=""), "", IF(AND(V17="non", W17="non"), SUMIFS( Table5[SUH max],Table5[Type], Z17), IF(AND(V17="oui", W17="non"), SUMIFS( Table5[SUH max], Table5[Type], Z17) * 1.1, IF(AND(V17="non", W17="oui"), VLOOKUP(Z17, data!$P$22:$S$54, 3, FALSE), IF(AND(V17="oui", W17="oui"), VLOOKUP(Z17, data!$V$22:$Y$54, 3, FALSE), "" ) ) ) ) ) ->  | AE17: Σ [SUH]/ Σ [SCB_log] | AF17: =IFERROR(AF12/AF14,"") -> 
A18: 5 chambres | B18: =IFERROR(SUM(COUNTIF(Z10:Z60,{"5.5";"5.6";"5.7";"5.8";"5.9";"5.10"}))/B10,0) -> 0 | C18: =IFERROR(SUM(COUNTIF(Z10:Z60,{"5.5";"5.6";"5.7";"5.8";"5.9";"5.10"})),0) -> 0 | AD18: =IF(OR(V18="", W18=""), "", IF(AND(V18="non", W18="non"), SUMIFS( Table5[SUH max],Table5[Type], Z18), IF(AND(V18="oui", W18="non"), SUMIFS( Table5[SUH max], Table5[Type], Z18) * 1.1, IF(AND(V18="non", W18="oui"), VLOOKUP(Z18, data!$P$22:$S$54, 3, FALSE), IF(AND(V18="oui", W18="oui"), VLOOKUP(Z18, data!$V$22:$Y$54, 3, FALSE), "" ) ) ) ) ) ->  | AE18: Σ [SNA_log]/ Σ [SCB_log] | AF18: =IFERROR(AF15/AF14,"") -> 
A19: 6+ chambres | B19: =IFERROR(SUM(COUNTIF(Z10:Z60,{"6.6";"6.7";"6.8";"6.9";"6.10";"6.11";"6.12";"7.7";"7.8";"7.9";"7.10";"7.11";"7.12";"7.13";"7.14";"8.8";"8.10";"8.12";"9.9";"9.13";"9.15";"10.10";"10.14";"10.18";"15.15";"15.20";"15.25";"20.20";"20.25";"20.30"}))/B10,0) -> 0 | C19: =IFERROR(SUM(COUNTIF(Z10:Z60,{"6.6";"6.7";"6.8";"6.9";"6.10";"6.11";"6.12";"7.7";"7.8";"7.9";"7.10";"7.11";"7.12";"7.13";"7.14";"8.8";"8.10";"8.12";"9.9";"9.13";"9.15";"10.10";"10.14";"10.18";"15.15";"15.20";"15.25";"20.20";"20.25";"20.30"})),0) -> 0 | AD19: =IF(OR(V19="", W19=""), "", IF(AND(V19="non", W19="non"), SUMIFS( Table5[SUH max],Table5[Type], Z19), IF(AND(V19="oui", W19="non"), SUMIFS( Table5[SUH max], Table5[Type], Z19) * 1.1, IF(AND(V19="non", W19="oui"), VLOOKUP(Z19, data!$P$22:$S$54, 3, FALSE), IF(AND(V19="oui", W19="oui"), VLOOKUP(Z19, data!$V$22:$Y$54, 3, FALSE), "" ) ) ) ) ) -> 
A20: Logements intégrés | B20: =COUNTIF(X9:X60,"logement intégré") -> 0 | AD20: =IF(OR(V20="", W20=""), "", IF(AND(V20="non", W20="non"), SUMIFS( Table5[SUH max],Table5[Type], Z20), IF(AND(V20="oui", W20="non"), SUMIFS( Table5[SUH max], Table5[Type], Z20) * 1.1, IF(AND(V20="non", W20="oui"), VLOOKUP(Z20, data!$P$22:$S$54, 3, FALSE), IF(AND(V20="oui", W20="oui"), VLOOKUP(Z20, data!$V$22:$Y$54, 3, FALSE), "" ) ) ) ) ) -> 
AD21: =IF(OR(V21="", W21=""), "", IF(AND(V21="non", W21="non"), SUMIFS( Table5[SUH max],Table5[Type], Z21), IF(AND(V21="oui", W21="non"), SUMIFS( Table5[SUH max], Table5[Type], Z21) * 1.1, IF(AND(V21="non", W21="oui"), VLOOKUP(Z21, data!$P$22:$S$54, 3, FALSE), IF(AND(V21="oui", W21="oui"), VLOOKUP(Z21, data!$V$22:$Y$54, 3, FALSE), "" ) ) ) ) ) ->  | AE21: surfaces consolidées minimisées --> och bei den logements collectif ergänzen (case réservé au MLOGAT)
A22: Logements adaptés PMR | B22: =COUNTIF(V10:V60,"oui") -> 0 | AD22: =IF(OR(V22="", W22=""), "", IF(AND(V22="non", W22="non"), SUMIFS( Table5[SUH max],Table5[Type], Z22), IF(AND(V22="oui", W22="non"), SUMIFS( Table5[SUH max], Table5[Type], Z22) * 1.1, IF(AND(V22="non", W22="oui"), VLOOKUP(Z22, data!$P$22:$S$54, 3, FALSE), IF(AND(V22="oui", W22="oui"), VLOOKUP(Z22, data!$V$22:$Y$54, 3, FALSE), "" ) ) ) ) ) -> 
AD23: =IF(OR(V23="", W23=""), "", IF(AND(V23="non", W23="non"), SUMIFS( Table5[SUH max],Table5[Type], Z23), IF(AND(V23="oui", W23="non"), SUMIFS( Table5[SUH max], Table5[Type], Z23) * 1.1, IF(AND(V23="non", W23="oui"), VLOOKUP(Z23, data!$P$22:$S$54, 3, FALSE), IF(AND(V23="oui", W23="oui"), VLOOKUP(Z23, data!$V$22:$Y$54, 3, FALSE), "" ) ) ) ) ) -> 
A24: Location abordable | B24: =COUNTIF(N10:N60,"location abordable") -> 0 | AD24: =IF(OR(V24="", W24=""), "", IF(AND(V24="non", W24="non"), SUMIFS( Table5[SUH max],Table5[Type], Z24), IF(AND(V24="oui", W24="non"), SUMIFS( Table5[SUH max], Table5[Type], Z24) * 1.1, IF(AND(V24="non", W24="oui"), VLOOKUP(Z24, data!$P$22:$S$54, 3, FALSE), IF(AND(V24="oui", W24="oui"), VLOOKUP(Z24, data!$V$22:$Y$54, 3, FALSE), "" ) ) ) ) ) -> 
A25: Vente à coût modéré | B25: =COUNTIF(N10:N60,"vente à coût modéré") -> 0 | AD25: =IF(OR(V25="", W25=""), "", IF(AND(V25="non", W25="non"), SUMIFS( Table5[SUH max],Table5[Type], Z25), IF(AND(V25="oui", W25="non"), SUMIFS( Table5[SUH max], Table5[Type], Z25) * 1.1, IF(AND(V25="non", W25="oui"), VLOOKUP(Z25, data!$P$22:$S$54, 3, FALSE), IF(AND(V25="oui", W25="oui"), VLOOKUP(Z25, data!$V$22:$Y$54, 3, FALSE), "" ) ) ) ) ) -> 
A26: Vente abordable | B26: =COUNTIF(N10:N60,"vente abordable") -> 0 | AD26: =IF(OR(V26="", W26=""), "", IF(AND(V26="non", W26="non"), SUMIFS( Table5[SUH max],Table5[Type], Z26), IF(AND(V26="oui", W26="non"), SUMIFS( Table5[SUH max], Table5[Type], Z26) * 1.1, IF(AND(V26="non", W26="oui"), VLOOKUP(Z26, data!$P$22:$S$54, 3, FALSE), IF(AND(V26="oui", W26="oui"), VLOOKUP(Z26, data!$V$22:$Y$54, 3, FALSE), "" ) ) ) ) ) -> 
AD27: =IF(OR(V27="", W27=""), "", IF(AND(V27="non", W27="non"), SUMIFS( Table5[SUH max],Table5[Type], Z27), IF(AND(V27="oui", W27="non"), SUMIFS( Table5[SUH max], Table5[Type], Z27) * 1.1, IF(AND(V27="non", W27="oui"), VLOOKUP(Z27, data!$P$22:$S$54, 3, FALSE), IF(AND(V27="oui", W27="oui"), VLOOKUP(Z27, data!$V$22:$Y$54, 3, FALSE), "" ) ) ) ) ) -> 
A28: Ratio vente abordable | B28: =IFERROR(B26/SUM(B25:B26),"") ->  | AD28: =IF(OR(V28="", W28=""), "", IF(AND(V28="non", W28="non"), SUMIFS( Table5[SUH max],Table5[Type], Z28), IF(AND(V28="oui", W28="non"), SUMIFS( Table5[SUH max], Table5[Type], Z28) * 1.1, IF(AND(V28="non", W28="oui"), VLOOKUP(Z28, data!$P$22:$S$54, 3, FALSE), IF(AND(V28="oui", W28="oui"), VLOOKUP(Z28, data!$V$22:$Y$54, 3, FALSE), "" ) ) ) ) ) -> 
AD29: =IF(OR(V29="", W29=""), "", IF(AND(V29="non", W29="non"), SUMIFS( Table5[SUH max],Table5[Type], Z29), IF(AND(V29="oui", W29="non"), SUMIFS( Table5[SUH max], Table5[Type], Z29) * 1.1, IF(AND(V29="non", W29="oui"), VLOOKUP(Z29, data!$P$22:$S$54, 3, FALSE), IF(AND(V29="oui", W29="oui"), VLOOKUP(Z29, data!$V$22:$Y$54, 3, FALSE), "" ) ) ) ) ) -> 
A30: Σ surfaces terrains | B30: =SUM(F10:F60) -> 0 | AD30: =IF(OR(V30="", W30=""), "", IF(AND(V30="non", W30="non"), SUMIFS( Table5[SUH max],Table5[Type], Z30), IF(AND(V30="oui", W30="non"), SUMIFS( Table5[SUH max], Table5[Type], Z30) * 1.1, IF(AND(V30="non", W30="oui"), VLOOKUP(Z30, data!$P$22:$S$54, 3, FALSE), IF(AND(V30="oui", W30="oui"), VLOOKUP(Z30, data!$V$22:$Y$54, 3, FALSE), "" ) ) ) ) ) -> 
AD31: =IF(OR(V31="", W31=""), "", IF(AND(V31="non", W31="non"), SUMIFS( Table5[SUH max],Table5[Type], Z31), IF(AND(V31="oui", W31="non"), SUMIFS( Table5[SUH max], Table5[Type], Z31) * 1.1, IF(AND(V31="non", W31="oui"), VLOOKUP(Z31, data!$P$22:$S$54, 3, FALSE), IF(AND(V31="oui", W31="oui"), VLOOKUP(Z31, data!$V$22:$Y$54, 3, FALSE), "" ) ) ) ) ) -> 
AD32: =IF(OR(V32="", W32=""), "", IF(AND(V32="non", W32="non"), SUMIFS( Table5[SUH max],Table5[Type], Z32), IF(AND(V32="oui", W32="non"), SUMIFS( Table5[SUH max], Table5[Type], Z32) * 1.1, IF(AND(V32="non", W32="oui"), VLOOKUP(Z32, data!$P$22:$S$54, 3, FALSE), IF(AND(V32="oui", W32="oui"), VLOOKUP(Z32, data!$V$22:$Y$54, 3, FALSE), "" ) ) ) ) ) -> 
AD33: =IF(OR(V33="", W33=""), "", IF(AND(V33="non", W33="non"), SUMIFS( Table5[SUH max],Table5[Type], Z33), IF(AND(V33="oui", W33="non"), SUMIFS( Table5[SUH max], Table5[Type], Z33) * 1.1, IF(AND(V33="non", W33="oui"), VLOOKUP(Z33, data!$P$22:$S$54, 3, FALSE), IF(AND(V33="oui", W33="oui"), VLOOKUP(Z33, data!$V$22:$Y$54, 3, FALSE), "" ) ) ) ) ) -> 
AD34: =IF(OR(V34="", W34=""), "", IF(AND(V34="non", W34="non"), SUMIFS( Table5[SUH max],Table5[Type], Z34), IF(AND(V34="oui", W34="non"), SUMIFS( Table5[SUH max], Table5[Type], Z34) * 1.1, IF(AND(V34="non", W34="oui"), VLOOKUP(Z34, data!$P$22:$S$54, 3, FALSE), IF(AND(V34="oui", W34="oui"), VLOOKUP(Z34, data!$V$22:$Y$54, 3, FALSE), "" ) ) ) ) ) -> 
AD35: =IF(OR(V35="", W35=""), "", IF(AND(V35="non", W35="non"), SUMIFS( Table5[SUH max],Table5[Type], Z35), IF(AND(V35="oui", W35="non"), SUMIFS( Table5[SUH max], Table5[Type], Z35) * 1.1, IF(AND(V35="non", W35="oui"), VLOOKUP(Z35, data!$P$22:$S$54, 3, FALSE), IF(AND(V35="oui", W35="oui"), VLOOKUP(Z35, data!$V$22:$Y$54, 3, FALSE), "" ) ) ) ) ) -> 
AD36: =IF(OR(V36="", W36=""), "", IF(AND(V36="non", W36="non"), SUMIFS( Table5[SUH max],Table5[Type], Z36), IF(AND(V36="oui", W36="non"), SUMIFS( Table5[SUH max], Table5[Type], Z36) * 1.1, IF(AND(V36="non", W36="oui"), VLOOKUP(Z36, data!$P$22:$S$54, 3, FALSE), IF(AND(V36="oui", W36="oui"), VLOOKUP(Z36, data!$V$22:$Y$54, 3, FALSE), "" ) ) ) ) ) -> 
AD37: =IF(OR(V37="", W37=""), "", IF(AND(V37="non", W37="non"), SUMIFS( Table5[SUH max],Table5[Type], Z37), IF(AND(V37="oui", W37="non"), SUMIFS( Table5[SUH max], Table5[Type], Z37) * 1.1, IF(AND(V37="non", W37="oui"), VLOOKUP(Z37, data!$P$22:$S$54, 3, FALSE), IF(AND(V37="oui", W37="oui"), VLOOKUP(Z37, data!$V$22:$Y$54, 3, FALSE), "" ) ) ) ) ) -> 
AD38: =IF(OR(V38="", W38=""), "", IF(AND(V38="non", W38="non"), SUMIFS( Table5[SUH max],Table5[Type], Z38), IF(AND(V38="oui", W38="non"), SUMIFS( Table5[SUH max], Table5[Type], Z38) * 1.1, IF(AND(V38="non", W38="oui"), VLOOKUP(Z38, data!$P$22:$S$54, 3, FALSE), IF(AND(V38="oui", W38="oui"), VLOOKUP(Z38, data!$V$22:$Y$54, 3, FALSE), "" ) ) ) ) ) -> 
AD39: =IF(OR(V39="", W39=""), "", IF(AND(V39="non", W39="non"), SUMIFS( Table5[SUH max],Table5[Type], Z39), IF(AND(V39="oui", W39="non"), SUMIFS( Table5[SUH max], Table5[Type], Z39) * 1.1, IF(AND(V39="non", W39="oui"), VLOOKUP(Z39, data!$P$22:$S$54, 3, FALSE), IF(AND(V39="oui", W39="oui"), VLOOKUP(Z39, data!$V$22:$Y$54, 3, FALSE), "" ) ) ) ) ) -> 
AD40: =IF(OR(V40="", W40=""), "", IF(AND(V40="non", W40="non"), SUMIFS( Table5[SUH max],Table5[Type], Z40), IF(AND(V40="oui", W40="non"), SUMIFS( Table5[SUH max], Table5[Type], Z40) * 1.1, IF(AND(V40="non", W40="oui"), VLOOKUP(Z40, data!$P$22:$S$54, 3, FALSE), IF(AND(V40="oui", W40="oui"), VLOOKUP(Z40, data!$V$22:$Y$54, 3, FALSE), "" ) ) ) ) ) -> 
AD41: =IF(OR(V41="", W41=""), "", IF(AND(V41="non", W41="non"), SUMIFS( Table5[SUH max],Table5[Type], Z41), IF(AND(V41="oui", W41="non"), SUMIFS( Table5[SUH max], Table5[Type], Z41) * 1.1, IF(AND(V41="non", W41="oui"), VLOOKUP(Z41, data!$P$22:$S$54, 3, FALSE), IF(AND(V41="oui", W41="oui"), VLOOKUP(Z41, data!$V$22:$Y$54, 3, FALSE), "" ) ) ) ) ) -> 
AD42: =IF(OR(V42="", W42=""), "", IF(AND(V42="non", W42="non"), SUMIFS( Table5[SUH max],Table5[Type], Z42), IF(AND(V42="oui", W42="non"), SUMIFS( Table5[SUH max], Table5[Type], Z42) * 1.1, IF(AND(V42="non", W42="oui"), VLOOKUP(Z42, data!$P$22:$S$54, 3, FALSE), IF(AND(V42="oui", W42="oui"), VLOOKUP(Z42, data!$V$22:$Y$54, 3, FALSE), "" ) ) ) ) ) -> 
AD43: =IF(OR(V43="", W43=""), "", IF(AND(V43="non", W43="non"), SUMIFS( Table5[SUH max],Table5[Type], Z43), IF(AND(V43="oui", W43="non"), SUMIFS( Table5[SUH max], Table5[Type], Z43) * 1.1, IF(AND(V43="non", W43="oui"), VLOOKUP(Z43, data!$P$22:$S$54, 3, FALSE), IF(AND(V43="oui", W43="oui"), VLOOKUP(Z43, data!$V$22:$Y$54, 3, FALSE), "" ) ) ) ) ) -> 
AD44: =IF(OR(V44="", W44=""), "", IF(AND(V44="non", W44="non"), SUMIFS( Table5[SUH max],Table5[Type], Z44), IF(AND(V44="oui", W44="non"), SUMIFS( Table5[SUH max], Table5[Type], Z44) * 1.1, IF(AND(V44="non", W44="oui"), VLOOKUP(Z44, data!$P$22:$S$54, 3, FALSE), IF(AND(V44="oui", W44="oui"), VLOOKUP(Z44, data!$V$22:$Y$54, 3, FALSE), "" ) ) ) ) ) -> 
AD45: =IF(OR(V45="", W45=""), "", IF(AND(V45="non", W45="non"), SUMIFS( Table5[SUH max],Table5[Type], Z45), IF(AND(V45="oui", W45="non"), SUMIFS( Table5[SUH max], Table5[Type], Z45) * 1.1, IF(AND(V45="non", W45="oui"), VLOOKUP(Z45, data!$P$22:$S$54, 3, FALSE), IF(AND(V45="oui", W45="oui"), VLOOKUP(Z45, data!$V$22:$Y$54, 3, FALSE), "" ) ) ) ) ) -> 
AD46: =IF(OR(V46="", W46=""), "", IF(AND(V46="non", W46="non"), SUMIFS( Table5[SUH max],Table5[Type], Z46), IF(AND(V46="oui", W46="non"), SUMIFS( Table5[SUH max], Table5[Type], Z46) * 1.1, IF(AND(V46="non", W46="oui"), VLOOKUP(Z46, data!$P$22:$S$54, 3, FALSE), IF(AND(V46="oui", W46="oui"), VLOOKUP(Z46, data!$V$22:$Y$54, 3, FALSE), "" ) ) ) ) ) -> 
AD47: =IF(OR(V47="", W47=""), "", IF(AND(V47="non", W47="non"), SUMIFS( Table5[SUH max],Table5[Type], Z47), IF(AND(V47="oui", W47="non"), SUMIFS( Table5[SUH max], Table5[Type], Z47) * 1.1, IF(AND(V47="non", W47="oui"), VLOOKUP(Z47, data!$P$22:$S$54, 3, FALSE), IF(AND(V47="oui", W47="oui"), VLOOKUP(Z47, data!$V$22:$Y$54, 3, FALSE), "" ) ) ) ) ) -> 
AD48: =IF(OR(V48="", W48=""), "", IF(AND(V48="non", W48="non"), SUMIFS( Table5[SUH max],Table5[Type], Z48), IF(AND(V48="oui", W48="non"), SUMIFS( Table5[SUH max], Table5[Type], Z48) * 1.1, IF(AND(V48="non", W48="oui"), VLOOKUP(Z48, data!$P$22:$S$54, 3, FALSE), IF(AND(V48="oui", W48="oui"), VLOOKUP(Z48, data!$V$22:$Y$54, 3, FALSE), "" ) ) ) ) ) -> 
AD49: =IF(OR(V49="", W49=""), "", IF(AND(V49="non", W49="non"), SUMIFS( Table5[SUH max],Table5[Type], Z49), IF(AND(V49="oui", W49="non"), SUMIFS( Table5[SUH max], Table5[Type], Z49) * 1.1, IF(AND(V49="non", W49="oui"), VLOOKUP(Z49, data!$P$22:$S$54, 3, FALSE), IF(AND(V49="oui", W49="oui"), VLOOKUP(Z49, data!$V$22:$Y$54, 3, FALSE), "" ) ) ) ) ) -> 
AD50: =IF(OR(V50="", W50=""), "", IF(AND(V50="non", W50="non"), SUMIFS( Table5[SUH max],Table5[Type], Z50), IF(AND(V50="oui", W50="non"), SUMIFS( Table5[SUH max], Table5[Type], Z50) * 1.1, IF(AND(V50="non", W50="oui"), VLOOKUP(Z50, data!$P$22:$S$54, 3, FALSE), IF(AND(V50="oui", W50="oui"), VLOOKUP(Z50, data!$V$22:$Y$54, 3, FALSE), "" ) ) ) ) ) -> 
AD51: =IF(OR(V51="", W51=""), "", IF(AND(V51="non", W51="non"), SUMIFS( Table5[SUH max],Table5[Type], Z51), IF(AND(V51="oui", W51="non"), SUMIFS( Table5[SUH max], Table5[Type], Z51) * 1.1, IF(AND(V51="non", W51="oui"), VLOOKUP(Z51, data!$P$22:$S$54, 3, FALSE), IF(AND(V51="oui", W51="oui"), VLOOKUP(Z51, data!$V$22:$Y$54, 3, FALSE), "" ) ) ) ) ) -> 
AD52: =IF(OR(V52="", W52=""), "", IF(AND(V52="non", W52="non"), SUMIFS( Table5[SUH max],Table5[Type], Z52), IF(AND(V52="oui", W52="non"), SUMIFS( Table5[SUH max], Table5[Type], Z52) * 1.1, IF(AND(V52="non", W52="oui"), VLOOKUP(Z52, data!$P$22:$S$54, 3, FALSE), IF(AND(V52="oui", W52="oui"), VLOOKUP(Z52, data!$V$22:$Y$54, 3, FALSE), "" ) ) ) ) ) -> 
AD53: =IF(OR(V53="", W53=""), "", IF(AND(V53="non", W53="non"), SUMIFS( Table5[SUH max],Table5[Type], Z53), IF(AND(V53="oui", W53="non"), SUMIFS( Table5[SUH max], Table5[Type], Z53) * 1.1, IF(AND(V53="non", W53="oui"), VLOOKUP(Z53, data!$P$22:$S$54, 3, FALSE), IF(AND(V53="oui", W53="oui"), VLOOKUP(Z53, data!$V$22:$Y$54, 3, FALSE), "" ) ) ) ) ) -> 
AD54: =IF(OR(V54="", W54=""), "", IF(AND(V54="non", W54="non"), SUMIFS( Table5[SUH max],Table5[Type], Z54), IF(AND(V54="oui", W54="non"), SUMIFS( Table5[SUH max], Table5[Type], Z54) * 1.1, IF(AND(V54="non", W54="oui"), VLOOKUP(Z54, data!$P$22:$S$54, 3, FALSE), IF(AND(V54="oui", W54="oui"), VLOOKUP(Z54, data!$V$22:$Y$54, 3, FALSE), "" ) ) ) ) ) -> 
AD55: =IF(OR(V55="", W55=""), "", IF(AND(V55="non", W55="non"), SUMIFS( Table5[SUH max],Table5[Type], Z55), IF(AND(V55="oui", W55="non"), SUMIFS( Table5[SUH max], Table5[Type], Z55) * 1.1, IF(AND(V55="non", W55="oui"), VLOOKUP(Z55, data!$P$22:$S$54, 3, FALSE), IF(AND(V55="oui", W55="oui"), VLOOKUP(Z55, data!$V$22:$Y$54, 3, FALSE), "" ) ) ) ) ) -> 
AD56: =IF(OR(V56="", W56=""), "", IF(AND(V56="non", W56="non"), SUMIFS( Table5[SUH max],Table5[Type], Z56), IF(AND(V56="oui", W56="non"), SUMIFS( Table5[SUH max], Table5[Type], Z56) * 1.1, IF(AND(V56="non", W56="oui"), VLOOKUP(Z56, data!$P$22:$S$54, 3, FALSE), IF(AND(V56="oui", W56="oui"), VLOOKUP(Z56, data!$V$22:$Y$54, 3, FALSE), "" ) ) ) ) ) -> 
AD57: =IF(OR(V57="", W57=""), "", IF(AND(V57="non", W57="non"), SUMIFS( Table5[SUH max],Table5[Type], Z57), IF(AND(V57="oui", W57="non"), SUMIFS( Table5[SUH max], Table5[Type], Z57) * 1.1, IF(AND(V57="non", W57="oui"), VLOOKUP(Z57, data!$P$22:$S$54, 3, FALSE), IF(AND(V57="oui", W57="oui"), VLOOKUP(Z57, data!$V$22:$Y$54, 3, FALSE), "" ) ) ) ) ) -> 
AD58: =IF(OR(V58="", W58=""), "", IF(AND(V58="non", W58="non"), SUMIFS( Table5[SUH max],Table5[Type], Z58), IF(AND(V58="oui", W58="non"), SUMIFS( Table5[SUH max], Table5[Type], Z58) * 1.1, IF(AND(V58="non", W58="oui"), VLOOKUP(Z58, data!$P$22:$S$54, 3, FALSE), IF(AND(V58="oui", W58="oui"), VLOOKUP(Z58, data!$V$22:$Y$54, 3, FALSE), "" ) ) ) ) ) -> 
AD59: =IF(OR(V59="", W59=""), "", IF(AND(V59="non", W59="non"), SUMIFS( Table5[SUH max],Table5[Type], Z59), IF(AND(V59="oui", W59="non"), SUMIFS( Table5[SUH max], Table5[Type], Z59) * 1.1, IF(AND(V59="non", W59="oui"), VLOOKUP(Z59, data!$P$22:$S$54, 3, FALSE), IF(AND(V59="oui", W59="oui"), VLOOKUP(Z59, data!$V$22:$Y$54, 3, FALSE), "" ) ) ) ) ) -> 
AD60: =IF(OR(V60="", W60=""), "", IF(AND(V60="non", W60="non"), SUMIFS( Table5[SUH max],Table5[Type], Z60), IF(AND(V60="oui", W60="non"), SUMIFS( Table5[SUH max], Table5[Type], Z60) * 1.1, IF(AND(V60="non", W60="oui"), VLOOKUP(Z60, data!$P$22:$S$54, 3, FALSE), IF(AND(V60="oui", W60="oui"), VLOOKUP(Z60, data!$V$22:$Y$54, 3, FALSE), "" ) ) ) ) ) -> 
CL62: Commentaires

Sheet immeuble(s) collectif(s)
E2: Immeuble collectif
A5: Récapitulatif | E5: Bâtiment | AS5: Logements | BU5: Chambres à coucher | EX5: Emplacements
O7: CPE bien existant | R7: CPE du projet | V7: Programmation par cage d'escalier | AA7: Programmation par immeuble | AF7: Elements favorisants l'habitat
E9: Nom de l'immeuble collectif | F9: surface terrain (ares) | G9: n° de la parcelle cadastrale | H9: numéro de rue | I9: nom de la rue | J9: code postal | K9: localité | L9: type de construction | M9: nombre des étages du batiment | N9: année de construction | O9: Classe de performance énergétique [kWh/ m2a] | P9: Classe d'isolation thermique [kWh/ m2a] | Q9: Classe de performance environnementale (émissions en CO2) [kg CO2/m2 année] | R9: Classe de performance énergétique [kWh/ m2a] | S9: Classe d'isolation thermique [kWh/ m2a] | T9: Classe de performance environnementale (émissions en CO2) [kg CO2/m2 année] | V9: cage d'escalier | W9: ascenseur | X9: buanderie commune | Y9: local poubelle | AA9: local vélos 1 empl. vélo/ chambre | AB9: local poussette | AC9: local outil jardinage et nettoyage | AD9: gaines techniques superposées et regroupées | AF9: salle polyvalente | AG9: chambre d'ami | AH9: local atelier/ bricolage | AI9: local télétravail | AJ9: salle multifonctionnelle (jeux, biblio.) avec ouverture s/ l'extér. | AK9: buanderie commune avec ouverture et accès s/ l'extér. | AQ9: autres | AS9: n° unité selon plan | AT9: n° cadastre vertical | AU9: bailleur social | AV9: étage | AW9: adapté PMR | AX9: logements collectifs (hébergements) | AY9: affectation du logement | BJ9: typologie | BK9: destination du logement (vente / location) | BM9: [SUH] | BO9: [SUH maximale CDC] | BP9: RATIOS | BR9: [SCB_log] m2 (par immeuble) | BS9: [SNA_log] m2 (par immeuble) | BU9: Typologie | BV9: ch 01 m2 | BW9: Typologie | BX9: ch 02 m2 | BY9: Typologie | BZ9: ch 03 m2 | CA9: Typologie | CB9: ch 04 m2 | CC9: Typologie | CD9: ch 05 m2 | CE9: Typologie | CF9: ch 06 m2 | CG9: Typologie | CH9: ch 07 m2 | CI9: Typologie | CJ9: ch 08 m2 | CK9: Typologie | CL9: ch 09 m2 | CM9: Typologie | CN9: ch 10 m2 | CO9: Typologie | CP9: ch 11 m2 | CQ9: Typologie | CR9: ch 12 m2 | CS9: Typologie | CT9: ch 13 m2 | CU9: Typologie | CV9: ch 14 m2 | CW9: Typologie | CX9: ch 15 m2 | CY9: Typologie | CZ9: ch 16 m2 | DA9: Typologie | DB9: ch 17 m2 | DC9: Typologie | DD9: ch 18 m2 | DE9: Typologie | DF9: ch 19 m2 | DG9: Typologie | DH9: ch 20 m2 | DI9: Typologie | DJ9: ch 21 m2 | DK9: Typologie | DL9: ch 22 m2 | DM9: Typologie | DN9: ch 23 m2 | DO9: Typologie | DP9: ch 24 m2 | DQ9: Typologie | DR9: ch 25 m2 | DT9: débarras | DU9: niche vestiaire | DV9: cave privative | DW9: n° cadastrale cave | DX9: grenier privatif | DY9: n° cadastrale grenier | EF9: espace extérieur privatif | EG9: Pièce d'eau 1 | EH9: Pièce d'eau 2 | EI9: Pièce d'eau 3 | EJ9: Pièce d'eau 4 | EV9: cuisine si log locatif | EX9: Σ nombre d'emplacements par appartement | EZ9: numéro unité selon plan 1 | FA9: n° cadastre emplacement 1 | FB9: type d'emplacement 1 | FD9: numéro unité selon plan 2 | FE9: n° cadastre emplacement 2 | FF9: type d'emplacement 2 | FH9: numéro unité selon plan 3 | FI9: n° cadastre emplacement 3 | FJ9: type d'emplacement 3 | FL9: numéro unité selon plan 4 | FM9: n° cadastre emplacement 4 | FN9: type d'emplacement 4 | FP9: numéro unité selon plan 5 | FQ9: n° cadastre emplacement 5 | FR9: type d'emplacement 5 | FT9: numéro unité selon plan 6 | FU9: n° cadastre emplacement 6 | FV9: type d'emplacement 6 | FX9: numéro unité selon plan 7 | FY9: n° cadastre emplacement 7 | FZ9: type d'emplacement 7 | GB9: numéro unité selon plan 8 | GC9: n° cadastre emplacement 8 | GD9: type d'emplacement 8 | GF9: numéro unité selon plan 9 | GG9: n° cadastre emplacement 9 | GH9: type d'emplacement 9 | GJ9: numéro unité selon plan 10 | GK9: n° cadastre emplacement 10 | GL9: type d'emplacement 10 | GN9: numéro unité selon plan 11 | GO9: n° cadastre emplacement 11 | GP9: type d'emplacement 11 | GR9: numéro unité selon plan 12 | GS9: n° cadastre emplacement 12 | GT9: type d'emplacement 12 | GV9: numéro unité selon plan 13 | GW9: n° cadastre emplacement 13 | GX9: type d'emplacement 13 | GZ9: numéro unité selon plan 14 | HA9: n° cadastre emplacement 14 | HB9: type d'emplacement 14 | HD9: numéro unité selon plan 15 | HE9: n° cadastre emplacement 15 | HF9: type d'emplacement 15 | HH9: numéro unité selon plan 16 | HI9: n° cadastre emplacement 16 | HJ9: type d'emplacement 16 | HL9: numéro unité selon plan 17 | HM9: n° cadastre emplacement 17 | HN9: type d'emplacement 17 | HP9: numéro unité selon plan 18 | HQ9: n° cadastre emplacement 18 | HR9: type d'emplacement 18 | HT9: numéro unité selon plan 19 | HU9: n° cadastre emplacement 19 | HV9: type d'emplacement 19 | HX9: numéro unité selon plan 20 | HY9: n° cadastre emplacement 20 | HZ9: type d'emplacement 20
BQ10: [m2]
A11: Σ appartements | B11: =COUNTA(AS11:AS62) -> 0 | BO11: =IF(OR(AW11="", AX11=""), "", IF(AND(AW11="non", AX11="non"), SUMIFS(typelogement[SUH max], typelogement[Type], BJ11), IF(AND(AW11="oui", AX11="non"), SUMIFS(typelogement[SUH max], typelogement[Type], BJ11) * 1.1, IF(AND(AW11="non", AX11="oui"), VLOOKUP(BJ11, data!$P$22:$S$54, 3, FALSE), IF(AND(AW11="oui", AX11="oui"), VLOOKUP(BJ11, data!$V$22:$Y$54, 3, FALSE), "" ) ) ) ) ) ->  | BP11: Σ [SUH] max CDC | BQ11: =SUM(BO11:BO62) -> 0
BO12: =IF(OR(AW12="", AX12=""), "", IF(AND(AW12="non", AX12="non"), SUMIFS(typelogement[SUH max], typelogement[Type], BJ12), IF(AND(AW12="oui", AX12="non"), SUMIFS(typelogement[SUH max], typelogement[Type], BJ12) * 1.1, IF(AND(AW12="non", AX12="oui"), VLOOKUP(BJ12, data!$P$22:$S$54, 3, FALSE), IF(AND(AW12="oui", AX12="oui"), VLOOKUP(BJ12, data!$V$22:$Y$54, 3, FALSE), "" ) ) ) ) ) ->  | BP12: Σ [SUH] | BQ12: =SUM(BM11:BM62) -> 0
A13: Σ emplacements privés | B13: =SUM(EX11:EX62) -> 0 | BO13: =IF(OR(AW13="", AX13=""), "", IF(AND(AW13="non", AX13="non"), SUMIFS(typelogement[SUH max], typelogement[Type], BJ13), IF(AND(AW13="oui", AX13="non"), SUMIFS(typelogement[SUH max], typelogement[Type], BJ13) * 1.1, IF(AND(AW13="non", AX13="oui"), VLOOKUP(BJ13, data!$P$22:$S$54, 3, FALSE), IF(AND(AW13="oui", AX13="oui"), VLOOKUP(BJ13, data!$V$22:$Y$54, 3, FALSE), "" ) ) ) ) ) ->  | BP13: Σ [SUH] + autres surfaces | BQ13: =SUM(BM11:BM62)+'autres surfaces'!L12 -> 0
BO14: =IF(OR(AW14="", AX14=""), "", IF(AND(AW14="non", AX14="non"), SUMIFS(typelogement[SUH max], typelogement[Type], BJ14), IF(AND(AW14="oui", AX14="non"), SUMIFS(typelogement[SUH max], typelogement[Type], BJ14) * 1.1, IF(AND(AW14="non", AX14="oui"), VLOOKUP(BJ14, data!$P$22:$S$54, 3, FALSE), IF(AND(AW14="oui", AX14="oui"), VLOOKUP(BJ14, data!$V$22:$Y$54, 3, FALSE), "" ) ) ) ) ) ->  | BP14: Σ [SCB_log] | BQ14: =SUM(BR11:BR62) -> 0
BO15: =IF(OR(AW15="", AX15=""), "", IF(AND(AW15="non", AX15="non"), SUMIFS(typelogement[SUH max], typelogement[Type], BJ15), IF(AND(AW15="oui", AX15="non"), SUMIFS(typelogement[SUH max], typelogement[Type], BJ15) * 1.1, IF(AND(AW15="non", AX15="oui"), VLOOKUP(BJ15, data!$P$22:$S$54, 3, FALSE), IF(AND(AW15="oui", AX15="oui"), VLOOKUP(BJ15, data!$V$22:$Y$54, 3, FALSE), "" ) ) ) ) ) ->  | BP15: Σ [SNA_log] | BQ15: =SUM(BS11:BS62) -> 0
A16: 0 chambre | B16: =IFERROR(SUM(COUNTIF(BJ11:BJ62,{"0.1"}))/B11,0) -> 0 | C16: =IFERROR(SUM(COUNTIF(BJ11:BJ62,{"0.1"})),0) -> 0 | BO16: =IF(OR(AW16="", AX16=""), "", IF(AND(AW16="non", AX16="non"), SUMIFS(typelogement[SUH max], typelogement[Type], BJ16), IF(AND(AW16="oui", AX16="non"), SUMIFS(typelogement[SUH max], typelogement[Type], BJ16) * 1.1, IF(AND(AW16="non", AX16="oui"), VLOOKUP(BJ16, data!$P$22:$S$54, 3, FALSE), IF(AND(AW16="oui", AX16="oui"), VLOOKUP(BJ16, data!$V$22:$Y$54, 3, FALSE), "" ) ) ) ) ) -> 
A17: 1 chambre | B17: =IFERROR(SUM(COUNTIF(BJ11:BJ62,{"1.1";"1.2"}))/B11,0) -> 0 | C17: =IFERROR(SUM(COUNTIF(BJ11:BJ62,{"1.1";"1.2"})),0) -> 0 | BO17: =IF(OR(AW17="", AX17=""), "", IF(AND(AW17="non", AX17="non"), SUMIFS(typelogement[SUH max], typelogement[Type], BJ17), IF(AND(AW17="oui", AX17="non"), SUMIFS(typelogement[SUH max], typelogement[Type], BJ17) * 1.1, IF(AND(AW17="non", AX17="oui"), VLOOKUP(BJ17, data!$P$22:$S$54, 3, FALSE), IF(AND(AW17="oui", AX17="oui"), VLOOKUP(BJ17, data!$V$22:$Y$54, 3, FALSE), "" ) ) ) ) ) ->  | BP17: % logement | BQ17: =BQ12/BQ13 -> 
A18: 2 chambres | B18: =IFERROR(SUM(COUNTIF(BJ11:BJ62,{"2.2";"2.3";"2.4"}))/B11,0) -> 0 | C18: =IFERROR(SUM(COUNTIF(BJ11:BJ62,{"2.2";"2.3";"2.4"})),0) -> 0 | BO18: =IF(OR(AW18="", AX18=""), "", IF(AND(AW18="non", AX18="non"), SUMIFS(typelogement[SUH max], typelogement[Type], BJ18), IF(AND(AW18="oui", AX18="non"), SUMIFS(typelogement[SUH max], typelogement[Type], BJ18) * 1.1, IF(AND(AW18="non", AX18="oui"), VLOOKUP(BJ18, data!$P$22:$S$54, 3, FALSE), IF(AND(AW18="oui", AX18="oui"), VLOOKUP(BJ18, data!$V$22:$Y$54, 3, FALSE), "" ) ) ) ) ) ->  | BP18: Σ [SUH]/ Σ [SCB_log] | BQ18: =BQ12/BQ14 -> 
A19: 3 chambres | B19: =IFERROR(SUM(COUNTIF(BJ11:BJ62,{"3.3";"3.4";"3.5";"3.6"}))/B11,0) -> 0 | C19: =IFERROR(SUM(COUNTIF(BJ11:BJ62,{"3.3";"3.4";"3.5";"3.6"})),0) -> 0 | BO19: =IF(OR(AW19="", AX19=""), "", IF(AND(AW19="non", AX19="non"), SUMIFS(typelogement[SUH max], typelogement[Type], BJ19), IF(AND(AW19="oui", AX19="non"), SUMIFS(typelogement[SUH max], typelogement[Type], BJ19) * 1.1, IF(AND(AW19="non", AX19="oui"), VLOOKUP(BJ19, data!$P$22:$S$54, 3, FALSE), IF(AND(AW19="oui", AX19="oui"), VLOOKUP(BJ19, data!$V$22:$Y$54, 3, FALSE), "" ) ) ) ) ) ->  | BP19: Σ [SNA_log]/ Σ [SCB_log] | BQ19: =BQ15/BQ14 -> 
A20: 4 chambres | B20: =IFERROR(SUM(COUNTIF(BJ11:BJ62,{"4.4";"4.5";"4.6";"4.7";"4.8"}))/B11,0) -> 0 | C20: =IFERROR(SUM(COUNTIF(BJ11:BJ62,{"4.4";"4.5";"4.6";"4.7";"4.8"})),0) -> 0 | BO20: =IF(OR(AW20="", AX20=""), "", IF(AND(AW20="non", AX20="non"), SUMIFS(typelogement[SUH max], typelogement[Type], BJ20), IF(AND(AW20="oui", AX20="non"), SUMIFS(typelogement[SUH max], typelogement[Type], BJ20) * 1.1, IF(AND(AW20="non", AX20="oui"), VLOOKUP(BJ20, data!$P$22:$S$54, 3, FALSE), IF(AND(AW20="oui", AX20="oui"), VLOOKUP(BJ20, data!$V$22:$Y$54, 3, FALSE), "" ) ) ) ) ) -> 
A21: 5 chambres | B21: =IFERROR(SUM(COUNTIF(BJ11:BJ62,{"5.5";"5.6";"5.7";"5.8";"5.9";"5.10"}))/B11,0) -> 0 | C21: =IFERROR(SUM(COUNTIF(BJ11:BJ62,{"5.5";"5.6";"5.7";"5.8";"5.9";"5.10"})),0) -> 0 | BO21: =IF(OR(AW21="", AX21=""), "", IF(AND(AW21="non", AX21="non"), SUMIFS(typelogement[SUH max], typelogement[Type], BJ21), IF(AND(AW21="oui", AX21="non"), SUMIFS(typelogement[SUH max], typelogement[Type], BJ21) * 1.1, IF(AND(AW21="non", AX21="oui"), VLOOKUP(BJ21, data!$P$22:$S$54, 3, FALSE), IF(AND(AW21="oui", AX21="oui"), VLOOKUP(BJ21, data!$V$22:$Y$54, 3, FALSE), "" ) ) ) ) ) ->  | BP21: surfaces consolidées minimisées (case réservé au MLOGAT)
A22: 6+ chambres | B22: =IFERROR(SUM(COUNTIF(BJ11:BJ62,{"6.6";"6.7";"6.8";"6.9""6.10";"7.7";"7.8";"7.9";"7.11";"8.8";"8.10";"8.12";"9.9";"9.13";"9.15";"10.10";"10.14";"10.18";"15.15";"15.20";"15.25";"20.20";"20.25";"20.30"}))/B11,0) -> 0 | C22: =IFERROR(SUM(COUNTIF(BJ11:BJ62,{"6.6";"6.7";"6.8";"6.9""6.10";"7.7";"7.8";"7.9";"7.11";"8.8";"8.10";"8.12";"9.9";"9.13";"9.15";"10.10";"10.14";"10.18";"15.15";"15.20";"15.25";"20.20";"20.25";"20.30"})),0) -> 0 | BO22: =IF(OR(AW22="", AX22=""), "", IF(AND(AW22="non", AX22="non"), SUMIFS(typelogement[SUH max], typelogement[Type], BJ22), IF(AND(AW22="oui", AX22="non"), SUMIFS(typelogement[SUH max], typelogement[Type], BJ22) * 1.1, IF(AND(AW22="non", AX22="oui"), VLOOKUP(BJ22, data!$P$22:$S$54, 3, FALSE), IF(AND(AW22="oui", AX22="oui"), VLOOKUP(BJ22, data!$V$22:$Y$54, 3, FALSE), "" ) ) ) ) ) -> 
BO23: =IF(OR(AW23="", AX23=""), "", IF(AND(AW23="non", AX23="non"), SUMIFS(typelogement[SUH max], typelogement[Type], BJ23), IF(AND(AW23="oui", AX23="non"), SUMIFS(typelogement[SUH max], typelogement[Type], BJ23) * 1.1, IF(AND(AW23="non", AX23="oui"), VLOOKUP(BJ23, data!$P$22:$S$54, 3, FALSE), IF(AND(AW23="oui", AX23="oui"), VLOOKUP(BJ23, data!$V$22:$Y$54, 3, FALSE), "" ) ) ) ) ) -> 
A24: Logements adaptés PMR | B24: =COUNTIF(AW11:AW63,"oui") -> 0 | BO24: =IF(OR(AW24="", AX24=""), "", IF(AND(AW24="non", AX24="non"), SUMIFS(typelogement[SUH max], typelogement[Type], BJ24), IF(AND(AW24="oui", AX24="non"), SUMIFS(typelogement[SUH max], typelogement[Type], BJ24) * 1.1, IF(AND(AW24="non", AX24="oui"), VLOOKUP(BJ24, data!$P$22:$S$54, 3, FALSE), IF(AND(AW24="oui", AX24="oui"), VLOOKUP(BJ24, data!$V$22:$Y$54, 3, FALSE), "" ) ) ) ) ) -> 
BO25: =IF(OR(AW25="", AX25=""), "", IF(AND(AW25="non", AX25="non"), SUMIFS(typelogement[SUH max], typelogement[Type], BJ25), IF(AND(AW25="oui", AX25="non"), SUMIFS(typelogement[SUH max], typelogement[Type], BJ25) * 1.1, IF(AND(AW25="non", AX25="oui"), VLOOKUP(BJ25, data!$P$22:$S$54, 3, FALSE), IF(AND(AW25="oui", AX25="oui"), VLOOKUP(BJ25, data!$V$22:$Y$54, 3, FALSE), "" ) ) ) ) ) -> 
A26: Location | B26: =COUNTIF(BK11:BK62,"location abordable") -> 0 | BO26: =IF(OR(AW26="", AX26=""), "", IF(AND(AW26="non", AX26="non"), SUMIFS(typelogement[SUH max], typelogement[Type], BJ26), IF(AND(AW26="oui", AX26="non"), SUMIFS(typelogement[SUH max], typelogement[Type], BJ26) * 1.1, IF(AND(AW26="non", AX26="oui"), VLOOKUP(BJ26, data!$P$22:$S$54, 3, FALSE), IF(AND(AW26="oui", AX26="oui"), VLOOKUP(BJ26, data!$V$22:$Y$54, 3, FALSE), "" ) ) ) ) ) -> 
A27: Vente à coût modéré | B27: =COUNTIF(BK11:BK62,"vente à coût modéré") -> 0 | BO27: =IF(OR(AW27="", AX27=""), "", IF(AND(AW27="non", AX27="non"), SUMIFS(typelogement[SUH max], typelogement[Type], BJ27), IF(AND(AW27="oui", AX27="non"), SUMIFS(typelogement[SUH max], typelogement[Type], BJ27) * 1.1, IF(AND(AW27="non", AX27="oui"), VLOOKUP(BJ27, data!$P$22:$S$54, 3, FALSE), IF(AND(AW27="oui", AX27="oui"), VLOOKUP(BJ27, data!$V$22:$Y$54, 3, FALSE), "" ) ) ) ) ) -> 
A28: Vente abordable | B28: =COUNTIF(BK11:BK62,"vente abordable") -> 0 | BO28: =IF(OR(AW28="", AX28=""), "", IF(AND(AW28="non", AX28="non"), SUMIFS(typelogement[SUH max], typelogement[Type], BJ28), IF(AND(AW28="oui", AX28="non"), SUMIFS(typelogement[SUH max], typelogement[Type], BJ28) * 1.1, IF(AND(AW28="non", AX28="oui"), VLOOKUP(BJ28, data!$P$22:$S$54, 3, FALSE), IF(AND(AW28="oui", AX28="oui"), VLOOKUP(BJ28, data!$V$22:$Y$54, 3, FALSE), "" ) ) ) ) ) -> 
BO29: =IF(OR(AW29="", AX29=""), "", IF(AND(AW29="non", AX29="non"), SUMIFS(typelogement[SUH max], typelogement[Type], BJ29), IF(AND(AW29="oui", AX29="non"), SUMIFS(typelogement[SUH max], typelogement[Type], BJ29) * 1.1, IF(AND(AW29="non", AX29="oui"), VLOOKUP(BJ29, data!$P$22:$S$54, 3, FALSE), IF(AND(AW29="oui", AX29="oui"), VLOOKUP(BJ29, data!$V$22:$Y$54, 3, FALSE), "" ) ) ) ) ) -> 
A30: Ratio vente abordable | B30: =IFERROR(B28/SUM(B27:B28),"") ->  | BO30: =IF(OR(AW30="", AX30=""), "", IF(AND(AW30="non", AX30="non"), SUMIFS(typelogement[SUH max], typelogement[Type], BJ30), IF(AND(AW30="oui", AX30="non"), SUMIFS(typelogement[SUH max], typelogement[Type], BJ30) * 1.1, IF(AND(AW30="non", AX30="oui"), VLOOKUP(BJ30, data!$P$22:$S$54, 3, FALSE), IF(AND(AW30="oui", AX30="oui"), VLOOKUP(BJ30, data!$V$22:$Y$54, 3, FALSE), "" ) ) ) ) ) -> 
BO31: =IF(OR(AW31="", AX31=""), "", IF(AND(AW31="non", AX31="non"), SUMIFS(typelogement[SUH max], typelogement[Type], BJ31), IF(AND(AW31="oui", AX31="non"), SUMIFS(typelogement[SUH max], typelogement[Type], BJ31) * 1.1, IF(AND(AW31="non", AX31="oui"), VLOOKUP(BJ31, data!$P$22:$S$54, 3, FALSE), IF(AND(AW31="oui", AX31="oui"), VLOOKUP(BJ31, data!$V$22:$Y$54, 3, FALSE), "" ) ) ) ) ) -> 
A32: Σ surfaces terrains | B32: =SUM(F11:F62) -> 0 | BO32: =IF(OR(AW32="", AX32=""), "", IF(AND(AW32="non", AX32="non"), SUMIFS(typelogement[SUH max], typelogement[Type], BJ32), IF(AND(AW32="oui", AX32="non"), SUMIFS(typelogement[SUH max], typelogement[Type], BJ32) * 1.1, IF(AND(AW32="non", AX32="oui"), VLOOKUP(BJ32, data!$P$22:$S$54, 3, FALSE), IF(AND(AW32="oui", AX32="oui"), VLOOKUP(BJ32, data!$V$22:$Y$54, 3, FALSE), "" ) ) ) ) ) -> 
BO33: =IF(OR(AW33="", AX33=""), "", IF(AND(AW33="non", AX33="non"), SUMIFS(typelogement[SUH max], typelogement[Type], BJ33), IF(AND(AW33="oui", AX33="non"), SUMIFS(typelogement[SUH max], typelogement[Type], BJ33) * 1.1, IF(AND(AW33="non", AX33="oui"), VLOOKUP(BJ33, data!$P$22:$S$54, 3, FALSE), IF(AND(AW33="oui", AX33="oui"), VLOOKUP(BJ33, data!$V$22:$Y$54, 3, FALSE), "" ) ) ) ) ) -> 
BO34: =IF(OR(AW34="", AX34=""), "", IF(AND(AW34="non", AX34="non"), SUMIFS(typelogement[SUH max], typelogement[Type], BJ34), IF(AND(AW34="oui", AX34="non"), SUMIFS(typelogement[SUH max], typelogement[Type], BJ34) * 1.1, IF(AND(AW34="non", AX34="oui"), VLOOKUP(BJ34, data!$P$22:$S$54, 3, FALSE), IF(AND(AW34="oui", AX34="oui"), VLOOKUP(BJ34, data!$V$22:$Y$54, 3, FALSE), "" ) ) ) ) ) -> 
BO35: =IF(OR(AW35="", AX35=""), "", IF(AND(AW35="non", AX35="non"), SUMIFS(typelogement[SUH max], typelogement[Type], BJ35), IF(AND(AW35="oui", AX35="non"), SUMIFS(typelogement[SUH max], typelogement[Type], BJ35) * 1.1, IF(AND(AW35="non", AX35="oui"), VLOOKUP(BJ35, data!$P$22:$S$54, 3, FALSE), IF(AND(AW35="oui", AX35="oui"), VLOOKUP(BJ35, data!$V$22:$Y$54, 3, FALSE), "" ) ) ) ) ) -> 
BO36: =IF(OR(AW36="", AX36=""), "", IF(AND(AW36="non", AX36="non"), SUMIFS(typelogement[SUH max], typelogement[Type], BJ36), IF(AND(AW36="oui", AX36="non"), SUMIFS(typelogement[SUH max], typelogement[Type], BJ36) * 1.1, IF(AND(AW36="non", AX36="oui"), VLOOKUP(BJ36, data!$P$22:$S$54, 3, FALSE), IF(AND(AW36="oui", AX36="oui"), VLOOKUP(BJ36, data!$V$22:$Y$54, 3, FALSE), "" ) ) ) ) ) -> 
BO37: =IF(OR(AW37="", AX37=""), "", IF(AND(AW37="non", AX37="non"), SUMIFS(typelogement[SUH max], typelogement[Type], BJ37), IF(AND(AW37="oui", AX37="non"), SUMIFS(typelogement[SUH max], typelogement[Type], BJ37) * 1.1, IF(AND(AW37="non", AX37="oui"), VLOOKUP(BJ37, data!$P$22:$S$54, 3, FALSE), IF(AND(AW37="oui", AX37="oui"), VLOOKUP(BJ37, data!$V$22:$Y$54, 3, FALSE), "" ) ) ) ) ) -> 
BO38: =IF(OR(AW38="", AX38=""), "", IF(AND(AW38="non", AX38="non"), SUMIFS(typelogement[SUH max], typelogement[Type], BJ38), IF(AND(AW38="oui", AX38="non"), SUMIFS(typelogement[SUH max], typelogement[Type], BJ38) * 1.1, IF(AND(AW38="non", AX38="oui"), VLOOKUP(BJ38, data!$P$22:$S$54, 3, FALSE), IF(AND(AW38="oui", AX38="oui"), VLOOKUP(BJ38, data!$V$22:$Y$54, 3, FALSE), "" ) ) ) ) ) -> 
BO39: =IF(OR(AW39="", AX39=""), "", IF(AND(AW39="non", AX39="non"), SUMIFS(typelogement[SUH max], typelogement[Type], BJ39), IF(AND(AW39="oui", AX39="non"), SUMIFS(typelogement[SUH max], typelogement[Type], BJ39) * 1.1, IF(AND(AW39="non", AX39="oui"), VLOOKUP(BJ39, data!$P$22:$S$54, 3, FALSE), IF(AND(AW39="oui", AX39="oui"), VLOOKUP(BJ39, data!$V$22:$Y$54, 3, FALSE), "" ) ) ) ) ) -> 
BO40: =IF(OR(AW40="", AX40=""), "", IF(AND(AW40="non", AX40="non"), SUMIFS(typelogement[SUH max], typelogement[Type], BJ40), IF(AND(AW40="oui", AX40="non"), SUMIFS(typelogement[SUH max], typelogement[Type], BJ40) * 1.1, IF(AND(AW40="non", AX40="oui"), VLOOKUP(BJ40, data!$P$22:$S$54, 3, FALSE), IF(AND(AW40="oui", AX40="oui"), VLOOKUP(BJ40, data!$V$22:$Y$54, 3, FALSE), "" ) ) ) ) ) -> 
BO41: =IF(OR(AW41="", AX41=""), "", IF(AND(AW41="non", AX41="non"), SUMIFS(typelogement[SUH max], typelogement[Type], BJ41), IF(AND(AW41="oui", AX41="non"), SUMIFS(typelogement[SUH max], typelogement[Type], BJ41) * 1.1, IF(AND(AW41="non", AX41="oui"), VLOOKUP(BJ41, data!$P$22:$S$54, 3, FALSE), IF(AND(AW41="oui", AX41="oui"), VLOOKUP(BJ41, data!$V$22:$Y$54, 3, FALSE), "" ) ) ) ) ) -> 
BO42: =IF(OR(AW42="", AX42=""), "", IF(AND(AW42="non", AX42="non"), SUMIFS(typelogement[SUH max], typelogement[Type], BJ42), IF(AND(AW42="oui", AX42="non"), SUMIFS(typelogement[SUH max], typelogement[Type], BJ42) * 1.1, IF(AND(AW42="non", AX42="oui"), VLOOKUP(BJ42, data!$P$22:$S$54, 3, FALSE), IF(AND(AW42="oui", AX42="oui"), VLOOKUP(BJ42, data!$V$22:$Y$54, 3, FALSE), "" ) ) ) ) ) -> 
BO43: =IF(OR(AW43="", AX43=""), "", IF(AND(AW43="non", AX43="non"), SUMIFS(typelogement[SUH max], typelogement[Type], BJ43), IF(AND(AW43="oui", AX43="non"), SUMIFS(typelogement[SUH max], typelogement[Type], BJ43) * 1.1, IF(AND(AW43="non", AX43="oui"), VLOOKUP(BJ43, data!$P$22:$S$54, 3, FALSE), IF(AND(AW43="oui", AX43="oui"), VLOOKUP(BJ43, data!$V$22:$Y$54, 3, FALSE), "" ) ) ) ) ) -> 
BO44: =IF(OR(AW44="", AX44=""), "", IF(AND(AW44="non", AX44="non"), SUMIFS(typelogement[SUH max], typelogement[Type], BJ44), IF(AND(AW44="oui", AX44="non"), SUMIFS(typelogement[SUH max], typelogement[Type], BJ44) * 1.1, IF(AND(AW44="non", AX44="oui"), VLOOKUP(BJ44, data!$P$22:$S$54, 3, FALSE), IF(AND(AW44="oui", AX44="oui"), VLOOKUP(BJ44, data!$V$22:$Y$54, 3, FALSE), "" ) ) ) ) ) -> 
BO45: =IF(OR(AW45="", AX45=""), "", IF(AND(AW45="non", AX45="non"), SUMIFS(typelogement[SUH max], typelogement[Type], BJ45), IF(AND(AW45="oui", AX45="non"), SUMIFS(typelogement[SUH max], typelogement[Type], BJ45) * 1.1, IF(AND(AW45="non", AX45="oui"), VLOOKUP(BJ45, data!$P$22:$S$54, 3, FALSE), IF(AND(AW45="oui", AX45="oui"), VLOOKUP(BJ45, data!$V$22:$Y$54, 3, FALSE), "" ) ) ) ) ) -> 
BO46: =IF(OR(AW46="", AX46=""), "", IF(AND(AW46="non", AX46="non"), SUMIFS(typelogement[SUH max], typelogement[Type], BJ46), IF(AND(AW46="oui", AX46="non"), SUMIFS(typelogement[SUH max], typelogement[Type], BJ46) * 1.1, IF(AND(AW46="non", AX46="oui"), VLOOKUP(BJ46, data!$P$22:$S$54, 3, FALSE), IF(AND(AW46="oui", AX46="oui"), VLOOKUP(BJ46, data!$V$22:$Y$54, 3, FALSE), "" ) ) ) ) ) -> 
BO47: =IF(OR(AW47="", AX47=""), "", IF(AND(AW47="non", AX47="non"), SUMIFS(typelogement[SUH max], typelogement[Type], BJ47), IF(AND(AW47="oui", AX47="non"), SUMIFS(typelogement[SUH max], typelogement[Type], BJ47) * 1.1, IF(AND(AW47="non", AX47="oui"), VLOOKUP(BJ47, data!$P$22:$S$54, 3, FALSE), IF(AND(AW47="oui", AX47="oui"), VLOOKUP(BJ47, data!$V$22:$Y$54, 3, FALSE), "" ) ) ) ) ) -> 
BO48: =IF(OR(AW48="", AX48=""), "", IF(AND(AW48="non", AX48="non"), SUMIFS(typelogement[SUH max], typelogement[Type], BJ48), IF(AND(AW48="oui", AX48="non"), SUMIFS(typelogement[SUH max], typelogement[Type], BJ48) * 1.1, IF(AND(AW48="non", AX48="oui"), VLOOKUP(BJ48, data!$P$22:$S$54, 3, FALSE), IF(AND(AW48="oui", AX48="oui"), VLOOKUP(BJ48, data!$V$22:$Y$54, 3, FALSE), "" ) ) ) ) ) -> 
BO49: =IF(OR(AW49="", AX49=""), "", IF(AND(AW49="non", AX49="non"), SUMIFS(typelogement[SUH max], typelogement[Type], BJ49), IF(AND(AW49="oui", AX49="non"), SUMIFS(typelogement[SUH max], typelogement[Type], BJ49) * 1.1, IF(AND(AW49="non", AX49="oui"), VLOOKUP(BJ49, data!$P$22:$S$54, 3, FALSE), IF(AND(AW49="oui", AX49="oui"), VLOOKUP(BJ49, data!$V$22:$Y$54, 3, FALSE), "" ) ) ) ) ) -> 
BO50: =IF(OR(AW50="", AX50=""), "", IF(AND(AW50="non", AX50="non"), SUMIFS(typelogement[SUH max], typelogement[Type], BJ50), IF(AND(AW50="oui", AX50="non"), SUMIFS(typelogement[SUH max], typelogement[Type], BJ50) * 1.1, IF(AND(AW50="non", AX50="oui"), VLOOKUP(BJ50, data!$P$22:$S$54, 3, FALSE), IF(AND(AW50="oui", AX50="oui"), VLOOKUP(BJ50, data!$V$22:$Y$54, 3, FALSE), "" ) ) ) ) ) -> 
BO51: =IF(OR(AW51="", AX51=""), "", IF(AND(AW51="non", AX51="non"), SUMIFS(typelogement[SUH max], typelogement[Type], BJ51), IF(AND(AW51="oui", AX51="non"), SUMIFS(typelogement[SUH max], typelogement[Type], BJ51) * 1.1, IF(AND(AW51="non", AX51="oui"), VLOOKUP(BJ51, data!$P$22:$S$54, 3, FALSE), IF(AND(AW51="oui", AX51="oui"), VLOOKUP(BJ51, data!$V$22:$Y$54, 3, FALSE), "" ) ) ) ) ) -> 
BO52: =IF(OR(AW52="", AX52=""), "", IF(AND(AW52="non", AX52="non"), SUMIFS(typelogement[SUH max], typelogement[Type], BJ52), IF(AND(AW52="oui", AX52="non"), SUMIFS(typelogement[SUH max], typelogement[Type], BJ52) * 1.1, IF(AND(AW52="non", AX52="oui"), VLOOKUP(BJ52, data!$P$22:$S$54, 3, FALSE), IF(AND(AW52="oui", AX52="oui"), VLOOKUP(BJ52, data!$V$22:$Y$54, 3, FALSE), "" ) ) ) ) ) -> 
BO53: =IF(OR(AW53="", AX53=""), "", IF(AND(AW53="non", AX53="non"), SUMIFS(typelogement[SUH max], typelogement[Type], BJ53), IF(AND(AW53="oui", AX53="non"), SUMIFS(typelogement[SUH max], typelogement[Type], BJ53) * 1.1, IF(AND(AW53="non", AX53="oui"), VLOOKUP(BJ53, data!$P$22:$S$54, 3, FALSE), IF(AND(AW53="oui", AX53="oui"), VLOOKUP(BJ53, data!$V$22:$Y$54, 3, FALSE), "" ) ) ) ) ) -> 
BO54: =IF(OR(AW54="", AX54=""), "", IF(AND(AW54="non", AX54="non"), SUMIFS(typelogement[SUH max], typelogement[Type], BJ54), IF(AND(AW54="oui", AX54="non"), SUMIFS(typelogement[SUH max], typelogement[Type], BJ54) * 1.1, IF(AND(AW54="non", AX54="oui"), VLOOKUP(BJ54, data!$P$22:$S$54, 3, FALSE), IF(AND(AW54="oui", AX54="oui"), VLOOKUP(BJ54, data!$V$22:$Y$54, 3, FALSE), "" ) ) ) ) ) -> 
BO55: =IF(OR(AW55="", AX55=""), "", IF(AND(AW55="non", AX55="non"), SUMIFS(typelogement[SUH max], typelogement[Type], BJ55), IF(AND(AW55="oui", AX55="non"), SUMIFS(typelogement[SUH max], typelogement[Type], BJ55) * 1.1, IF(AND(AW55="non", AX55="oui"), VLOOKUP(BJ55, data!$P$22:$S$54, 3, FALSE), IF(AND(AW55="oui", AX55="oui"), VLOOKUP(BJ55, data!$V$22:$Y$54, 3, FALSE), "" ) ) ) ) ) -> 
BO56: =IF(OR(AW56="", AX56=""), "", IF(AND(AW56="non", AX56="non"), SUMIFS(typelogement[SUH max], typelogement[Type], BJ56), IF(AND(AW56="oui", AX56="non"), SUMIFS(typelogement[SUH max], typelogement[Type], BJ56) * 1.1, IF(AND(AW56="non", AX56="oui"), VLOOKUP(BJ56, data!$P$22:$S$54, 3, FALSE), IF(AND(AW56="oui", AX56="oui"), VLOOKUP(BJ56, data!$V$22:$Y$54, 3, FALSE), "" ) ) ) ) ) -> 
BO57: =IF(OR(AW57="", AX57=""), "", IF(AND(AW57="non", AX57="non"), SUMIFS(typelogement[SUH max], typelogement[Type], BJ57), IF(AND(AW57="oui", AX57="non"), SUMIFS(typelogement[SUH max], typelogement[Type], BJ57) * 1.1, IF(AND(AW57="non", AX57="oui"), VLOOKUP(BJ57, data!$P$22:$S$54, 3, FALSE), IF(AND(AW57="oui", AX57="oui"), VLOOKUP(BJ57, data!$V$22:$Y$54, 3, FALSE), "" ) ) ) ) ) -> 
BO58: =IF(OR(AW58="", AX58=""), "", IF(AND(AW58="non", AX58="non"), SUMIFS(typelogement[SUH max], typelogement[Type], BJ58), IF(AND(AW58="oui", AX58="non"), SUMIFS(typelogement[SUH max], typelogement[Type], BJ58) * 1.1, IF(AND(AW58="non", AX58="oui"), VLOOKUP(BJ58, data!$P$22:$S$54, 3, FALSE), IF(AND(AW58="oui", AX58="oui"), VLOOKUP(BJ58, data!$V$22:$Y$54, 3, FALSE), "" ) ) ) ) ) -> 
BO59: =IF(OR(AW59="", AX59=""), "", IF(AND(AW59="non", AX59="non"), SUMIFS(typelogement[SUH max], typelogement[Type], BJ59), IF(AND(AW59="oui", AX59="non"), SUMIFS(typelogement[SUH max], typelogement[Type], BJ59) * 1.1, IF(AND(AW59="non", AX59="oui"), VLOOKUP(BJ59, data!$P$22:$S$54, 3, FALSE), IF(AND(AW59="oui", AX59="oui"), VLOOKUP(BJ59, data!$V$22:$Y$54, 3, FALSE), "" ) ) ) ) ) -> 
BO60: =IF(OR(AW60="", AX60=""), "", IF(AND(AW60="non", AX60="non"), SUMIFS(typelogement[SUH max], typelogement[Type], BJ60), IF(AND(AW60="oui", AX60="non"), SUMIFS(typelogement[SUH max], typelogement[Type], BJ60) * 1.1, IF(AND(AW60="non", AX60="oui"), VLOOKUP(BJ60, data!$P$22:$S$54, 3, FALSE), IF(AND(AW60="oui", AX60="oui"), VLOOKUP(BJ60, data!$V$22:$Y$54, 3, FALSE), "" ) ) ) ) ) -> 
BO61: =IF(OR(AW61="", AX61=""), "", IF(AND(AW61="non", AX61="non"), SUMIFS(typelogement[SUH max], typelogement[Type], BJ61), IF(AND(AW61="oui", AX61="non"), SUMIFS(typelogement[SUH max], typelogement[Type], BJ61) * 1.1, IF(AND(AW61="non", AX61="oui"), VLOOKUP(BJ61, data!$P$22:$S$54, 3, FALSE), IF(AND(AW61="oui", AX61="oui"), VLOOKUP(BJ61, data!$V$22:$Y$54, 3, FALSE), "" ) ) ) ) ) -> 
BO62: =IF(OR(AW62="", AX62=""), "", IF(AND(AW62="non", AX62="non"), SUMIFS(typelogement[SUH max], typelogement[Type], BJ62), IF(AND(AW62="oui", AX62="non"), SUMIFS(typelogement[SUH max], typelogement[Type], BJ62) * 1.1, IF(AND(AW62="non", AX62="oui"), VLOOKUP(BJ62, data!$P$22:$S$54, 3, FALSE), IF(AND(AW62="oui", AX62="oui"), VLOOKUP(BJ62, data!$V$22:$Y$54, 3, FALSE), "" ) ) ) ) ) -> 
V64: Commentaires | AA64: Commentaires | AF64: Commentaires | DT64: Commentaires

Sheet autres surfaces
B1: autres surfaces
B4: affectation à l' immeuble: | C4: type de surface utile hors logement abordable | D4: n° unité selon plan | E4: n° cadastre vertical | F4: étage | G4: adapté PMR | H4: Bailleur social/ Personne morale mandatée (gestion) | I4: surface utile m2 | K4: Ratios | L4: m2 total | M4: %
K5: Σ SU Bureaux | L5: =SUMIF(C5:C57,"Bureau",I5:I57) -> 0 | M5: =IFERROR(L5/$L$12,0) -> 0
K6: Σ SU Commerces | L6: =SUMIF(C5:C57,"Commerce",I5:I57) -> 0 | M6: =IFERROR(L6/$L$12,0) -> 0
K7: Σ SU Emplacements | L7: =SUMIF(C5:C57,"Emplacement",I5:I57) -> 0 | M7: 0
K8: Σ SU Salle divers | L8: =SUMIF(C5:C57,"Salle divers",I5:I57) -> 0 | M8: =IFERROR(L8/$L$12,0) -> 0
K9: Σ SU Bureaux/Commerces | L9: =SUMIF(C5:C57,"Bureau/Commerce",I5:I57) -> 0 | M9: =IFERROR(L9/$L$12,0) -> 0
K10: Σ SU Logement non-subventionné | L10: =SUMIF(C6:C58,"Logement non-subventionné",I6:I58) -> 0 | M10: =IFERROR(L10/$L$12,0) -> 0
K11: Σ SU Autres | L11: =SUMIF(C7:C59,"Autres",I7:I59) -> 0 | M11: =IFERROR(L11/$L$12,0) -> 0
K12: Σ total SU hors logement | L12: =SUM(L5:L11) -> 0 | M12: =SUM(M5:M11) -> 0

Sheet Vue Resumé (hidden)
A1: Maison
A3: n° lot | B3: Type de logement | C3: Typologie logement | D3: Destination | E3: bailleur social | F3: catégorie | G3: dédié | H3: [SUH] m2 logement | I3: [SUH maximale] m2 CDC logement | J3: Σ nombre d'emplacements par maison
F4: si dédié - afficher sous-catégorie
A7: Immeuble collective
A9: Nom de la résidence | B9: Σ nombre d'unités | C9: Σ [SUH] totale | D9: Destination (V/L/Mixte) | E9: Espace favorisant l'habitat (O/N) | F9: Ascenseur
A13: Appartement
A15: n° unité selon plan | B15: Type de logement | C15: Typologie logement | D15: Destination | E15: bailleur social | F15: catégorie | G15: dédié | H15: [SUH] m2 logement | I15: [SUH maximale] m2 CDC logement | J15: Σ nombre d'emplacements par maison
F16: si dédié - afficher sous-catégorie
A18: Autres surfaces
A20: affectation à l' immeuble: | B20: Catégorie surface utile hors logement | C20: étage | D20: adapté PMR | E20: Bailleur social/ Personne morale mandatée (gestion) | F20: SU m2

Sheet tableau recapitulatif M
A1: Unités de logements abordables
A3: 1. | C3: Unités de Logements | F3: N° cadastral | H3: Typologie logement principal | J3: location/vente | L3: Bailleur social | N3: Catégorie | P3: PMR | R3: N° cadastral Cave | T3: N° cadastral emplacement(s) | V3: -> Data -> Sort & Filter -> Reapply
C4: ='maison(s)'!E10 -> 0 | F4: ='maison(s)'!H10 -> 0 | H4: =IF('maison(s)'!W10="Oui", 'maison(s)'!Z10&"h",'maison(s)'!Z10) -> 0 | J4: ='maison(s)'!N10 -> 0 | L4: ='maison(s)'!M10 -> 0 | N4: ='maison(s)'!Y10 -> 0 | P4: ='maison(s)'!V10 -> 0 | R4: ='maison(s)'!CP10 -> 0 | T4: =CONCATENATE('maison(s)'!DU10," ",'maison(s)'!DY10," ",'maison(s)'!EC10," ",'maison(s)'!EG10," ",'maison(s)'!EK10) -> 
C5: ='maison(s)'!E11 -> 0 | F5: ='maison(s)'!H11 -> 0 | H5: =IF('maison(s)'!W11="Oui", 'maison(s)'!Z11&"h",'maison(s)'!Z11) -> 0 | J5: ='maison(s)'!N11 -> 0 | L5: ='maison(s)'!M11 -> 0 | N5: ='maison(s)'!Y11 -> 0 | P5: ='maison(s)'!V11 -> 0 | R5: ='maison(s)'!CP11 -> 0 | T5: =CONCATENATE('maison(s)'!DU11," ",'maison(s)'!DY11," ",'maison(s)'!EC11," ",'maison(s)'!EG11," ",'maison(s)'!EK11) -> 
C6: ='maison(s)'!E12 -> 0 | F6: ='maison(s)'!H12 -> 0 | H6: =IF('maison(s)'!W12="Oui", 'maison(s)'!Z12&"h",'maison(s)'!Z12) -> 0 | J6: ='maison(s)'!N12 -> 0 | L6: ='maison(s)'!M12 -> 0 | N6: ='maison(s)'!Y12 -> 0 | P6: ='maison(s)'!V12 -> 0 | R6: ='maison(s)'!CP12 -> 0 | T6: =CONCATENATE('maison(s)'!DU12," ",'maison(s)'!DY12," ",'maison(s)'!EC12," ",'maison(s)'!EG12," ",'maison(s)'!EK12) -> 
C7: ='maison(s)'!E13 -> 0 | F7: ='maison(s)'!H13 -> 0 | H7: =IF('maison(s)'!W13="Oui", 'maison(s)'!Z13&"h",'maison(s)'!Z13) -> 0 | J7: ='maison(s)'!N13 -> 0 | L7: ='maison(s)'!M13 -> 0 | N7: ='maison(s)'!Y13 -> 0 | P7: ='maison(s)'!V13 -> 0 | R7: ='maison(s)'!CP13 -> 0 | T7: =CONCATENATE('maison(s)'!DU13," ",'maison(s)'!DY13," ",'maison(s)'!EC13," ",'maison(s)'!EG13," ",'maison(s)'!EK13) -> 
C8: ='maison(s)'!E14 -> 0 | F8: ='maison(s)'!H14 -> 0 | H8: =IF('maison(s)'!W14="Oui", 'maison(s)'!Z14&"h",'maison(s)'!Z14) -> 0 | J8: ='maison(s)'!N14 -> 0 | L8: ='maison(s)'!M14 -> 0 | N8: ='maison(s)'!Y14 -> 0 | P8: ='maison(s)'!V14 -> 0 | R8: ='maison(s)'!CP14 -> 0 | T8: =CONCATENATE('maison(s)'!DU14," ",'maison(s)'!DY14," ",'maison(s)'!EC14," ",'maison(s)'!EG14," ",'maison(s)'!EK14) -> 
C9: ='maison(s)'!E15 -> 0 | F9: ='maison(s)'!H15 -> 0 | H9: =IF('maison(s)'!W15="Oui", 'maison(s)'!Z15&"h",'maison(s)'!Z15) -> 0 | J9: ='maison(s)'!N15 -> 0 | L9: ='maison(s)'!M15 -> 0 | N9: ='maison(s)'!Y15 -> 0 | P9: ='maison(s)'!V15 -> 0 | R9: ='maison(s)'!CP15 -> 0 | T9: =CONCATENATE('maison(s)'!DU15," ",'maison(s)'!DY15," ",'maison(s)'!EC15," ",'maison(s)'!EG15," ",'maison(s)'!EK15) -> 
C10: ='maison(s)'!E16 -> 0 | F10: ='maison(s)'!H16 -> 0 | H10: =IF('maison(s)'!W16="Oui", 'maison(s)'!Z16&"h",'maison(s)'!Z16) -> 0 | J10: ='maison(s)'!N16 -> 0 | L10: ='maison(s)'!M16 -> 0 | N10: ='maison(s)'!Y16 -> 0 | P10: ='maison(s)'!V16 -> 0 | R10: ='maison(s)'!CP16 -> 0 | T10: =CONCATENATE('maison(s)'!DU16," ",'maison(s)'!DY16," ",'maison(s)'!EC16," ",'maison(s)'!EG16," ",'maison(s)'!EK16) -> 
C11: ='maison(s)'!E17 -> 0 | F11: ='maison(s)'!H17 -> 0 | H11: =IF('maison(s)'!W17="Oui", 'maison(s)'!Z17&"h",'maison(s)'!Z17) -> 0 | J11: ='maison(s)'!N17 -> 0 | L11: ='maison(s)'!M17 -> 0 | N11: ='maison(s)'!Y17 -> 0 | P11: ='maison(s)'!V17 -> 0 | R11: ='maison(s)'!CP17 -> 0 | T11: =CONCATENATE('maison(s)'!DU17," ",'maison(s)'!DY17," ",'maison(s)'!EC17," ",'maison(s)'!EG17," ",'maison(s)'!EK17) -> 
C12: ='maison(s)'!E18 -> 0 | F12: ='maison(s)'!H18 -> 0 | H12: =IF('maison(s)'!W18="Oui", 'maison(s)'!Z18&"h",'maison(s)'!Z18) -> 0 | J12: ='maison(s)'!N18 -> 0 | L12: ='maison(s)'!M18 -> 0 | N12: ='maison(s)'!Y18 -> 0 | P12: ='maison(s)'!V18 -> 0 | R12: ='maison(s)'!CP18 -> 0 | T12: =CONCATENATE('maison(s)'!DU18," ",'maison(s)'!DY18," ",'maison(s)'!EC18," ",'maison(s)'!EG18," ",'maison(s)'!EK18) -> 
C13: ='maison(s)'!E19 -> 0 | F13: ='maison(s)'!H19 -> 0 | H13: =IF('maison(s)'!W19="Oui", 'maison(s)'!Z19&"h",'maison(s)'!Z19) -> 0 | J13: ='maison(s)'!N19 -> 0 | L13: ='maison(s)'!M19 -> 0 | N13: ='maison(s)'!Y19 -> 0 | P13: ='maison(s)'!V19 -> 0 | R13: ='maison(s)'!CP19 -> 0 | T13: =CONCATENATE('maison(s)'!DU19," ",'maison(s)'!DY19," ",'maison(s)'!EC19," ",'maison(s)'!EG19," ",'maison(s)'!EK19) -> 
C14: ='maison(s)'!E20 -> 0 | F14: ='maison(s)'!H20 -> 0 | H14: =IF('maison(s)'!W20="Oui", 'maison(s)'!Z20&"h",'maison(s)'!Z20) -> 0 | J14: ='maison(s)'!N20 -> 0 | L14: ='maison(s)'!M20 -> 0 | N14: ='maison(s)'!Y20 -> 0 | P14: ='maison(s)'!V20 -> 0 | R14: ='maison(s)'!CP20 -> 0 | T14: =CONCATENATE('maison(s)'!DU20," ",'maison(s)'!DY20," ",'maison(s)'!EC20," ",'maison(s)'!EG20," ",'maison(s)'!EK20) -> 
C15: ='maison(s)'!E21 -> 0 | F15: ='maison(s)'!H21 -> 0 | H15: =IF('maison(s)'!W21="Oui", 'maison(s)'!Z21&"h",'maison(s)'!Z21) -> 0 | J15: ='maison(s)'!N21 -> 0 | L15: ='maison(s)'!M21 -> 0 | N15: ='maison(s)'!Y21 -> 0 | P15: ='maison(s)'!V21 -> 0 | R15: ='maison(s)'!CP21 -> 0 | T15: =CONCATENATE('maison(s)'!DU21," ",'maison(s)'!DY21," ",'maison(s)'!EC21," ",'maison(s)'!EG21," ",'maison(s)'!EK21) -> 
C16: ='maison(s)'!E22 -> 0 | F16: ='maison(s)'!H22 -> 0 | H16: =IF('maison(s)'!W22="Oui", 'maison(s)'!Z22&"h",'maison(s)'!Z22) -> 0 | J16: ='maison(s)'!N22 -> 0 | L16: ='maison(s)'!M22 -> 0 | N16: ='maison(s)'!Y22 -> 0 | P16: ='maison(s)'!V22 -> 0 | R16: ='maison(s)'!CP22 -> 0 | T16: =CONCATENATE('maison(s)'!DU22," ",'maison(s)'!DY22," ",'maison(s)'!EC22," ",'maison(s)'!EG22," ",'maison(s)'!EK22) -> 
C17: ='maison(s)'!E23 -> 0 | F17: ='maison(s)'!H23 -> 0 | H17: =IF('maison(s)'!W23="Oui", 'maison(s)'!Z23&"h",'maison(s)'!Z23) -> 0 | J17: ='maison(s)'!N23 -> 0 | L17: ='maison(s)'!M23 -> 0 | N17: ='maison(s)'!Y23 -> 0 | P17: ='maison(s)'!V23 -> 0 | R17: ='maison(s)'!CP23 -> 0 | T17: =CONCATENATE('maison(s)'!DU23," ",'maison(s)'!DY23," ",'maison(s)'!EC23," ",'maison(s)'!EG23," ",'maison(s)'!EK23) -> 
C18: ='maison(s)'!E24 -> 0 | F18: ='maison(s)'!H24 -> 0 | H18: =IF('maison(s)'!W24="Oui", 'maison(s)'!Z24&"h",'maison(s)'!Z24) -> 0 | J18: ='maison(s)'!N24 -> 0 | L18: ='maison(s)'!M24 -> 0 | N18: ='maison(s)'!Y24 -> 0 | P18: ='maison(s)'!V24 -> 0 | R18: ='maison(s)'!CP24 -> 0 | T18: =CONCATENATE('maison(s)'!DU24," ",'maison(s)'!DY24," ",'maison(s)'!EC24," ",'maison(s)'!EG24," ",'maison(s)'!EK24) -> 
C19: ='maison(s)'!E25 -> 0 | F19: ='maison(s)'!H25 -> 0 | H19: =IF('maison(s)'!W25="Oui", 'maison(s)'!Z25&"h",'maison(s)'!Z25) -> 0 | J19: ='maison(s)'!N25 -> 0 | L19: ='maison(s)'!M25 -> 0 | N19: ='maison(s)'!Y25 -> 0 | P19: ='maison(s)'!V25 -> 0 | R19: ='maison(s)'!CP25 -> 0 | T19: =CONCATENATE('maison(s)'!DU25," ",'maison(s)'!DY25," ",'maison(s)'!EC25," ",'maison(s)'!EG25," ",'maison(s)'!EK25) -> 
C20: ='maison(s)'!E26 -> 0 | F20: ='maison(s)'!H26 -> 0 | H20: =IF('maison(s)'!W26="Oui", 'maison(s)'!Z26&"h",'maison(s)'!Z26) -> 0 | J20: ='maison(s)'!N26 -> 0 | L20: ='maison(s)'!M26 -> 0 | N20: ='maison(s)'!Y26 -> 0 | P20: ='maison(s)'!V26 -> 0 | R20: ='maison(s)'!CP26 -> 0 | T20: =CONCATENATE('maison(s)'!DU26," ",'maison(s)'!DY26," ",'maison(s)'!EC26," ",'maison(s)'!EG26," ",'maison(s)'!EK26) -> 
C21: ='maison(s)'!E27 -> 0 | F21: ='maison(s)'!H27 -> 0 | H21: =IF('maison(s)'!W27="Oui", 'maison(s)'!Z27&"h",'maison(s)'!Z27) -> 0 | J21: ='maison(s)'!N27 -> 0 | L21: ='maison(s)'!M27 -> 0 | N21: ='maison(s)'!Y27 -> 0 | P21: ='maison(s)'!V27 -> 0 | R21: ='maison(s)'!CP27 -> 0 | T21: =CONCATENATE('maison(s)'!DU27," ",'maison(s)'!DY27," ",'maison(s)'!EC27," ",'maison(s)'!EG27," ",'maison(s)'!EK27) -> 
C22: ='maison(s)'!E28 -> 0 | F22: ='maison(s)'!H28 -> 0 | H22: =IF('maison(s)'!W28="Oui", 'maison(s)'!Z28&"h",'maison(s)'!Z28) -> 0 | J22: ='maison(s)'!N28 -> 0 | L22: ='maison(s)'!M28 -> 0 | N22: ='maison(s)'!Y28 -> 0 | P22: ='maison(s)'!V28 -> 0 | R22: ='maison(s)'!CP28 -> 0 | T22: =CONCATENATE('maison(s)'!DU28," ",'maison(s)'!DY28," ",'maison(s)'!EC28," ",'maison(s)'!EG28," ",'maison(s)'!EK28) -> 
C23: ='maison(s)'!E29 -> 0 | F23: ='maison(s)'!H29 -> 0 | H23: =IF('maison(s)'!W29="Oui", 'maison(s)'!Z29&"h",'maison(s)'!Z29) -> 0 | J23: ='maison(s)'!N29 -> 0 | L23: ='maison(s)'!M29 -> 0 | N23: ='maison(s)'!Y29 -> 0 | P23: ='maison(s)'!V29 -> 0 | R23: ='maison(s)'!CP29 -> 0 | T23: =CONCATENATE('maison(s)'!DU29," ",'maison(s)'!DY29," ",'maison(s)'!EC29," ",'maison(s)'!EG29," ",'maison(s)'!EK29) -> 
C24: ='maison(s)'!E30 -> 0 | F24: ='maison(s)'!H30 -> 0 | H24: =IF('maison(s)'!W30="Oui", 'maison(s)'!Z30&"h",'maison(s)'!Z30) -> 0 | J24: ='maison(s)'!N30 -> 0 | L24: ='maison(s)'!M30 -> 0 | N24: ='maison(s)'!Y30 -> 0 | P24: ='maison(s)'!V30 -> 0 | R24: ='maison(s)'!CP30 -> 0 | T24: =CONCATENATE('maison(s)'!DU30," ",'maison(s)'!DY30," ",'maison(s)'!EC30," ",'maison(s)'!EG30," ",'maison(s)'!EK30) -> 
C25: ='maison(s)'!E31 -> 0 | F25: ='maison(s)'!H31 -> 0 | H25: =IF('maison(s)'!W31="Oui", 'maison(s)'!Z31&"h",'maison(s)'!Z31) -> 0 | J25: ='maison(s)'!N31 -> 0 | L25: ='maison(s)'!M31 -> 0 | N25: ='maison(s)'!Y31 -> 0 | P25: ='maison(s)'!V31 -> 0 | R25: ='maison(s)'!CP31 -> 0 | T25: =CONCATENATE('maison(s)'!DU31," ",'maison(s)'!DY31," ",'maison(s)'!EC31," ",'maison(s)'!EG31," ",'maison(s)'!EK31) -> 
C26: ='maison(s)'!E32 -> 0 | F26: ='maison(s)'!H32 -> 0 | H26: =IF('maison(s)'!W32="Oui", 'maison(s)'!Z32&"h",'maison(s)'!Z32) -> 0 | J26: ='maison(s)'!N32 -> 0 | L26: ='maison(s)'!M32 -> 0 | N26: ='maison(s)'!Y32 -> 0 | P26: ='maison(s)'!V32 -> 0 | R26: ='maison(s)'!CP32 -> 0 | T26: =CONCATENATE('maison(s)'!DU32," ",'maison(s)'!DY32," ",'maison(s)'!EC32," ",'maison(s)'!EG32," ",'maison(s)'!EK32) -> 
C27: ='maison(s)'!E33 -> 0 | F27: ='maison(s)'!H33 -> 0 | H27: =IF('maison(s)'!W33="Oui", 'maison(s)'!Z33&"h",'maison(s)'!Z33) -> 0 | J27: ='maison(s)'!N33 -> 0 | L27: ='maison(s)'!M33 -> 0 | N27: ='maison(s)'!Y33 -> 0 | P27: ='maison(s)'!V33 -> 0 | R27: ='maison(s)'!CP33 -> 0 | T27: =CONCATENATE('maison(s)'!DU33," ",'maison(s)'!DY33," ",'maison(s)'!EC33," ",'maison(s)'!EG33," ",'maison(s)'!EK33) -> 
C28: ='maison(s)'!E34 -> 0 | F28: ='maison(s)'!H34 -> 0 | H28: =IF('maison(s)'!W34="Oui", 'maison(s)'!Z34&"h",'maison(s)'!Z34) -> 0 | J28: ='maison(s)'!N34 -> 0 | L28: ='maison(s)'!M34 -> 0 | N28: ='maison(s)'!Y34 -> 0 | P28: ='maison(s)'!V34 -> 0 | R28: ='maison(s)'!CP34 -> 0 | T28: =CONCATENATE('maison(s)'!DU34," ",'maison(s)'!DY34," ",'maison(s)'!EC34," ",'maison(s)'!EG34," ",'maison(s)'!EK34) -> 
C29: ='maison(s)'!E35 -> 0 | F29: ='maison(s)'!H35 -> 0 | H29: =IF('maison(s)'!W35="Oui", 'maison(s)'!Z35&"h",'maison(s)'!Z35) -> 0 | J29: ='maison(s)'!N35 -> 0 | L29: ='maison(s)'!M35 -> 0 | N29: ='maison(s)'!Y35 -> 0 | P29: ='maison(s)'!V35 -> 0 | R29: ='maison(s)'!CP35 -> 0 | T29: =CONCATENATE('maison(s)'!DU35," ",'maison(s)'!DY35," ",'maison(s)'!EC35," ",'maison(s)'!EG35," ",'maison(s)'!EK35) -> 
C30: ='maison(s)'!E36 -> 0 | F30: ='maison(s)'!H36 -> 0 | H30: =IF('maison(s)'!W36="Oui", 'maison(s)'!Z36&"h",'maison(s)'!Z36) -> 0 | J30: ='maison(s)'!N36 -> 0 | L30: ='maison(s)'!M36 -> 0 | N30: ='maison(s)'!Y36 -> 0 | P30: ='maison(s)'!V36 -> 0 | R30: ='maison(s)'!CP36 -> 0 | T30: =CONCATENATE('maison(s)'!DU36," ",'maison(s)'!DY36," ",'maison(s)'!EC36," ",'maison(s)'!EG36," ",'maison(s)'!EK36) -> 
C31: ='maison(s)'!E37 -> 0 | F31: ='maison(s)'!H37 -> 0 | H31: =IF('maison(s)'!W37="Oui", 'maison(s)'!Z37&"h",'maison(s)'!Z37) -> 0 | J31: ='maison(s)'!N37 -> 0 | L31: ='maison(s)'!M37 -> 0 | N31: ='maison(s)'!Y37 -> 0 | P31: ='maison(s)'!V37 -> 0 | R31: ='maison(s)'!CP37 -> 0 | T31: =CONCATENATE('maison(s)'!DU37," ",'maison(s)'!DY37," ",'maison(s)'!EC37," ",'maison(s)'!EG37," ",'maison(s)'!EK37) -> 
C32: ='maison(s)'!E38 -> 0 | F32: ='maison(s)'!H38 -> 0 | H32: =IF('maison(s)'!W38="Oui", 'maison(s)'!Z38&"h",'maison(s)'!Z38) -> 0 | J32: ='maison(s)'!N38 -> 0 | L32: ='maison(s)'!M38 -> 0 | N32: ='maison(s)'!Y38 -> 0 | P32: ='maison(s)'!V38 -> 0 | R32: ='maison(s)'!CP38 -> 0 | T32: =CONCATENATE('maison(s)'!DU38," ",'maison(s)'!DY38," ",'maison(s)'!EC38," ",'maison(s)'!EG38," ",'maison(s)'!EK38) -> 
C33: ='maison(s)'!E39 -> 0 | F33: ='maison(s)'!H39 -> 0 | H33: =IF('maison(s)'!W39="Oui", 'maison(s)'!Z39&"h",'maison(s)'!Z39) -> 0 | J33: ='maison(s)'!N39 -> 0 | L33: ='maison(s)'!M39 -> 0 | N33: ='maison(s)'!Y39 -> 0 | P33: ='maison(s)'!V39 -> 0 | R33: ='maison(s)'!CP39 -> 0 | T33: =CONCATENATE('maison(s)'!DU39," ",'maison(s)'!DY39," ",'maison(s)'!EC39," ",'maison(s)'!EG39," ",'maison(s)'!EK39) -> 
C34: ='maison(s)'!E40 -> 0 | F34: ='maison(s)'!H40 -> 0 | H34: =IF('maison(s)'!W40="Oui", 'maison(s)'!Z40&"h",'maison(s)'!Z40) -> 0 | J34: ='maison(s)'!N40 -> 0 | L34: ='maison(s)'!M40 -> 0 | N34: ='maison(s)'!Y40 -> 0 | P34: ='maison(s)'!V40 -> 0 | R34: ='maison(s)'!CP40 -> 0 | T34: =CONCATENATE('maison(s)'!DU40," ",'maison(s)'!DY40," ",'maison(s)'!EC40," ",'maison(s)'!EG40," ",'maison(s)'!EK40) -> 
C35: ='maison(s)'!E41 -> 0 | F35: ='maison(s)'!H41 -> 0 | H35: =IF('maison(s)'!W41="Oui", 'maison(s)'!Z41&"h",'maison(s)'!Z41) -> 0 | J35: ='maison(s)'!N41 -> 0 | L35: ='maison(s)'!M41 -> 0 | N35: ='maison(s)'!Y41 -> 0 | P35: ='maison(s)'!V41 -> 0 | R35: ='maison(s)'!CP41 -> 0 | T35: =CONCATENATE('maison(s)'!DU41," ",'maison(s)'!DY41," ",'maison(s)'!EC41," ",'maison(s)'!EG41," ",'maison(s)'!EK41) -> 
C36: ='maison(s)'!E42 -> 0 | F36: ='maison(s)'!H42 -> 0 | H36: =IF('maison(s)'!W42="Oui", 'maison(s)'!Z42&"h",'maison(s)'!Z42) -> 0 | J36: ='maison(s)'!N42 -> 0 | L36: ='maison(s)'!M42 -> 0 | N36: ='maison(s)'!Y42 -> 0 | P36: ='maison(s)'!V42 -> 0 | R36: ='maison(s)'!CP42 -> 0 | T36: =CONCATENATE('maison(s)'!DU42," ",'maison(s)'!DY42," ",'maison(s)'!EC42," ",'maison(s)'!EG42," ",'maison(s)'!EK42) -> 
C37: ='maison(s)'!E43 -> 0 | F37: ='maison(s)'!H43 -> 0 | H37: =IF('maison(s)'!W43="Oui", 'maison(s)'!Z43&"h",'maison(s)'!Z43) -> 0 | J37: ='maison(s)'!N43 -> 0 | L37: ='maison(s)'!M43 -> 0 | N37: ='maison(s)'!Y43 -> 0 | P37: ='maison(s)'!V43 -> 0 | R37: ='maison(s)'!CP43 -> 0 | T37: =CONCATENATE('maison(s)'!DU43," ",'maison(s)'!DY43," ",'maison(s)'!EC43," ",'maison(s)'!EG43," ",'maison(s)'!EK43) -> 
C38: ='maison(s)'!E44 -> 0 | F38: ='maison(s)'!H44 -> 0 | H38: =IF('maison(s)'!W44="Oui", 'maison(s)'!Z44&"h",'maison(s)'!Z44) -> 0 | J38: ='maison(s)'!N44 -> 0 | L38: ='maison(s)'!M44 -> 0 | N38: ='maison(s)'!Y44 -> 0 | P38: ='maison(s)'!V44 -> 0 | R38: ='maison(s)'!CP44 -> 0 | T38: =CONCATENATE('maison(s)'!DU44," ",'maison(s)'!DY44," ",'maison(s)'!EC44," ",'maison(s)'!EG44," ",'maison(s)'!EK44) -> 
C39: ='maison(s)'!E45 -> 0 | F39: ='maison(s)'!H45 -> 0 | H39: =IF('maison(s)'!W45="Oui", 'maison(s)'!Z45&"h",'maison(s)'!Z45) -> 0 | J39: ='maison(s)'!N45 -> 0 | L39: ='maison(s)'!M45 -> 0 | N39: ='maison(s)'!Y45 -> 0 | P39: ='maison(s)'!V45 -> 0 | R39: ='maison(s)'!CP45 -> 0 | T39: =CONCATENATE('maison(s)'!DU45," ",'maison(s)'!DY45," ",'maison(s)'!EC45," ",'maison(s)'!EG45," ",'maison(s)'!EK45) -> 
C40: ='maison(s)'!E46 -> 0 | F40: ='maison(s)'!H46 -> 0 | H40: =IF('maison(s)'!W46="Oui", 'maison(s)'!Z46&"h",'maison(s)'!Z46) -> 0 | J40: ='maison(s)'!N46 -> 0 | L40: ='maison(s)'!M46 -> 0 | N40: ='maison(s)'!Y46 -> 0 | P40: ='maison(s)'!V46 -> 0 | R40: ='maison(s)'!CP46 -> 0 | T40: =CONCATENATE('maison(s)'!DU46," ",'maison(s)'!DY46," ",'maison(s)'!EC46," ",'maison(s)'!EG46," ",'maison(s)'!EK46) -> 
C41: ='maison(s)'!E47 -> 0 | F41: ='maison(s)'!H47 -> 0 | H41: =IF('maison(s)'!W47="Oui", 'maison(s)'!Z47&"h",'maison(s)'!Z47) -> 0 | J41: ='maison(s)'!N47 -> 0 | L41: ='maison(s)'!M47 -> 0 | N41: ='maison(s)'!Y47 -> 0 | P41: ='maison(s)'!V47 -> 0 | R41: ='maison(s)'!CP47 -> 0 | T41: =CONCATENATE('maison(s)'!DU47," ",'maison(s)'!DY47," ",'maison(s)'!EC47," ",'maison(s)'!EG47," ",'maison(s)'!EK47) -> 
C42: ='maison(s)'!E48 -> 0 | F42: ='maison(s)'!H48 -> 0 | H42: =IF('maison(s)'!W48="Oui", 'maison(s)'!Z48&"h",'maison(s)'!Z48) -> 0 | J42: ='maison(s)'!N48 -> 0 | L42: ='maison(s)'!M48 -> 0 | N42: ='maison(s)'!Y48 -> 0 | P42: ='maison(s)'!V48 -> 0 | R42: ='maison(s)'!CP48 -> 0 | T42: =CONCATENATE('maison(s)'!DU48," ",'maison(s)'!DY48," ",'maison(s)'!EC48," ",'maison(s)'!EG48," ",'maison(s)'!EK48) -> 
C43: ='maison(s)'!E49 -> 0 | F43: ='maison(s)'!H49 -> 0 | H43: =IF('maison(s)'!W49="Oui", 'maison(s)'!Z49&"h",'maison(s)'!Z49) -> 0 | J43: ='maison(s)'!N49 -> 0 | L43: ='maison(s)'!M49 -> 0 | N43: ='maison(s)'!Y49 -> 0 | P43: ='maison(s)'!V49 -> 0 | R43: ='maison(s)'!CP49 -> 0 | T43: =CONCATENATE('maison(s)'!DU49," ",'maison(s)'!DY49," ",'maison(s)'!EC49," ",'maison(s)'!EG49," ",'maison(s)'!EK49) -> 
C44: ='maison(s)'!E50 -> 0 | F44: ='maison(s)'!H50 -> 0 | H44: =IF('maison(s)'!W50="Oui", 'maison(s)'!Z50&"h",'maison(s)'!Z50) -> 0 | J44: ='maison(s)'!N50 -> 0 | L44: ='maison(s)'!M50 -> 0 | N44: ='maison(s)'!Y50 -> 0 | P44: ='maison(s)'!V50 -> 0 | R44: ='maison(s)'!CP50 -> 0 | T44: =CONCATENATE('maison(s)'!DU50," ",'maison(s)'!DY50," ",'maison(s)'!EC50," ",'maison(s)'!EG50," ",'maison(s)'!EK50) -> 
C45: ='maison(s)'!E51 -> 0 | F45: ='maison(s)'!H51 -> 0 | H45: =IF('maison(s)'!W51="Oui", 'maison(s)'!Z51&"h",'maison(s)'!Z51) -> 0 | J45: ='maison(s)'!N51 -> 0 | L45: ='maison(s)'!M51 -> 0 | N45: ='maison(s)'!Y51 -> 0 | P45: ='maison(s)'!V51 -> 0 | R45: ='maison(s)'!CP51 -> 0 | T45: =CONCATENATE('maison(s)'!DU51," ",'maison(s)'!DY51," ",'maison(s)'!EC51," ",'maison(s)'!EG51," ",'maison(s)'!EK51) -> 
C46: ='maison(s)'!E52 -> 0 | F46: ='maison(s)'!H52 -> 0 | H46: =IF('maison(s)'!W52="Oui", 'maison(s)'!Z52&"h",'maison(s)'!Z52) -> 0 | J46: ='maison(s)'!N52 -> 0 | L46: ='maison(s)'!M52 -> 0 | N46: ='maison(s)'!Y52 -> 0 | P46: ='maison(s)'!V52 -> 0 | R46: ='maison(s)'!CP52 -> 0 | T46: =CONCATENATE('maison(s)'!DU52," ",'maison(s)'!DY52," ",'maison(s)'!EC52," ",'maison(s)'!EG52," ",'maison(s)'!EK52) -> 
C47: ='maison(s)'!E53 -> 0 | F47: ='maison(s)'!H53 -> 0 | H47: =IF('maison(s)'!W53="Oui", 'maison(s)'!Z53&"h",'maison(s)'!Z53) -> 0 | J47: ='maison(s)'!N53 -> 0 | L47: ='maison(s)'!M53 -> 0 | N47: ='maison(s)'!Y53 -> 0 | P47: ='maison(s)'!V53 -> 0 | R47: ='maison(s)'!CP53 -> 0 | T47: =CONCATENATE('maison(s)'!DU53," ",'maison(s)'!DY53," ",'maison(s)'!EC53," ",'maison(s)'!EG53," ",'maison(s)'!EK53) -> 
C48: ='maison(s)'!E54 -> 0 | F48: ='maison(s)'!H54 -> 0 | H48: =IF('maison(s)'!W54="Oui", 'maison(s)'!Z54&"h",'maison(s)'!Z54) -> 0 | J48: ='maison(s)'!N54 -> 0 | L48: ='maison(s)'!M54 -> 0 | N48: ='maison(s)'!Y54 -> 0 | P48: ='maison(s)'!V54 -> 0 | R48: ='maison(s)'!CP54 -> 0 | T48: =CONCATENATE('maison(s)'!DU54," ",'maison(s)'!DY54," ",'maison(s)'!EC54," ",'maison(s)'!EG54," ",'maison(s)'!EK54) -> 
C49: ='maison(s)'!E55 -> 0 | F49: ='maison(s)'!H55 -> 0 | H49: =IF('maison(s)'!W55="Oui", 'maison(s)'!Z55&"h",'maison(s)'!Z55) -> 0 | J49: ='maison(s)'!N55 -> 0 | L49: ='maison(s)'!M55 -> 0 | N49: ='maison(s)'!Y55 -> 0 | P49: ='maison(s)'!V55 -> 0 | R49: ='maison(s)'!CP55 -> 0 | T49: =CONCATENATE('maison(s)'!DU55," ",'maison(s)'!DY55," ",'maison(s)'!EC55," ",'maison(s)'!EG55," ",'maison(s)'!EK55) -> 
C50: ='maison(s)'!E56 -> 0 | F50: ='maison(s)'!H56 -> 0 | H50: =IF('maison(s)'!W56="Oui", 'maison(s)'!Z56&"h",'maison(s)'!Z56) -> 0 | J50: ='maison(s)'!N56 -> 0 | L50: ='maison(s)'!M56 -> 0 | N50: ='maison(s)'!Y56 -> 0 | P50: ='maison(s)'!V56 -> 0 | R50: ='maison(s)'!CP56 -> 0 | T50: =CONCATENATE('maison(s)'!DU56," ",'maison(s)'!DY56," ",'maison(s)'!EC56," ",'maison(s)'!EG56," ",'maison(s)'!EK56) -> 
C51: ='maison(s)'!E57 -> 0 | F51: ='maison(s)'!H57 -> 0 | H51: =IF('maison(s)'!W57="Oui", 'maison(s)'!Z57&"h",'maison(s)'!Z57) -> 0 | J51: ='maison(s)'!N57 -> 0 | L51: ='maison(s)'!M57 -> 0 | N51: ='maison(s)'!Y57 -> 0 | P51: ='maison(s)'!V57 -> 0 | R51: ='maison(s)'!CP57 -> 0 | T51: =CONCATENATE('maison(s)'!DU57," ",'maison(s)'!DY57," ",'maison(s)'!EC57," ",'maison(s)'!EG57," ",'maison(s)'!EK57) -> 
C52: ='maison(s)'!E58 -> 0 | F52: ='maison(s)'!H58 -> 0 | H52: =IF('maison(s)'!W58="Oui", 'maison(s)'!Z58&"h",'maison(s)'!Z58) -> 0 | J52: ='maison(s)'!N58 -> 0 | L52: ='maison(s)'!M58 -> 0 | N52: ='maison(s)'!Y58 -> 0 | P52: ='maison(s)'!V58 -> 0 | R52: ='maison(s)'!CP58 -> 0 | T52: =CONCATENATE('maison(s)'!DU58," ",'maison(s)'!DY58," ",'maison(s)'!EC58," ",'maison(s)'!EG58," ",'maison(s)'!EK58) -> 
C53: ='maison(s)'!E59 -> 0 | F53: ='maison(s)'!H59 -> 0 | H53: =IF('maison(s)'!W59="Oui", 'maison(s)'!Z59&"h",'maison(s)'!Z59) -> 0 | J53: ='maison(s)'!N59 -> 0 | L53: ='maison(s)'!M59 -> 0 | N53: ='maison(s)'!Y59 -> 0 | P53: ='maison(s)'!V59 -> 0 | R53: ='maison(s)'!CP59 -> 0 | T53: =CONCATENATE('maison(s)'!DU59," ",'maison(s)'!DY59," ",'maison(s)'!EC59," ",'maison(s)'!EG59," ",'maison(s)'!EK59) -> 
C54: ='maison(s)'!E60 -> 0 | F54: ='maison(s)'!H60 -> 0 | H54: =IF('maison(s)'!W60="Oui", 'maison(s)'!Z60&"h",'maison(s)'!Z60) -> 0 | J54: ='maison(s)'!N60 -> 0 | L54: ='maison(s)'!M60 -> 0 | N54: ='maison(s)'!Y60 -> 0 | P54: ='maison(s)'!V60 -> 0 | R54: ='maison(s)'!CP60 -> 0 | T54: =CONCATENATE('maison(s)'!DU60," ",'maison(s)'!DY60," ",'maison(s)'!EC60," ",'maison(s)'!EG60," ",'maison(s)'!EK60) -> 
C55: ='maison(s)'!E61 -> 0 | F55: ='maison(s)'!H61 -> 0 | H55: =IF('maison(s)'!W61="Oui", 'maison(s)'!Z61&"h",'maison(s)'!Z61) -> 0 | J55: ='maison(s)'!N61 -> 0 | L55: ='maison(s)'!M61 -> 0 | N55: ='maison(s)'!Y61 -> 0 | P55: ='maison(s)'!V61 -> 0 | R55: ='maison(s)'!CP61 -> 0 | T55: =CONCATENATE('maison(s)'!DU61," ",'maison(s)'!DY61," ",'maison(s)'!EC61," ",'maison(s)'!EG61," ",'maison(s)'!EK61) -> 
A56: 2. | C56: Autres surfaces | F56: 0
C57: =+IF('autres surfaces'!B5="",'autres surfaces'!C5,"") -> 0 | F57: =IF('autres surfaces'!B5="maison",'autres surfaces'!E5,"") ->  | L57: =IF('autres surfaces'!B5="maison",'autres surfaces'!H5,"") ->  | P57: =IF('autres surfaces'!B5="maison",'autres surfaces'!G5,"") -> 
C58: =+IF('autres surfaces'!B6="",'autres surfaces'!C6,"") -> 0 | F58: =IF('autres surfaces'!B6="maison",'autres surfaces'!E6,"") ->  | L58: =IF('autres surfaces'!B6="maison",'autres surfaces'!H6,"") ->  | P58: =IF('autres surfaces'!B6="maison",'autres surfaces'!G6,"") -> 
C59: =+IF('autres surfaces'!B7="",'autres surfaces'!C7,"") -> 0 | F59: =IF('autres surfaces'!B7="maison",'autres surfaces'!E7,"") ->  | L59: =IF('autres surfaces'!B7="maison",'autres surfaces'!H7,"") ->  | P59: =IF('autres surfaces'!B7="maison",'autres surfaces'!G7,"") -> 
C60: =+IF('autres surfaces'!B8="",'autres surfaces'!C8,"") -> 0 | F60: =IF('autres surfaces'!B8="maison",'autres surfaces'!E8,"") ->  | L60: =IF('autres surfaces'!B8="maison",'autres surfaces'!H8,"") ->  | P60: =IF('autres surfaces'!B8="maison",'autres surfaces'!G8,"") -> 
C61: =+IF('autres surfaces'!B9="",'autres surfaces'!C9,"") -> 0 | F61: =IF('autres surfaces'!B9="maison",'autres surfaces'!E9,"") ->  | L61: =IF('autres surfaces'!B9="maison",'autres surfaces'!H9,"") ->  | P61: =IF('autres surfaces'!B9="maison",'autres surfaces'!G9,"") -> 
C62: =+IF('autres surfaces'!B10="",'autres surfaces'!C10,"") -> 0 | F62: =IF('autres surfaces'!B10="maison",'autres surfaces'!E10,"") ->  | L62: =IF('autres surfaces'!B10="maison",'autres surfaces'!H10,"") ->  | P62: =IF('autres surfaces'!B10="maison",'autres surfaces'!G10,"") -> 
C63: =+IF('autres surfaces'!B11="",'autres surfaces'!C11,"") -> 0 | F63: =IF('autres surfaces'!B11="maison",'autres surfaces'!E11,"") ->  | L63: =IF('autres surfaces'!B11="maison",'autres surfaces'!H11,"") ->  | P63: =IF('autres surfaces'!B11="maison",'autres surfaces'!G11,"") -> 
C64: =+IF('autres surfaces'!B12="",'autres surfaces'!C12,"") -> 0 | F64: =IF('autres surfaces'!B12="maison",'autres surfaces'!E12,"") ->  | L64: =IF('autres surfaces'!B12="maison",'autres surfaces'!H12,"") ->  | P64: =IF('autres surfaces'!B12="maison",'autres surfaces'!G12,"") -> 
C65: =+IF('autres surfaces'!B13="",'autres surfaces'!C13,"") -> 0 | F65: =IF('autres surfaces'!B13="maison",'autres surfaces'!E13,"") ->  | L65: =IF('autres surfaces'!B13="maison",'autres surfaces'!H13,"") ->  | P65: =IF('autres surfaces'!B13="maison",'autres surfaces'!G13,"") -> 
C66: =+IF('autres surfaces'!B14="",'autres surfaces'!C14,"") -> 0 | F66: =IF('autres surfaces'!B14="maison",'autres surfaces'!E14,"") ->  | L66: =IF('autres surfaces'!B14="maison",'autres surfaces'!H14,"") ->  | P66: =IF('autres surfaces'!B14="maison",'autres surfaces'!G14,"") -> 
C67: =+IF('autres surfaces'!B15="",'autres surfaces'!C15,"") -> 0 | F67: =IF('autres surfaces'!B15="maison",'autres surfaces'!E15,"") ->  | L67: =IF('autres surfaces'!B15="maison",'autres surfaces'!H15,"") ->  | P67: =IF('autres surfaces'!B15="maison",'autres surfaces'!G15,"") -> 
C68: =+IF('autres surfaces'!B16="",'autres surfaces'!C16,"") -> 0 | F68: =IF('autres surfaces'!B16="maison",'autres surfaces'!E16,"") ->  | L68: =IF('autres surfaces'!B16="maison",'autres surfaces'!H16,"") ->  | P68: =IF('autres surfaces'!B16="maison",'autres surfaces'!G16,"") -> 
C69: =+IF('autres surfaces'!B17="",'autres surfaces'!C17,"") -> 0 | F69: =IF('autres surfaces'!B17="maison",'autres surfaces'!E17,"") ->  | L69: =IF('autres surfaces'!B17="maison",'autres surfaces'!H17,"") ->  | P69: =IF('autres surfaces'!B17="maison",'autres surfaces'!G17,"") -> 
C70: =+IF('autres surfaces'!B18="",'autres surfaces'!C18,"") -> 0 | F70: =IF('autres surfaces'!B18="maison",'autres surfaces'!E18,"") ->  | L70: =IF('autres surfaces'!B18="maison",'autres surfaces'!H18,"") ->  | P70: =IF('autres surfaces'!B18="maison",'autres surfaces'!G18,"") -> 
C71: =+IF('autres surfaces'!B19="",'autres surfaces'!C19,"") -> 0 | F71: =IF('autres surfaces'!B19="maison",'autres surfaces'!E19,"") ->  | L71: =IF('autres surfaces'!B19="maison",'autres surfaces'!H19,"") ->  | P71: =IF('autres surfaces'!B19="maison",'autres surfaces'!G19,"") -> 
C72: =+IF('autres surfaces'!B20="",'autres surfaces'!C20,"") -> 0 | F72: =IF('autres surfaces'!B20="maison",'autres surfaces'!E20,"") ->  | L72: =IF('autres surfaces'!B20="maison",'autres surfaces'!H20,"") ->  | P72: =IF('autres surfaces'!B20="maison",'autres surfaces'!G20,"") -> 
C73: =+IF('autres surfaces'!B21="",'autres surfaces'!C21,"") -> 0 | F73: =IF('autres surfaces'!B21="maison",'autres surfaces'!E21,"") ->  | L73: =IF('autres surfaces'!B21="maison",'autres surfaces'!H21,"") ->  | P73: =IF('autres surfaces'!B21="maison",'autres surfaces'!G21,"") -> 
C74: =+IF('autres surfaces'!B22="",'autres surfaces'!C22,"") -> 0 | F74: =IF('autres surfaces'!B22="maison",'autres surfaces'!E22,"") ->  | L74: =IF('autres surfaces'!B22="maison",'autres surfaces'!H22,"") ->  | P74: =IF('autres surfaces'!B22="maison",'autres surfaces'!G22,"") -> 
C75: =+IF('autres surfaces'!B23="",'autres surfaces'!C23,"") -> 0 | F75: =IF('autres surfaces'!B23="maison",'autres surfaces'!E23,"") ->  | L75: =IF('autres surfaces'!B23="maison",'autres surfaces'!H23,"") ->  | P75: =IF('autres surfaces'!B23="maison",'autres surfaces'!G23,"") -> 
C76: =+IF('autres surfaces'!B24="",'autres surfaces'!C24,"") -> 0 | F76: =IF('autres surfaces'!B24="maison",'autres surfaces'!E24,"") ->  | L76: =IF('autres surfaces'!B24="maison",'autres surfaces'!H24,"") ->  | P76: =IF('autres surfaces'!B24="maison",'autres surfaces'!G24,"") -> 
C77: =+IF('autres surfaces'!B25="",'autres surfaces'!C25,"") -> 0 | F77: =IF('autres surfaces'!B25="maison",'autres surfaces'!E25,"") ->  | L77: =IF('autres surfaces'!B25="maison",'autres surfaces'!H25,"") ->  | P77: =IF('autres surfaces'!B25="maison",'autres surfaces'!G25,"") -> 
C78: =+IF('autres surfaces'!B26="",'autres surfaces'!C26,"") -> 0 | F78: =IF('autres surfaces'!B26="maison",'autres surfaces'!E26,"") ->  | L78: =IF('autres surfaces'!B26="maison",'autres surfaces'!H26,"") ->  | P78: =IF('autres surfaces'!B26="maison",'autres surfaces'!G26,"") -> 
C79: =+IF('autres surfaces'!B27="",'autres surfaces'!C27,"") -> 0 | F79: =IF('autres surfaces'!B27="maison",'autres surfaces'!E27,"") ->  | L79: =IF('autres surfaces'!B27="maison",'autres surfaces'!H27,"") ->  | P79: =IF('autres surfaces'!B27="maison",'autres surfaces'!G27,"") -> 
C80: =+IF('autres surfaces'!B28="",'autres surfaces'!C28,"") -> 0 | F80: =IF('autres surfaces'!B28="maison",'autres surfaces'!E28,"") ->  | L80: =IF('autres surfaces'!B28="maison",'autres surfaces'!H28,"") ->  | P80: =IF('autres surfaces'!B28="maison",'autres surfaces'!G28,"") -> 
C81: =+IF('autres surfaces'!B29="",'autres surfaces'!C29,"") -> 0 | F81: =IF('autres surfaces'!B29="maison",'autres surfaces'!E29,"") ->  | L81: =IF('autres surfaces'!B29="maison",'autres surfaces'!H29,"") ->  | P81: =IF('autres surfaces'!B29="maison",'autres surfaces'!G29,"") -> 
C82: =+IF('autres surfaces'!B30="",'autres surfaces'!C30,"") -> 0 | F82: =IF('autres surfaces'!B30="maison",'autres surfaces'!E30,"") ->  | L82: =IF('autres surfaces'!B30="maison",'autres surfaces'!H30,"") ->  | P82: =IF('autres surfaces'!B30="maison",'autres surfaces'!G30,"") -> 
C83: =+IF('autres surfaces'!B31="",'autres surfaces'!C31,"") -> 0 | F83: =IF('autres surfaces'!B31="maison",'autres surfaces'!E31,"") ->  | L83: =IF('autres surfaces'!B31="maison",'autres surfaces'!H31,"") ->  | P83: =IF('autres surfaces'!B31="maison",'autres surfaces'!G31,"") -> 
C84: =+IF('autres surfaces'!B32="",'autres surfaces'!C32,"") -> 0 | F84: =IF('autres surfaces'!B32="maison",'autres surfaces'!E32,"") ->  | L84: =IF('autres surfaces'!B32="maison",'autres surfaces'!H32,"") ->  | P84: =IF('autres surfaces'!B32="maison",'autres surfaces'!G32,"") -> 
C85: =+IF('autres surfaces'!B33="",'autres surfaces'!C33,"") -> 0 | F85: =IF('autres surfaces'!B33="maison",'autres surfaces'!E33,"") ->  | L85: =IF('autres surfaces'!B33="maison",'autres surfaces'!H33,"") ->  | P85: =IF('autres surfaces'!B33="maison",'autres surfaces'!G33,"") -> 
C86: =+IF('autres surfaces'!B34="",'autres surfaces'!C34,"") -> 0 | F86: =IF('autres surfaces'!B34="maison",'autres surfaces'!E34,"") ->  | L86: =IF('autres surfaces'!B34="maison",'autres surfaces'!H34,"") ->  | P86: =IF('autres surfaces'!B34="maison",'autres surfaces'!G34,"") -> 
C87: =+IF('autres surfaces'!B35="",'autres surfaces'!C35,"") -> 0 | F87: =IF('autres surfaces'!B35="maison",'autres surfaces'!E35,"") ->  | L87: =IF('autres surfaces'!B35="maison",'autres surfaces'!H35,"") ->  | P87: =IF('autres surfaces'!B35="maison",'autres surfaces'!G35,"") -> 
C88: =+IF('autres surfaces'!B36="",'autres surfaces'!C36,"") -> 0 | F88: =IF('autres surfaces'!B36="maison",'autres surfaces'!E36,"") ->  | L88: =IF('autres surfaces'!B36="maison",'autres surfaces'!H36,"") ->  | P88: =IF('autres surfaces'!B36="maison",'autres surfaces'!G36,"") -> 
C89: =+IF('autres surfaces'!B37="",'autres surfaces'!C37,"") -> 0 | F89: =IF('autres surfaces'!B37="maison",'autres surfaces'!E37,"") ->  | L89: =IF('autres surfaces'!B37="maison",'autres surfaces'!H37,"") ->  | P89: =IF('autres surfaces'!B37="maison",'autres surfaces'!G37,"") -> 
C90: =+IF('autres surfaces'!B38="",'autres surfaces'!C38,"") -> 0 | F90: =IF('autres surfaces'!B38="maison",'autres surfaces'!E38,"") ->  | L90: =IF('autres surfaces'!B38="maison",'autres surfaces'!H38,"") ->  | P90: =IF('autres surfaces'!B38="maison",'autres surfaces'!G38,"") -> 
C91: =+IF('autres surfaces'!B39="",'autres surfaces'!C39,"") -> 0 | F91: =IF('autres surfaces'!B39="maison",'autres surfaces'!E39,"") ->  | L91: =IF('autres surfaces'!B39="maison",'autres surfaces'!H39,"") ->  | P91: =IF('autres surfaces'!B39="maison",'autres surfaces'!G39,"") -> 
C92: =+IF('autres surfaces'!B40="",'autres surfaces'!C40,"") -> 0 | F92: =IF('autres surfaces'!B40="maison",'autres surfaces'!E40,"") ->  | L92: =IF('autres surfaces'!B40="maison",'autres surfaces'!H40,"") ->  | P92: =IF('autres surfaces'!B40="maison",'autres surfaces'!G40,"") -> 
C93: =+IF('autres surfaces'!B41="",'autres surfaces'!C41,"") -> 0 | F93: =IF('autres surfaces'!B41="maison",'autres surfaces'!E41,"") ->  | L93: =IF('autres surfaces'!B41="maison",'autres surfaces'!H41,"") ->  | P93: =IF('autres surfaces'!B41="maison",'autres surfaces'!G41,"") -> 
C94: =+IF('autres surfaces'!B42="",'autres surfaces'!C42,"") -> 0 | F94: =IF('autres surfaces'!B42="maison",'autres surfaces'!E42,"") ->  | L94: =IF('autres surfaces'!B42="maison",'autres surfaces'!H42,"") ->  | P94: =IF('autres surfaces'!B42="maison",'autres surfaces'!G42,"") -> 
C95: =+IF('autres surfaces'!B43="",'autres surfaces'!C43,"") -> 0 | F95: =IF('autres surfaces'!B43="maison",'autres surfaces'!E43,"") ->  | L95: =IF('autres surfaces'!B43="maison",'autres surfaces'!H43,"") ->  | P95: =IF('autres surfaces'!B43="maison",'autres surfaces'!G43,"") -> 
C96: =+IF('autres surfaces'!B44="",'autres surfaces'!C44,"") -> 0 | F96: =IF('autres surfaces'!B44="maison",'autres surfaces'!E44,"") ->  | L96: =IF('autres surfaces'!B44="maison",'autres surfaces'!H44,"") ->  | P96: =IF('autres surfaces'!B44="maison",'autres surfaces'!G44,"") -> 
C97: =+IF('autres surfaces'!B45="",'autres surfaces'!C45,"") -> 0 | F97: =IF('autres surfaces'!B45="maison",'autres surfaces'!E45,"") ->  | L97: =IF('autres surfaces'!B45="maison",'autres surfaces'!H45,"") ->  | P97: =IF('autres surfaces'!B45="maison",'autres surfaces'!G45,"") -> 
C98: =+IF('autres surfaces'!B46="",'autres surfaces'!C46,"") -> 0 | F98: =IF('autres surfaces'!B46="maison",'autres surfaces'!E46,"") ->  | L98: =IF('autres surfaces'!B46="maison",'autres surfaces'!H46,"") ->  | P98: =IF('autres surfaces'!B46="maison",'autres surfaces'!G46,"") -> 
C99: =+IF('autres surfaces'!B47="",'autres surfaces'!C47,"") -> 0 | F99: =IF('autres surfaces'!B47="maison",'autres surfaces'!E47,"") ->  | L99: =IF('autres surfaces'!B47="maison",'autres surfaces'!H47,"") ->  | P99: =IF('autres surfaces'!B47="maison",'autres surfaces'!G47,"") -> 
C100: =+IF('autres surfaces'!B48="",'autres surfaces'!C48,"") -> 0 | F100: =IF('autres surfaces'!B48="maison",'autres surfaces'!E48,"") ->  | L100: =IF('autres surfaces'!B48="maison",'autres surfaces'!H48,"") ->  | P100: =IF('autres surfaces'!B48="maison",'autres surfaces'!G48,"") -> 
C101: =+IF('autres surfaces'!B49="",'autres surfaces'!C49,"") -> 0 | F101: =IF('autres surfaces'!B49="maison",'autres surfaces'!E49,"") ->  | L101: =IF('autres surfaces'!B49="maison",'autres surfaces'!H49,"") ->  | P101: =IF('autres surfaces'!B49="maison",'autres surfaces'!G49,"") -> 
C102: =+IF('autres surfaces'!B50="",'autres surfaces'!C50,"") -> 0 | F102: =IF('autres surfaces'!B50="maison",'autres surfaces'!E50,"") ->  | L102: =IF('autres surfaces'!B50="maison",'autres surfaces'!H50,"") ->  | P102: =IF('autres surfaces'!B50="maison",'autres surfaces'!G50,"") -> 
C103: =+IF('autres surfaces'!B51="",'autres surfaces'!C51,"") -> 0 | F103: =IF('autres surfaces'!B51="maison",'autres surfaces'!E51,"") ->  | L103: =IF('autres surfaces'!B51="maison",'autres surfaces'!H51,"") ->  | P103: =IF('autres surfaces'!B51="maison",'autres surfaces'!G51,"") -> 
C104: =+IF('autres surfaces'!B52="",'autres surfaces'!C52,"") -> 0 | F104: =IF('autres surfaces'!B52="maison",'autres surfaces'!E52,"") ->  | L104: =IF('autres surfaces'!B52="maison",'autres surfaces'!H52,"") ->  | P104: =IF('autres surfaces'!B52="maison",'autres surfaces'!G52,"") -> 
C105: =+IF('autres surfaces'!B53="",'autres surfaces'!C53,"") -> 0 | F105: =IF('autres surfaces'!B53="maison",'autres surfaces'!E53,"") ->  | L105: =IF('autres surfaces'!B53="maison",'autres surfaces'!H53,"") ->  | P105: =IF('autres surfaces'!B53="maison",'autres surfaces'!G53,"") -> 
C106: =+IF('autres surfaces'!B54="",'autres surfaces'!C54,"") -> 0 | F106: =IF('autres surfaces'!B54="maison",'autres surfaces'!E54,"") ->  | L106: =IF('autres surfaces'!B54="maison",'autres surfaces'!H54,"") ->  | P106: =IF('autres surfaces'!B54="maison",'autres surfaces'!G54,"") -> 
C107: =IF('autres surfaces'!B55="maison",'autres surfaces'!C55,"") ->  | F107: =IF('autres surfaces'!B55="maison",'autres surfaces'!E55,"") ->  | L107: =IF('autres surfaces'!B55="maison",'autres surfaces'!H55,"") ->  | P107: =IF('autres surfaces'!B55="maison",'autres surfaces'!G55,"") -> 
F115: ='autres surfaces'!E65 -> 0

Sheet tableau recapitulatif IC
A1: Unités de logements abordables
A3: 1. | C3: Unités de logements | F3: N° identification cadastre vertical | H3: Typologie | J3: Location/Vente | L3: Hébergements | N3: Bailleur social | P3: Catégorie | R3: PMR | T3: N° cadastral Cave | V3: N° cadastral emplacement(s) | X3: -> Data -> Sort & Filter -> Reapply
C4: ='immeuble(s) collectif(s)'!AS11 -> 0 | F4: ='immeuble(s) collectif(s)'!AT11 -> 0 | H4: =IF('immeuble(s) collectif(s)'!AX11="Oui", 'immeuble(s) collectif(s)'!BJ11&"h",'immeuble(s) collectif(s)'!BJ11) -> 0 | J4: ='immeuble(s) collectif(s)'!BK11 -> 0 | L4: ='immeuble(s) collectif(s)'!AX11 -> 0 | N4: ='immeuble(s) collectif(s)'!AU11 -> 0 | P4: ='immeuble(s) collectif(s)'!AY11 -> 0 | R4: ='immeuble(s) collectif(s)'!AW11 -> 0 | T4: ='immeuble(s) collectif(s)'!DW11 -> 0 | V4: =CONCATENATE('immeuble(s) collectif(s)'!FA11," ",'immeuble(s) collectif(s)'!FE11," ",'immeuble(s) collectif(s)'!FI11," ",'immeuble(s) collectif(s)'!FM11," ",'immeuble(s) collectif(s)'!FQ11) -> 
C5: ='immeuble(s) collectif(s)'!AS12 -> 0 | F5: ='immeuble(s) collectif(s)'!AT12 -> 0 | H5: =IF('immeuble(s) collectif(s)'!AX12="Oui", 'immeuble(s) collectif(s)'!BJ12&"h",'immeuble(s) collectif(s)'!BJ12) -> 0 | J5: ='immeuble(s) collectif(s)'!BK12 -> 0 | L5: ='immeuble(s) collectif(s)'!AX12 -> 0 | N5: ='immeuble(s) collectif(s)'!AU12 -> 0 | P5: ='immeuble(s) collectif(s)'!AY12 -> 0 | R5: ='immeuble(s) collectif(s)'!AW12 -> 0 | T5: ='immeuble(s) collectif(s)'!DW12 -> 0 | V5: =CONCATENATE('immeuble(s) collectif(s)'!FA12," ",'immeuble(s) collectif(s)'!FE12," ",'immeuble(s) collectif(s)'!FI12," ",'immeuble(s) collectif(s)'!FM12," ",'immeuble(s) collectif(s)'!FQ12) -> 
C6: ='immeuble(s) collectif(s)'!AS13 -> 0 | F6: ='immeuble(s) collectif(s)'!AT13 -> 0 | H6: =IF('immeuble(s) collectif(s)'!AX13="Oui", 'immeuble(s) collectif(s)'!BJ13&"h",'immeuble(s) collectif(s)'!BJ13) -> 0 | J6: ='immeuble(s) collectif(s)'!BK13 -> 0 | L6: ='immeuble(s) collectif(s)'!AX13 -> 0 | N6: ='immeuble(s) collectif(s)'!AU13 -> 0 | P6: ='immeuble(s) collectif(s)'!AY13 -> 0 | R6: ='immeuble(s) collectif(s)'!AW13 -> 0 | T6: ='immeuble(s) collectif(s)'!DW13 -> 0 | V6: =CONCATENATE('immeuble(s) collectif(s)'!FA13," ",'immeuble(s) collectif(s)'!FE13," ",'immeuble(s) collectif(s)'!FI13," ",'immeuble(s) collectif(s)'!FM13," ",'immeuble(s) collectif(s)'!FQ13) -> 
C7: ='immeuble(s) collectif(s)'!AS14 -> 0 | F7: ='immeuble(s) collectif(s)'!AT14 -> 0 | H7: =IF('immeuble(s) collectif(s)'!AX14="Oui", 'immeuble(s) collectif(s)'!BJ14&"h",'immeuble(s) collectif(s)'!BJ14) -> 0 | J7: ='immeuble(s) collectif(s)'!BK14 -> 0 | L7: ='immeuble(s) collectif(s)'!AX14 -> 0 | N7: ='immeuble(s) collectif(s)'!AU14 -> 0 | P7: ='immeuble(s) collectif(s)'!AY14 -> 0 | R7: ='immeuble(s) collectif(s)'!AW14 -> 0 | T7: ='immeuble(s) collectif(s)'!DW14 -> 0 | V7: =CONCATENATE('immeuble(s) collectif(s)'!FA14," ",'immeuble(s) collectif(s)'!FE14," ",'immeuble(s) collectif(s)'!FI14," ",'immeuble(s) collectif(s)'!FM14," ",'immeuble(s) collectif(s)'!FQ14) -> 
C8: ='immeuble(s) collectif(s)'!AS15 -> 0 | F8: ='immeuble(s) collectif(s)'!AT15 -> 0 | H8: =IF('immeuble(s) collectif(s)'!AX15="Oui", 'immeuble(s) collectif(s)'!BJ15&"h",'immeuble(s) collectif(s)'!BJ15) -> 0 | J8: ='immeuble(s) collectif(s)'!BK15 -> 0 | L8: ='immeuble(s) collectif(s)'!AX15 -> 0 | N8: ='immeuble(s) collectif(s)'!AU15 -> 0 | P8: ='immeuble(s) collectif(s)'!AY15 -> 0 | R8: ='immeuble(s) collectif(s)'!AW15 -> 0 | T8: ='immeuble(s) collectif(s)'!DW15 -> 0 | V8: =CONCATENATE('immeuble(s) collectif(s)'!FA15," ",'immeuble(s) collectif(s)'!FE15," ",'immeuble(s) collectif(s)'!FI15," ",'immeuble(s) collectif(s)'!FM15," ",'immeuble(s) collectif(s)'!FQ15) -> 
C9: ='immeuble(s) collectif(s)'!AS16 -> 0 | F9: ='immeuble(s) collectif(s)'!AT16 -> 0 | H9: =IF('immeuble(s) collectif(s)'!AX16="Oui", 'immeuble(s) collectif(s)'!BJ16&"h",'immeuble(s) collectif(s)'!BJ16) -> 0 | J9: ='immeuble(s) collectif(s)'!BK16 -> 0 | L9: ='immeuble(s) collectif(s)'!AX16 -> 0 | N9: ='immeuble(s) collectif(s)'!AU16 -> 0 | P9: ='immeuble(s) collectif(s)'!AY16 -> 0 | R9: ='immeuble(s) collectif(s)'!AW16 -> 0 | T9: ='immeuble(s) collectif(s)'!DW16 -> 0 | V9: =CONCATENATE('immeuble(s) collectif(s)'!FA16," ",'immeuble(s) collectif(s)'!FE16," ",'immeuble(s) collectif(s)'!FI16," ",'immeuble(s) collectif(s)'!FM16," ",'immeuble(s) collectif(s)'!FQ16) -> 
C10: ='immeuble(s) collectif(s)'!AS17 -> 0 | F10: ='immeuble(s) collectif(s)'!AT17 -> 0 | H10: =IF('immeuble(s) collectif(s)'!AX17="Oui", 'immeuble(s) collectif(s)'!BJ17&"h",'immeuble(s) collectif(s)'!BJ17) -> 0 | J10: ='immeuble(s) collectif(s)'!BK17 -> 0 | L10: ='immeuble(s) collectif(s)'!AX17 -> 0 | N10: ='immeuble(s) collectif(s)'!AU17 -> 0 | P10: ='immeuble(s) collectif(s)'!AY17 -> 0 | R10: ='immeuble(s) collectif(s)'!AW17 -> 0 | T10: ='immeuble(s) collectif(s)'!DW17 -> 0 | V10: =CONCATENATE('immeuble(s) collectif(s)'!FA17," ",'immeuble(s) collectif(s)'!FE17," ",'immeuble(s) collectif(s)'!FI17," ",'immeuble(s) collectif(s)'!FM17," ",'immeuble(s) collectif(s)'!FQ17) -> 
C11: ='immeuble(s) collectif(s)'!AS18 -> 0 | F11: ='immeuble(s) collectif(s)'!AT18 -> 0 | H11: =IF('immeuble(s) collectif(s)'!AX18="Oui", 'immeuble(s) collectif(s)'!BJ18&"h",'immeuble(s) collectif(s)'!BJ18) -> 0 | J11: ='immeuble(s) collectif(s)'!BK18 -> 0 | L11: ='immeuble(s) collectif(s)'!AX18 -> 0 | N11: ='immeuble(s) collectif(s)'!AU18 -> 0 | P11: ='immeuble(s) collectif(s)'!AY18 -> 0 | R11: ='immeuble(s) collectif(s)'!AW18 -> 0 | T11: ='immeuble(s) collectif(s)'!DW18 -> 0 | V11: =CONCATENATE('immeuble(s) collectif(s)'!FA18," ",'immeuble(s) collectif(s)'!FE18," ",'immeuble(s) collectif(s)'!FI18," ",'immeuble(s) collectif(s)'!FM18," ",'immeuble(s) collectif(s)'!FQ18) -> 
C12: ='immeuble(s) collectif(s)'!AS19 -> 0 | F12: ='immeuble(s) collectif(s)'!AT19 -> 0 | H12: =IF('immeuble(s) collectif(s)'!AX19="Oui", 'immeuble(s) collectif(s)'!BJ19&"h",'immeuble(s) collectif(s)'!BJ19) -> 0 | J12: ='immeuble(s) collectif(s)'!BK19 -> 0 | L12: ='immeuble(s) collectif(s)'!AX19 -> 0 | N12: ='immeuble(s) collectif(s)'!AU19 -> 0 | P12: ='immeuble(s) collectif(s)'!AY19 -> 0 | R12: ='immeuble(s) collectif(s)'!AW19 -> 0 | T12: ='immeuble(s) collectif(s)'!DW19 -> 0 | V12: =CONCATENATE('immeuble(s) collectif(s)'!FA19," ",'immeuble(s) collectif(s)'!FE19," ",'immeuble(s) collectif(s)'!FI19," ",'immeuble(s) collectif(s)'!FM19," ",'immeuble(s) collectif(s)'!FQ19) -> 
C13: ='immeuble(s) collectif(s)'!AS20 -> 0 | F13: ='immeuble(s) collectif(s)'!AT20 -> 0 | H13: =IF('immeuble(s) collectif(s)'!AX20="Oui", 'immeuble(s) collectif(s)'!BJ20&"h",'immeuble(s) collectif(s)'!BJ20) -> 0 | J13: ='immeuble(s) collectif(s)'!BK20 -> 0 | L13: ='immeuble(s) collectif(s)'!AX20 -> 0 | N13: ='immeuble(s) collectif(s)'!AU20 -> 0 | P13: ='immeuble(s) collectif(s)'!AY20 -> 0 | R13: ='immeuble(s) collectif(s)'!AW20 -> 0 | T13: ='immeuble(s) collectif(s)'!DW20 -> 0 | V13: =CONCATENATE('immeuble(s) collectif(s)'!FA20," ",'immeuble(s) collectif(s)'!FE20," ",'immeuble(s) collectif(s)'!FI20," ",'immeuble(s) collectif(s)'!FM20," ",'immeuble(s) collectif(s)'!FQ20) -> 
C14: ='immeuble(s) collectif(s)'!AS21 -> 0 | F14: ='immeuble(s) collectif(s)'!AT21 -> 0 | H14: =IF('immeuble(s) collectif(s)'!AX21="Oui", 'immeuble(s) collectif(s)'!BJ21&"h",'immeuble(s) collectif(s)'!BJ21) -> 0 | J14: ='immeuble(s) collectif(s)'!BK21 -> 0 | L14: ='immeuble(s) collectif(s)'!AX21 -> 0 | N14: ='immeuble(s) collectif(s)'!AU21 -> 0 | P14: ='immeuble(s) collectif(s)'!AY21 -> 0 | R14: ='immeuble(s) collectif(s)'!AW21 -> 0 | T14: ='immeuble(s) collectif(s)'!DW21 -> 0 | V14: =CONCATENATE('immeuble(s) collectif(s)'!FA21," ",'immeuble(s) collectif(s)'!FE21," ",'immeuble(s) collectif(s)'!FI21," ",'immeuble(s) collectif(s)'!FM21," ",'immeuble(s) collectif(s)'!FQ21) -> 
C15: ='immeuble(s) collectif(s)'!AS22 -> 0 | F15: ='immeuble(s) collectif(s)'!AT22 -> 0 | H15: =IF('immeuble(s) collectif(s)'!AX22="Oui", 'immeuble(s) collectif(s)'!BJ22&"h",'immeuble(s) collectif(s)'!BJ22) -> 0 | J15: ='immeuble(s) collectif(s)'!BK22 -> 0 | L15: ='immeuble(s) collectif(s)'!AX22 -> 0 | N15: ='immeuble(s) collectif(s)'!AU22 -> 0 | P15: ='immeuble(s) collectif(s)'!AY22 -> 0 | R15: ='immeuble(s) collectif(s)'!AW22 -> 0 | T15: ='immeuble(s) collectif(s)'!DW22 -> 0 | V15: =CONCATENATE('immeuble(s) collectif(s)'!FA22," ",'immeuble(s) collectif(s)'!FE22," ",'immeuble(s) collectif(s)'!FI22," ",'immeuble(s) collectif(s)'!FM22," ",'immeuble(s) collectif(s)'!FQ22) -> 
C16: ='immeuble(s) collectif(s)'!AS23 -> 0 | F16: ='immeuble(s) collectif(s)'!AT23 -> 0 | H16: =IF('immeuble(s) collectif(s)'!AX23="Oui", 'immeuble(s) collectif(s)'!BJ23&"h",'immeuble(s) collectif(s)'!BJ23) -> 0 | J16: ='immeuble(s) collectif(s)'!BK23 -> 0 | L16: ='immeuble(s) collectif(s)'!AX23 -> 0 | N16: ='immeuble(s) collectif(s)'!AU23 -> 0 | P16: ='immeuble(s) collectif(s)'!AY23 -> 0 | R16: ='immeuble(s) collectif(s)'!AW23 -> 0 | T16: ='immeuble(s) collectif(s)'!DW23 -> 0 | V16: =CONCATENATE('immeuble(s) collectif(s)'!FA23," ",'immeuble(s) collectif(s)'!FE23," ",'immeuble(s) collectif(s)'!FI23," ",'immeuble(s) collectif(s)'!FM23," ",'immeuble(s) collectif(s)'!FQ23) -> 
C17: ='immeuble(s) collectif(s)'!AS24 -> 0 | F17: ='immeuble(s) collectif(s)'!AT24 -> 0 | H17: =IF('immeuble(s) collectif(s)'!AX24="Oui", 'immeuble(s) collectif(s)'!BJ24&"h",'immeuble(s) collectif(s)'!BJ24) -> 0 | J17: ='immeuble(s) collectif(s)'!BK24 -> 0 | L17: ='immeuble(s) collectif(s)'!AX24 -> 0 | N17: ='immeuble(s) collectif(s)'!AU24 -> 0 | P17: ='immeuble(s) collectif(s)'!AY24 -> 0 | R17: ='immeuble(s) collectif(s)'!AW24 -> 0 | T17: ='immeuble(s) collectif(s)'!DW24 -> 0 | V17: =CONCATENATE('immeuble(s) collectif(s)'!FA24," ",'immeuble(s) collectif(s)'!FE24," ",'immeuble(s) collectif(s)'!FI24," ",'immeuble(s) collectif(s)'!FM24," ",'immeuble(s) collectif(s)'!FQ24) -> 
C18: ='immeuble(s) collectif(s)'!AS25 -> 0 | F18: ='immeuble(s) collectif(s)'!AT25 -> 0 | H18: =IF('immeuble(s) collectif(s)'!AX25="Oui", 'immeuble(s) collectif(s)'!BJ25&"h",'immeuble(s) collectif(s)'!BJ25) -> 0 | J18: ='immeuble(s) collectif(s)'!BK25 -> 0 | L18: ='immeuble(s) collectif(s)'!AX25 -> 0 | N18: ='immeuble(s) collectif(s)'!AU25 -> 0 | P18: ='immeuble(s) collectif(s)'!AY25 -> 0 | R18: ='immeuble(s) collectif(s)'!AW25 -> 0 | T18: ='immeuble(s) collectif(s)'!DW25 -> 0 | V18: =CONCATENATE('immeuble(s) collectif(s)'!FA25," ",'immeuble(s) collectif(s)'!FE25," ",'immeuble(s) collectif(s)'!FI25," ",'immeuble(s) collectif(s)'!FM25," ",'immeuble(s) collectif(s)'!FQ25) -> 
C19: ='immeuble(s) collectif(s)'!AS26 -> 0 | F19: ='immeuble(s) collectif(s)'!AT26 -> 0 | H19: =IF('immeuble(s) collectif(s)'!AX26="Oui", 'immeuble(s) collectif(s)'!BJ26&"h",'immeuble(s) collectif(s)'!BJ26) -> 0 | J19: ='immeuble(s) collectif(s)'!BK26 -> 0 | L19: ='immeuble(s) collectif(s)'!AX26 -> 0 | N19: ='immeuble(s) collectif(s)'!AU26 -> 0 | P19: ='immeuble(s) collectif(s)'!AY26 -> 0 | R19: ='immeuble(s) collectif(s)'!AW26 -> 0 | T19: ='immeuble(s) collectif(s)'!DW26 -> 0 | V19: =CONCATENATE('immeuble(s) collectif(s)'!FA26," ",'immeuble(s) collectif(s)'!FE26," ",'immeuble(s) collectif(s)'!FI26," ",'immeuble(s) collectif(s)'!FM26," ",'immeuble(s) collectif(s)'!FQ26) -> 
C20: ='immeuble(s) collectif(s)'!AS27 -> 0 | F20: ='immeuble(s) collectif(s)'!AT27 -> 0 | H20: =IF('immeuble(s) collectif(s)'!AX27="Oui", 'immeuble(s) collectif(s)'!BJ27&"h",'immeuble(s) collectif(s)'!BJ27) -> 0 | J20: ='immeuble(s) collectif(s)'!BK27 -> 0 | L20: ='immeuble(s) collectif(s)'!AX27 -> 0 | N20: ='immeuble(s) collectif(s)'!AU27 -> 0 | P20: ='immeuble(s) collectif(s)'!AY27 -> 0 | R20: ='immeuble(s) collectif(s)'!AW27 -> 0 | T20: ='immeuble(s) collectif(s)'!DW27 -> 0 | V20: =CONCATENATE('immeuble(s) collectif(s)'!FA27," ",'immeuble(s) collectif(s)'!FE27," ",'immeuble(s) collectif(s)'!FI27," ",'immeuble(s) collectif(s)'!FM27," ",'immeuble(s) collectif(s)'!FQ27) -> 
C21: ='immeuble(s) collectif(s)'!AS28 -> 0 | F21: ='immeuble(s) collectif(s)'!AT28 -> 0 | H21: =IF('immeuble(s) collectif(s)'!AX28="Oui", 'immeuble(s) collectif(s)'!BJ28&"h",'immeuble(s) collectif(s)'!BJ28) -> 0 | J21: ='immeuble(s) collectif(s)'!BK28 -> 0 | L21: ='immeuble(s) collectif(s)'!AX28 -> 0 | N21: ='immeuble(s) collectif(s)'!AU28 -> 0 | P21: ='immeuble(s) collectif(s)'!AY28 -> 0 | R21: ='immeuble(s) collectif(s)'!AW28 -> 0 | T21: ='immeuble(s) collectif(s)'!DW28 -> 0 | V21: =CONCATENATE('immeuble(s) collectif(s)'!FA28," ",'immeuble(s) collectif(s)'!FE28," ",'immeuble(s) collectif(s)'!FI28," ",'immeuble(s) collectif(s)'!FM28," ",'immeuble(s) collectif(s)'!FQ28) -> 
C22: ='immeuble(s) collectif(s)'!AS29 -> 0 | F22: ='immeuble(s) collectif(s)'!AT29 -> 0 | H22: =IF('immeuble(s) collectif(s)'!AX29="Oui", 'immeuble(s) collectif(s)'!BJ29&"h",'immeuble(s) collectif(s)'!BJ29) -> 0 | J22: ='immeuble(s) collectif(s)'!BK29 -> 0 | L22: ='immeuble(s) collectif(s)'!AX29 -> 0 | N22: ='immeuble(s) collectif(s)'!AU29 -> 0 | P22: ='immeuble(s) collectif(s)'!AY29 -> 0 | R22: ='immeuble(s) collectif(s)'!AW29 -> 0 | T22: ='immeuble(s) collectif(s)'!DW29 -> 0 | V22: =CONCATENATE('immeuble(s) collectif(s)'!FA29," ",'immeuble(s) collectif(s)'!FE29," ",'immeuble(s) collectif(s)'!FI29," ",'immeuble(s) collectif(s)'!FM29," ",'immeuble(s) collectif(s)'!FQ29) -> 
C23: ='immeuble(s) collectif(s)'!AS30 -> 0 | F23: ='immeuble(s) collectif(s)'!AT30 -> 0 | H23: =IF('immeuble(s) collectif(s)'!AX30="Oui", 'immeuble(s) collectif(s)'!BJ30&"h",'immeuble(s) collectif(s)'!BJ30) -> 0 | J23: ='immeuble(s) collectif(s)'!BK30 -> 0 | L23: ='immeuble(s) collectif(s)'!AX30 -> 0 | N23: ='immeuble(s) collectif(s)'!AU30 -> 0 | P23: ='immeuble(s) collectif(s)'!AY30 -> 0 | R23: ='immeuble(s) collectif(s)'!AW30 -> 0 | T23: ='immeuble(s) collectif(s)'!DW30 -> 0 | V23: =CONCATENATE('immeuble(s) collectif(s)'!FA30," ",'immeuble(s) collectif(s)'!FE30," ",'immeuble(s) collectif(s)'!FI30," ",'immeuble(s) collectif(s)'!FM30," ",'immeuble(s) collectif(s)'!FQ30) -> 
C24: ='immeuble(s) collectif(s)'!AS31 -> 0 | F24: ='immeuble(s) collectif(s)'!AT31 -> 0 | H24: =IF('immeuble(s) collectif(s)'!AX31="Oui", 'immeuble(s) collectif(s)'!BJ31&"h",'immeuble(s) collectif(s)'!BJ31) -> 0 | J24: ='immeuble(s) collectif(s)'!BK31 -> 0 | L24: ='immeuble(s) collectif(s)'!AX31 -> 0 | N24: ='immeuble(s) collectif(s)'!AU31 -> 0 | P24: ='immeuble(s) collectif(s)'!AY31 -> 0 | R24: ='immeuble(s) collectif(s)'!AW31 -> 0 | T24: ='immeuble(s) collectif(s)'!DW31 -> 0 | V24: =CONCATENATE('immeuble(s) collectif(s)'!FA31," ",'immeuble(s) collectif(s)'!FE31," ",'immeuble(s) collectif(s)'!FI31," ",'immeuble(s) collectif(s)'!FM31," ",'immeuble(s) collectif(s)'!FQ31) -> 
C25: ='immeuble(s) collectif(s)'!AS32 -> 0 | F25: ='immeuble(s) collectif(s)'!AT32 -> 0 | H25: =IF('immeuble(s) collectif(s)'!AX32="Oui", 'immeuble(s) collectif(s)'!BJ32&"h",'immeuble(s) collectif(s)'!BJ32) -> 0 | J25: ='immeuble(s) collectif(s)'!BK32 -> 0 | L25: ='immeuble(s) collectif(s)'!AX32 -> 0 | N25: ='immeuble(s) collectif(s)'!AU32 -> 0 | P25: ='immeuble(s) collectif(s)'!AY32 -> 0 | R25: ='immeuble(s) collectif(s)'!AW32 -> 0 | T25: ='immeuble(s) collectif(s)'!DW32 -> 0 | V25: =CONCATENATE('immeuble(s) collectif(s)'!FA32," ",'immeuble(s) collectif(s)'!FE32," ",'immeuble(s) collectif(s)'!FI32," ",'immeuble(s) collectif(s)'!FM32," ",'immeuble(s) collectif(s)'!FQ32) -> 
C26: ='immeuble(s) collectif(s)'!AS33 -> 0 | F26: ='immeuble(s) collectif(s)'!AT33 -> 0 | H26: =IF('immeuble(s) collectif(s)'!AX33="Oui", 'immeuble(s) collectif(s)'!BJ33&"h",'immeuble(s) collectif(s)'!BJ33) -> 0 | J26: ='immeuble(s) collectif(s)'!BK33 -> 0 | L26: ='immeuble(s) collectif(s)'!AX33 -> 0 | N26: ='immeuble(s) collectif(s)'!AU33 -> 0 | P26: ='immeuble(s) collectif(s)'!AY33 -> 0 | R26: ='immeuble(s) collectif(s)'!AW33 -> 0 | T26: ='immeuble(s) collectif(s)'!DW33 -> 0 | V26: =CONCATENATE('immeuble(s) collectif(s)'!FA33," ",'immeuble(s) collectif(s)'!FE33," ",'immeuble(s) collectif(s)'!FI33," ",'immeuble(s) collectif(s)'!FM33," ",'immeuble(s) collectif(s)'!FQ33) -> 
C27: ='immeuble(s) collectif(s)'!AS34 -> 0 | F27: ='immeuble(s) collectif(s)'!AT34 -> 0 | H27: =IF('immeuble(s) collectif(s)'!AX34="Oui", 'immeuble(s) collectif(s)'!BJ34&"h",'immeuble(s) collectif(s)'!BJ34) -> 0 | J27: ='immeuble(s) collectif(s)'!BK34 -> 0 | L27: ='immeuble(s) collectif(s)'!AX34 -> 0 | N27: ='immeuble(s) collectif(s)'!AU34 -> 0 | P27: ='immeuble(s) collectif(s)'!AY34 -> 0 | R27: ='immeuble(s) collectif(s)'!AW34 -> 0 | T27: ='immeuble(s) collectif(s)'!DW34 -> 0 | V27: =CONCATENATE('immeuble(s) collectif(s)'!FA34," ",'immeuble(s) collectif(s)'!FE34," ",'immeuble(s) collectif(s)'!FI34," ",'immeuble(s) collectif(s)'!FM34," ",'immeuble(s) collectif(s)'!FQ34) -> 
C28: ='immeuble(s) collectif(s)'!AS35 -> 0 | F28: ='immeuble(s) collectif(s)'!AT35 -> 0 | H28: =IF('immeuble(s) collectif(s)'!AX35="Oui", 'immeuble(s) collectif(s)'!BJ35&"h",'immeuble(s) collectif(s)'!BJ35) -> 0 | J28: ='immeuble(s) collectif(s)'!BK35 -> 0 | L28: ='immeuble(s) collectif(s)'!AX35 -> 0 | N28: ='immeuble(s) collectif(s)'!AU35 -> 0 | P28: ='immeuble(s) collectif(s)'!AY35 -> 0 | R28: ='immeuble(s) collectif(s)'!AW35 -> 0 | T28: ='immeuble(s) collectif(s)'!DW35 -> 0 | V28: =CONCATENATE('immeuble(s) collectif(s)'!FA35," ",'immeuble(s) collectif(s)'!FE35," ",'immeuble(s) collectif(s)'!FI35," ",'immeuble(s) collectif(s)'!FM35," ",'immeuble(s) collectif(s)'!FQ35) -> 
C29: ='immeuble(s) collectif(s)'!AS36 -> 0 | F29: ='immeuble(s) collectif(s)'!AT36 -> 0 | H29: =IF('immeuble(s) collectif(s)'!AX36="Oui", 'immeuble(s) collectif(s)'!BJ36&"h",'immeuble(s) collectif(s)'!BJ36) -> 0 | J29: ='immeuble(s) collectif(s)'!BK36 -> 0 | L29: ='immeuble(s) collectif(s)'!AX36 -> 0 | N29: ='immeuble(s) collectif(s)'!AU36 -> 0 | P29: ='immeuble(s) collectif(s)'!AY36 -> 0 | R29: ='immeuble(s) collectif(s)'!AW36 -> 0 | T29: ='immeuble(s) collectif(s)'!DW36 -> 0 | V29: =CONCATENATE('immeuble(s) collectif(s)'!FA36," ",'immeuble(s) collectif(s)'!FE36," ",'immeuble(s) collectif(s)'!FI36," ",'immeuble(s) collectif(s)'!FM36," ",'immeuble(s) collectif(s)'!FQ36) -> 
C30: ='immeuble(s) collectif(s)'!AS37 -> 0 | F30: ='immeuble(s) collectif(s)'!AT37 -> 0 | H30: =IF('immeuble(s) collectif(s)'!AX37="Oui", 'immeuble(s) collectif(s)'!BJ37&"h",'immeuble(s) collectif(s)'!BJ37) -> 0 | J30: ='immeuble(s) collectif(s)'!BK37 -> 0 | L30: ='immeuble(s) collectif(s)'!AX37 -> 0 | N30: ='immeuble(s) collectif(s)'!AU37 -> 0 | P30: ='immeuble(s) collectif(s)'!AY37 -> 0 | R30: ='immeuble(s) collectif(s)'!AW37 -> 0 | T30: ='immeuble(s) collectif(s)'!DW37 -> 0 | V30: =CONCATENATE('immeuble(s) collectif(s)'!FA37," ",'immeuble(s) collectif(s)'!FE37," ",'immeuble(s) collectif(s)'!FI37," ",'immeuble(s) collectif(s)'!FM37," ",'immeuble(s) collectif(s)'!FQ37) -> 
C31: ='immeuble(s) collectif(s)'!AS38 -> 0 | F31: ='immeuble(s) collectif(s)'!AT38 -> 0 | H31: =IF('immeuble(s) collectif(s)'!AX38="Oui", 'immeuble(s) collectif(s)'!BJ38&"h",'immeuble(s) collectif(s)'!BJ38) -> 0 | J31: ='immeuble(s) collectif(s)'!BK38 -> 0 | L31: ='immeuble(s) collectif(s)'!AX38 -> 0 | N31: ='immeuble(s) collectif(s)'!AU38 -> 0 | P31: ='immeuble(s) collectif(s)'!AY38 -> 0 | R31: ='immeuble(s) collectif(s)'!AW38 -> 0 | T31: ='immeuble(s) collectif(s)'!DW38 -> 0 | V31: =CONCATENATE('immeuble(s) collectif(s)'!FA38," ",'immeuble(s) collectif(s)'!FE38," ",'immeuble(s) collectif(s)'!FI38," ",'immeuble(s) collectif(s)'!FM38," ",'immeuble(s) collectif(s)'!FQ38) -> 
C32: ='immeuble(s) collectif(s)'!AS39 -> 0 | F32: ='immeuble(s) collectif(s)'!AT39 -> 0 | H32: =IF('immeuble(s) collectif(s)'!AX39="Oui", 'immeuble(s) collectif(s)'!BJ39&"h",'immeuble(s) collectif(s)'!BJ39) -> 0 | J32: ='immeuble(s) collectif(s)'!BK39 -> 0 | L32: ='immeuble(s) collectif(s)'!AX39 -> 0 | N32: ='immeuble(s) collectif(s)'!AU39 -> 0 | P32: ='immeuble(s) collectif(s)'!AY39 -> 0 | R32: ='immeuble(s) collectif(s)'!AW39 -> 0 | T32: ='immeuble(s) collectif(s)'!DW39 -> 0 | V32: =CONCATENATE('immeuble(s) collectif(s)'!FA39," ",'immeuble(s) collectif(s)'!FE39," ",'immeuble(s) collectif(s)'!FI39," ",'immeuble(s) collectif(s)'!FM39," ",'immeuble(s) collectif(s)'!FQ39) -> 
C33: ='immeuble(s) collectif(s)'!AS40 -> 0 | F33: ='immeuble(s) collectif(s)'!AT40 -> 0 | H33: =IF('immeuble(s) collectif(s)'!AX40="Oui", 'immeuble(s) collectif(s)'!BJ40&"h",'immeuble(s) collectif(s)'!BJ40) -> 0 | J33: ='immeuble(s) collectif(s)'!BK40 -> 0 | L33: ='immeuble(s) collectif(s)'!AX40 -> 0 | N33: ='immeuble(s) collectif(s)'!AU40 -> 0 | P33: ='immeuble(s) collectif(s)'!AY40 -> 0 | R33: ='immeuble(s) collectif(s)'!AW40 -> 0 | T33: ='immeuble(s) collectif(s)'!DW40 -> 0 | V33: =CONCATENATE('immeuble(s) collectif(s)'!FA40," ",'immeuble(s) collectif(s)'!FE40," ",'immeuble(s) collectif(s)'!FI40," ",'immeuble(s) collectif(s)'!FM40," ",'immeuble(s) collectif(s)'!FQ40) -> 
C34: ='immeuble(s) collectif(s)'!AS41 -> 0 | F34: ='immeuble(s) collectif(s)'!AT41 -> 0 | H34: =IF('immeuble(s) collectif(s)'!AX41="Oui", 'immeuble(s) collectif(s)'!BJ41&"h",'immeuble(s) collectif(s)'!BJ41) -> 0 | J34: ='immeuble(s) collectif(s)'!BK41 -> 0 | L34: ='immeuble(s) collectif(s)'!AX41 -> 0 | N34: ='immeuble(s) collectif(s)'!AU41 -> 0 | P34: ='immeuble(s) collectif(s)'!AY41 -> 0 | R34: ='immeuble(s) collectif(s)'!AW41 -> 0 | T34: ='immeuble(s) collectif(s)'!DW41 -> 0 | V34: =CONCATENATE('immeuble(s) collectif(s)'!FA41," ",'immeuble(s) collectif(s)'!FE41," ",'immeuble(s) collectif(s)'!FI41," ",'immeuble(s) collectif(s)'!FM41," ",'immeuble(s) collectif(s)'!FQ41) -> 
C35: ='immeuble(s) collectif(s)'!AS42 -> 0 | F35: ='immeuble(s) collectif(s)'!AT42 -> 0 | H35: =IF('immeuble(s) collectif(s)'!AX42="Oui", 'immeuble(s) collectif(s)'!BJ42&"h",'immeuble(s) collectif(s)'!BJ42) -> 0 | J35: ='immeuble(s) collectif(s)'!BK42 -> 0 | L35: ='immeuble(s) collectif(s)'!AX42 -> 0 | N35: ='immeuble(s) collectif(s)'!AU42 -> 0 | P35: ='immeuble(s) collectif(s)'!AY42 -> 0 | R35: ='immeuble(s) collectif(s)'!AW42 -> 0 | T35: ='immeuble(s) collectif(s)'!DW42 -> 0 | V35: =CONCATENATE('immeuble(s) collectif(s)'!FA42," ",'immeuble(s) collectif(s)'!FE42," ",'immeuble(s) collectif(s)'!FI42," ",'immeuble(s) collectif(s)'!FM42," ",'immeuble(s) collectif(s)'!FQ42) -> 
C36: ='immeuble(s) collectif(s)'!AS43 -> 0 | F36: ='immeuble(s) collectif(s)'!AT43 -> 0 | H36: =IF('immeuble(s) collectif(s)'!AX43="Oui", 'immeuble(s) collectif(s)'!BJ43&"h",'immeuble(s) collectif(s)'!BJ43) -> 0 | J36: ='immeuble(s) collectif(s)'!BK43 -> 0 | L36: ='immeuble(s) collectif(s)'!AX43 -> 0 | N36: ='immeuble(s) collectif(s)'!AU43 -> 0 | P36: ='immeuble(s) collectif(s)'!AY43 -> 0 | R36: ='immeuble(s) collectif(s)'!AW43 -> 0 | T36: ='immeuble(s) collectif(s)'!DW43 -> 0 | V36: =CONCATENATE('immeuble(s) collectif(s)'!FA43," ",'immeuble(s) collectif(s)'!FE43," ",'immeuble(s) collectif(s)'!FI43," ",'immeuble(s) collectif(s)'!FM43," ",'immeuble(s) collectif(s)'!FQ43) -> 
C37: ='immeuble(s) collectif(s)'!AS44 -> 0 | F37: ='immeuble(s) collectif(s)'!AT44 -> 0 | H37: =IF('immeuble(s) collectif(s)'!AX44="Oui", 'immeuble(s) collectif(s)'!BJ44&"h",'immeuble(s) collectif(s)'!BJ44) -> 0 | J37: ='immeuble(s) collectif(s)'!BK44 -> 0 | L37: ='immeuble(s) collectif(s)'!AX44 -> 0 | N37: ='immeuble(s) collectif(s)'!AU44 -> 0 | P37: ='immeuble(s) collectif(s)'!AY44 -> 0 | R37: ='immeuble(s) collectif(s)'!AW44 -> 0 | T37: ='immeuble(s) collectif(s)'!DW44 -> 0 | V37: =CONCATENATE('immeuble(s) collectif(s)'!FA44," ",'immeuble(s) collectif(s)'!FE44," ",'immeuble(s) collectif(s)'!FI44," ",'immeuble(s) collectif(s)'!FM44," ",'immeuble(s) collectif(s)'!FQ44) -> 
C38: ='immeuble(s) collectif(s)'!AS45 -> 0 | F38: ='immeuble(s) collectif(s)'!AT45 -> 0 | H38: =IF('immeuble(s) collectif(s)'!AX45="Oui", 'immeuble(s) collectif(s)'!BJ45&"h",'immeuble(s) collectif(s)'!BJ45) -> 0 | J38: ='immeuble(s) collectif(s)'!BK45 -> 0 | L38: ='immeuble(s) collectif(s)'!AX45 -> 0 | N38: ='immeuble(s) collectif(s)'!AU45 -> 0 | P38: ='immeuble(s) collectif(s)'!AY45 -> 0 | R38: ='immeuble(s) collectif(s)'!AW45 -> 0 | T38: ='immeuble(s) collectif(s)'!DW45 -> 0 | V38: =CONCATENATE('immeuble(s) collectif(s)'!FA45," ",'immeuble(s) collectif(s)'!FE45," ",'immeuble(s) collectif(s)'!FI45," ",'immeuble(s) collectif(s)'!FM45," ",'immeuble(s) collectif(s)'!FQ45) -> 
C39: ='immeuble(s) collectif(s)'!AS46 -> 0 | F39: ='immeuble(s) collectif(s)'!AT46 -> 0 | H39: =IF('immeuble(s) collectif(s)'!AX46="Oui", 'immeuble(s) collectif(s)'!BJ46&"h",'immeuble(s) collectif(s)'!BJ46) -> 0 | J39: ='immeuble(s) collectif(s)'!BK46 -> 0 | L39: ='immeuble(s) collectif(s)'!AX46 -> 0 | N39: ='immeuble(s) collectif(s)'!AU46 -> 0 | P39: ='immeuble(s) collectif(s)'!AY46 -> 0 | R39: ='immeuble(s) collectif(s)'!AW46 -> 0 | T39: ='immeuble(s) collectif(s)'!DW46 -> 0 | V39: =CONCATENATE('immeuble(s) collectif(s)'!FA46," ",'immeuble(s) collectif(s)'!FE46," ",'immeuble(s) collectif(s)'!FI46," ",'immeuble(s) collectif(s)'!FM46," ",'immeuble(s) collectif(s)'!FQ46) -> 
C40: ='immeuble(s) collectif(s)'!AS47 -> 0 | F40: ='immeuble(s) collectif(s)'!AT47 -> 0 | H40: =IF('immeuble(s) collectif(s)'!AX47="Oui", 'immeuble(s) collectif(s)'!BJ47&"h",'immeuble(s) collectif(s)'!BJ47) -> 0 | J40: ='immeuble(s) collectif(s)'!BK47 -> 0 | L40: ='immeuble(s) collectif(s)'!AX47 -> 0 | N40: ='immeuble(s) collectif(s)'!AU47 -> 0 | P40: ='immeuble(s) collectif(s)'!AY47 -> 0 | R40: ='immeuble(s) collectif(s)'!AW47 -> 0 | T40: ='immeuble(s) collectif(s)'!DW47 -> 0 | V40: =CONCATENATE('immeuble(s) collectif(s)'!FA47," ",'immeuble(s) collectif(s)'!FE47," ",'immeuble(s) collectif(s)'!FI47," ",'immeuble(s) collectif(s)'!FM47," ",'immeuble(s) collectif(s)'!FQ47) -> 
C41: ='immeuble(s) collectif(s)'!AS48 -> 0 | F41: ='immeuble(s) collectif(s)'!AT48 -> 0 | H41: =IF('immeuble(s) collectif(s)'!AX48="Oui", 'immeuble(s) collectif(s)'!BJ48&"h",'immeuble(s) collectif(s)'!BJ48) -> 0 | J41: ='immeuble(s) collectif(s)'!BK48 -> 0 | L41: ='immeuble(s) collectif(s)'!AX48 -> 0 | N41: ='immeuble(s) collectif(s)'!AU48 -> 0 | P41: ='immeuble(s) collectif(s)'!AY48 -> 0 | R41: ='immeuble(s) collectif(s)'!AW48 -> 0 | T41: ='immeuble(s) collectif(s)'!DW48 -> 0 | V41: =CONCATENATE('immeuble(s) collectif(s)'!FA48," ",'immeuble(s) collectif(s)'!FE48," ",'immeuble(s) collectif(s)'!FI48," ",'immeuble(s) collectif(s)'!FM48," ",'immeuble(s) collectif(s)'!FQ48) -> 
C42: ='immeuble(s) collectif(s)'!AS49 -> 0 | F42: ='immeuble(s) collectif(s)'!AT49 -> 0 | H42: =IF('immeuble(s) collectif(s)'!AX49="Oui", 'immeuble(s) collectif(s)'!BJ49&"h",'immeuble(s) collectif(s)'!BJ49) -> 0 | J42: ='immeuble(s) collectif(s)'!BK49 -> 0 | L42: ='immeuble(s) collectif(s)'!AX49 -> 0 | N42: ='immeuble(s) collectif(s)'!AU49 -> 0 | P42: ='immeuble(s) collectif(s)'!AY49 -> 0 | R42: ='immeuble(s) collectif(s)'!AW49 -> 0 | T42: ='immeuble(s) collectif(s)'!DW49 -> 0 | V42: =CONCATENATE('immeuble(s) collectif(s)'!FA49," ",'immeuble(s) collectif(s)'!FE49," ",'immeuble(s) collectif(s)'!FI49," ",'immeuble(s) collectif(s)'!FM49," ",'immeuble(s) collectif(s)'!FQ49) -> 
C43: ='immeuble(s) collectif(s)'!AS50 -> 0 | F43: ='immeuble(s) collectif(s)'!AT50 -> 0 | H43: =IF('immeuble(s) collectif(s)'!AX50="Oui", 'immeuble(s) collectif(s)'!BJ50&"h",'immeuble(s) collectif(s)'!BJ50) -> 0 | J43: ='immeuble(s) collectif(s)'!BK50 -> 0 | L43: ='immeuble(s) collectif(s)'!AX50 -> 0 | N43: ='immeuble(s) collectif(s)'!AU50 -> 0 | P43: ='immeuble(s) collectif(s)'!AY50 -> 0 | R43: ='immeuble(s) collectif(s)'!AW50 -> 0 | T43: ='immeuble(s) collectif(s)'!DW50 -> 0 | V43: =CONCATENATE('immeuble(s) collectif(s)'!FA50," ",'immeuble(s) collectif(s)'!FE50," ",'immeuble(s) collectif(s)'!FI50," ",'immeuble(s) collectif(s)'!FM50," ",'immeuble(s) collectif(s)'!FQ50) -> 
C44: ='immeuble(s) collectif(s)'!AS51 -> 0 | F44: ='immeuble(s) collectif(s)'!AT51 -> 0 | H44: =IF('immeuble(s) collectif(s)'!AX51="Oui", 'immeuble(s) collectif(s)'!BJ51&"h",'immeuble(s) collectif(s)'!BJ51) -> 0 | J44: ='immeuble(s) collectif(s)'!BK51 -> 0 | L44: ='immeuble(s) collectif(s)'!AX51 -> 0 | N44: ='immeuble(s) collectif(s)'!AU51 -> 0 | P44: ='immeuble(s) collectif(s)'!AY51 -> 0 | R44: ='immeuble(s) collectif(s)'!AW51 -> 0 | T44: ='immeuble(s) collectif(s)'!DW51 -> 0 | V44: =CONCATENATE('immeuble(s) collectif(s)'!FA51," ",'immeuble(s) collectif(s)'!FE51," ",'immeuble(s) collectif(s)'!FI51," ",'immeuble(s) collectif(s)'!FM51," ",'immeuble(s) collectif(s)'!FQ51) -> 
C45: ='immeuble(s) collectif(s)'!AS52 -> 0 | F45: ='immeuble(s) collectif(s)'!AT52 -> 0 | H45: =IF('immeuble(s) collectif(s)'!AX52="Oui", 'immeuble(s) collectif(s)'!BJ52&"h",'immeuble(s) collectif(s)'!BJ52) -> 0 | J45: ='immeuble(s) collectif(s)'!BK52 -> 0 | L45: ='immeuble(s) collectif(s)'!AX52 -> 0 | N45: ='immeuble(s) collectif(s)'!AU52 -> 0 | P45: ='immeuble(s) collectif(s)'!AY52 -> 0 | R45: ='immeuble(s) collectif(s)'!AW52 -> 0 | T45: ='immeuble(s) collectif(s)'!DW52 -> 0 | V45: =CONCATENATE('immeuble(s) collectif(s)'!FA52," ",'immeuble(s) collectif(s)'!FE52," ",'immeuble(s) collectif(s)'!FI52," ",'immeuble(s) collectif(s)'!FM52," ",'immeuble(s) collectif(s)'!FQ52) -> 
C46: ='immeuble(s) collectif(s)'!AS53 -> 0 | F46: ='immeuble(s) collectif(s)'!AT53 -> 0 | H46: =IF('immeuble(s) collectif(s)'!AX53="Oui", 'immeuble(s) collectif(s)'!BJ53&"h",'immeuble(s) collectif(s)'!BJ53) -> 0 | J46: ='immeuble(s) collectif(s)'!BK53 -> 0 | L46: ='immeuble(s) collectif(s)'!AX53 -> 0 | N46: ='immeuble(s) collectif(s)'!AU53 -> 0 | P46: ='immeuble(s) collectif(s)'!AY53 -> 0 | R46: ='immeuble(s) collectif(s)'!AW53 -> 0 | T46: ='immeuble(s) collectif(s)'!DW53 -> 0 | V46: =CONCATENATE('immeuble(s) collectif(s)'!FA53," ",'immeuble(s) collectif(s)'!FE53," ",'immeuble(s) collectif(s)'!FI53," ",'immeuble(s) collectif(s)'!FM53," ",'immeuble(s) collectif(s)'!FQ53) -> 
C47: ='immeuble(s) collectif(s)'!AS54 -> 0 | F47: ='immeuble(s) collectif(s)'!AT54 -> 0 | H47: =IF('immeuble(s) collectif(s)'!AX54="Oui", 'immeuble(s) collectif(s)'!BJ54&"h",'immeuble(s) collectif(s)'!BJ54) -> 0 | J47: ='immeuble(s) collectif(s)'!BK54 -> 0 | L47: ='immeuble(s) collectif(s)'!AX54 -> 0 | N47: ='immeuble(s) collectif(s)'!AU54 -> 0 | P47: ='immeuble(s) collectif(s)'!AY54 -> 0 | R47: ='immeuble(s) collectif(s)'!AW54 -> 0 | T47: ='immeuble(s) collectif(s)'!DW54 -> 0 | V47: =CONCATENATE('immeuble(s) collectif(s)'!FA54," ",'immeuble(s) collectif(s)'!FE54," ",'immeuble(s) collectif(s)'!FI54," ",'immeuble(s) collectif(s)'!FM54," ",'immeuble(s) collectif(s)'!FQ54) -> 
C48: ='immeuble(s) collectif(s)'!AS55 -> 0 | F48: ='immeuble(s) collectif(s)'!AT55 -> 0 | H48: =IF('immeuble(s) collectif(s)'!AX55="Oui", 'immeuble(s) collectif(s)'!BJ55&"h",'immeuble(s) collectif(s)'!BJ55) -> 0 | J48: ='immeuble(s) collectif(s)'!BK55 -> 0 | L48: ='immeuble(s) collectif(s)'!AX55 -> 0 | N48: ='immeuble(s) collectif(s)'!AU55 -> 0 | P48: ='immeuble(s) collectif(s)'!AY55 -> 0 | R48: ='immeuble(s) collectif(s)'!AW55 -> 0 | T48: ='immeuble(s) collectif(s)'!DW55 -> 0 | V48: =CONCATENATE('immeuble(s) collectif(s)'!FA55," ",'immeuble(s) collectif(s)'!FE55," ",'immeuble(s) collectif(s)'!FI55," ",'immeuble(s) collectif(s)'!FM55," ",'immeuble(s) collectif(s)'!FQ55) -> 
C49: ='immeuble(s) collectif(s)'!AS56 -> 0 | F49: ='immeuble(s) collectif(s)'!AT56 -> 0 | H49: =IF('immeuble(s) collectif(s)'!AX56="Oui", 'immeuble(s) collectif(s)'!BJ56&"h",'immeuble(s) collectif(s)'!BJ56) -> 0 | J49: ='immeuble(s) collectif(s)'!BK56 -> 0 | L49: ='immeuble(s) collectif(s)'!AX56 -> 0 | N49: ='immeuble(s) collectif(s)'!AU56 -> 0 | P49: ='immeuble(s) collectif(s)'!AY56 -> 0 | R49: ='immeuble(s) collectif(s)'!AW56 -> 0 | T49: ='immeuble(s) collectif(s)'!DW56 -> 0 | V49: =CONCATENATE('immeuble(s) collectif(s)'!FA56," ",'immeuble(s) collectif(s)'!FE56," ",'immeuble(s) collectif(s)'!FI56," ",'immeuble(s) collectif(s)'!FM56," ",'immeuble(s) collectif(s)'!FQ56) -> 
C50: ='immeuble(s) collectif(s)'!AS57 -> 0 | F50: ='immeuble(s) collectif(s)'!AT57 -> 0 | H50: =IF('immeuble(s) collectif(s)'!AX57="Oui", 'immeuble(s) collectif(s)'!BJ57&"h",'immeuble(s) collectif(s)'!BJ57) -> 0 | J50: ='immeuble(s) collectif(s)'!BK57 -> 0 | L50: ='immeuble(s) collectif(s)'!AX57 -> 0 | N50: ='immeuble(s) collectif(s)'!AU57 -> 0 | P50: ='immeuble(s) collectif(s)'!AY57 -> 0 | R50: ='immeuble(s) collectif(s)'!AW57 -> 0 | T50: ='immeuble(s) collectif(s)'!DW57 -> 0 | V50: =CONCATENATE('immeuble(s) collectif(s)'!FA57," ",'immeuble(s) collectif(s)'!FE57," ",'immeuble(s) collectif(s)'!FI57," ",'immeuble(s) collectif(s)'!FM57," ",'immeuble(s) collectif(s)'!FQ57) -> 
C51: ='immeuble(s) collectif(s)'!AS58 -> 0 | F51: ='immeuble(s) collectif(s)'!AT58 -> 0 | H51: =IF('immeuble(s) collectif(s)'!AX58="Oui", 'immeuble(s) collectif(s)'!BJ58&"h",'immeuble(s) collectif(s)'!BJ58) -> 0 | J51: ='immeuble(s) collectif(s)'!BK58 -> 0 | L51: ='immeuble(s) collectif(s)'!AX58 -> 0 | N51: ='immeuble(s) collectif(s)'!AU58 -> 0 | P51: ='immeuble(s) collectif(s)'!AY58 -> 0 | R51: ='immeuble(s) collectif(s)'!AW58 -> 0 | T51: ='immeuble(s) collectif(s)'!DW58 -> 0 | V51: =CONCATENATE('immeuble(s) collectif(s)'!FA58," ",'immeuble(s) collectif(s)'!FE58," ",'immeuble(s) collectif(s)'!FI58," ",'immeuble(s) collectif(s)'!FM58," ",'immeuble(s) collectif(s)'!FQ58) -> 
C52: ='immeuble(s) collectif(s)'!AS59 -> 0 | F52: ='immeuble(s) collectif(s)'!AT59 -> 0 | H52: =IF('immeuble(s) collectif(s)'!AX59="Oui", 'immeuble(s) collectif(s)'!BJ59&"h",'immeuble(s) collectif(s)'!BJ59) -> 0 | J52: ='immeuble(s) collectif(s)'!BK59 -> 0 | L52: ='immeuble(s) collectif(s)'!AX59 -> 0 | N52: ='immeuble(s) collectif(s)'!AU59 -> 0 | P52: ='immeuble(s) collectif(s)'!AY59 -> 0 | R52: ='immeuble(s) collectif(s)'!AW59 -> 0 | T52: ='immeuble(s) collectif(s)'!DW59 -> 0 | V52: =CONCATENATE('immeuble(s) collectif(s)'!FA59," ",'immeuble(s) collectif(s)'!FE59," ",'immeuble(s) collectif(s)'!FI59," ",'immeuble(s) collectif(s)'!FM59," ",'immeuble(s) collectif(s)'!FQ59) -> 
C53: ='immeuble(s) collectif(s)'!AS60 -> 0 | F53: ='immeuble(s) collectif(s)'!AT60 -> 0 | H53: =IF('immeuble(s) collectif(s)'!AX60="Oui", 'immeuble(s) collectif(s)'!BJ60&"h",'immeuble(s) collectif(s)'!BJ60) -> 0 | J53: ='immeuble(s) collectif(s)'!BK60 -> 0 | L53: ='immeuble(s) collectif(s)'!AX60 -> 0 | N53: ='immeuble(s) collectif(s)'!AU60 -> 0 | P53: ='immeuble(s) collectif(s)'!AY60 -> 0 | R53: ='immeuble(s) collectif(s)'!AW60 -> 0 | T53: ='immeuble(s) collectif(s)'!DW60 -> 0 | V53: =CONCATENATE('immeuble(s) collectif(s)'!FA60," ",'immeuble(s) collectif(s)'!FE60," ",'immeuble(s) collectif(s)'!FI60," ",'immeuble(s) collectif(s)'!FM60," ",'immeuble(s) collectif(s)'!FQ60) -> 
C54: ='immeuble(s) collectif(s)'!AS61 -> 0 | F54: ='immeuble(s) collectif(s)'!AT61 -> 0 | H54: =IF('immeuble(s) collectif(s)'!AX61="Oui", 'immeuble(s) collectif(s)'!BJ61&"h",'immeuble(s) collectif(s)'!BJ61) -> 0 | J54: ='immeuble(s) collectif(s)'!BK61 -> 0 | L54: ='immeuble(s) collectif(s)'!AX61 -> 0 | N54: ='immeuble(s) collectif(s)'!AU61 -> 0 | P54: ='immeuble(s) collectif(s)'!AY61 -> 0 | R54: ='immeuble(s) collectif(s)'!AW61 -> 0 | T54: ='immeuble(s) collectif(s)'!DW61 -> 0 | V54: =CONCATENATE('immeuble(s) collectif(s)'!FA61," ",'immeuble(s) collectif(s)'!FE61," ",'immeuble(s) collectif(s)'!FI61," ",'immeuble(s) collectif(s)'!FM61," ",'immeuble(s) collectif(s)'!FQ61) -> 
C55: ='immeuble(s) collectif(s)'!AS62 -> 0 | F55: ='immeuble(s) collectif(s)'!AT62 -> 0 | H55: =IF('immeuble(s) collectif(s)'!AX62="Oui", 'immeuble(s) collectif(s)'!BJ62&"h",'immeuble(s) collectif(s)'!BJ62) -> 0 | J55: ='immeuble(s) collectif(s)'!BK62 -> 0 | L55: ='immeuble(s) collectif(s)'!AX62 -> 0 | N55: ='immeuble(s) collectif(s)'!AU62 -> 0 | P55: ='immeuble(s) collectif(s)'!AY62 -> 0 | R55: ='immeuble(s) collectif(s)'!AW62 -> 0 | T55: ='immeuble(s) collectif(s)'!DW62 -> 0 | V55: =CONCATENATE('immeuble(s) collectif(s)'!FA62," ",'immeuble(s) collectif(s)'!FE62," ",'immeuble(s) collectif(s)'!FI62," ",'immeuble(s) collectif(s)'!FM62," ",'immeuble(s) collectif(s)'!FQ62) -> 
A56: 2. | C56: Autres surfaces | F56: 0
C57: =IF('autres surfaces'!B5="","",'autres surfaces'!C5) ->  | F57: =IF('autres surfaces'!B5="immeuble collectif",'autres surfaces'!E5,"") ->  | N57: =IF('autres surfaces'!B5="immeuble collectif",'autres surfaces'!H5,"") ->  | R57: =IF('autres surfaces'!B5="immeuble collectif",'autres surfaces'!G5,"") -> 
C58: =IF('autres surfaces'!B6="","",'autres surfaces'!C6) ->  | F58: =IF('autres surfaces'!B6="immeuble collectif",'autres surfaces'!E6,"") ->  | N58: =IF('autres surfaces'!B6="immeuble collectif",'autres surfaces'!H6,"") ->  | R58: =IF('autres surfaces'!B6="immeuble collectif",'autres surfaces'!G6,"") -> 
C59: =IF('autres surfaces'!B7="","",'autres surfaces'!C7) ->  | F59: =IF('autres surfaces'!B7="immeuble collectif",'autres surfaces'!E7,"") ->  | N59: =IF('autres surfaces'!B7="immeuble collectif",'autres surfaces'!H7,"") ->  | R59: =IF('autres surfaces'!B7="immeuble collectif",'autres surfaces'!G7,"") -> 
C60: =IF('autres surfaces'!B8="","",'autres surfaces'!C8) ->  | F60: =IF('autres surfaces'!B8="immeuble collectif",'autres surfaces'!E8,"") ->  | N60: =IF('autres surfaces'!B8="immeuble collectif",'autres surfaces'!H8,"") ->  | R60: =IF('autres surfaces'!B8="immeuble collectif",'autres surfaces'!G8,"") -> 
C61: =IF('autres surfaces'!B9="","",'autres surfaces'!C9) ->  | F61: =IF('autres surfaces'!B9="immeuble collectif",'autres surfaces'!E9,"") ->  | N61: =IF('autres surfaces'!B9="immeuble collectif",'autres surfaces'!H9,"") ->  | R61: =IF('autres surfaces'!B9="immeuble collectif",'autres surfaces'!G9,"") -> 
C62: =IF('autres surfaces'!B10="","",'autres surfaces'!C10) ->  | F62: =IF('autres surfaces'!B12="immeuble collectif",'autres surfaces'!E12,"") ->  | N62: =IF('autres surfaces'!B12="immeuble collectif",'autres surfaces'!H12,"") ->  | R62: =IF('autres surfaces'!B12="immeuble collectif",'autres surfaces'!G12,"") -> 
C63: =IF('autres surfaces'!B11="","",'autres surfaces'!C11) ->  | F63: =IF('autres surfaces'!B13="immeuble collectif",'autres surfaces'!E13,"") ->  | N63: =IF('autres surfaces'!B13="immeuble collectif",'autres surfaces'!H13,"") ->  | R63: =IF('autres surfaces'!B13="immeuble collectif",'autres surfaces'!G13,"") -> 
C64: =IF('autres surfaces'!B12="","",'autres surfaces'!C12) ->  | F64: =IF('autres surfaces'!B14="immeuble collectif",'autres surfaces'!E14,"") ->  | N64: =IF('autres surfaces'!B14="immeuble collectif",'autres surfaces'!H14,"") ->  | R64: =IF('autres surfaces'!B14="immeuble collectif",'autres surfaces'!G14,"") -> 
C65: =IF('autres surfaces'!B13="","",'autres surfaces'!C13) ->  | F65: =IF('autres surfaces'!B15="immeuble collectif",'autres surfaces'!E15,"") ->  | N65: =IF('autres surfaces'!B15="immeuble collectif",'autres surfaces'!H15,"") ->  | R65: =IF('autres surfaces'!B15="immeuble collectif",'autres surfaces'!G15,"") -> 
C66: =IF('autres surfaces'!B14="","",'autres surfaces'!C14) ->  | F66: =IF('autres surfaces'!B16="immeuble collectif",'autres surfaces'!E16,"") ->  | N66: =IF('autres surfaces'!B16="immeuble collectif",'autres surfaces'!H16,"") ->  | R66: =IF('autres surfaces'!B16="immeuble collectif",'autres surfaces'!G16,"") -> 
C67: =IF('autres surfaces'!B15="","",'autres surfaces'!C15) ->  | F67: =IF('autres surfaces'!B17="immeuble collectif",'autres surfaces'!E17,"") ->  | N67: =IF('autres surfaces'!B17="immeuble collectif",'autres surfaces'!H17,"") ->  | R67: =IF('autres surfaces'!B17="immeuble collectif",'autres surfaces'!G17,"") -> 
C68: =IF('autres surfaces'!B16="","",'autres surfaces'!C16) ->  | F68: =IF('autres surfaces'!B18="immeuble collectif",'autres surfaces'!E18,"") ->  | N68: =IF('autres surfaces'!B18="immeuble collectif",'autres surfaces'!H18,"") ->  | R68: =IF('autres surfaces'!B18="immeuble collectif",'autres surfaces'!G18,"") -> 
C69: =IF('autres surfaces'!B17="","",'autres surfaces'!C17) ->  | F69: =IF('autres surfaces'!B19="immeuble collectif",'autres surfaces'!E19,"") ->  | N69: =IF('autres surfaces'!B19="immeuble collectif",'autres surfaces'!H19,"") ->  | R69: =IF('autres surfaces'!B19="immeuble collectif",'autres surfaces'!G19,"") -> 
C70: =IF('autres surfaces'!B18="","",'autres surfaces'!C18) ->  | F70: =IF('autres surfaces'!B20="immeuble collectif",'autres surfaces'!E20,"") ->  | N70: =IF('autres surfaces'!B20="immeuble collectif",'autres surfaces'!H20,"") ->  | R70: =IF('autres surfaces'!B20="immeuble collectif",'autres surfaces'!G20,"") -> 
C71: =IF('autres surfaces'!B19="","",'autres surfaces'!C19) ->  | F71: =IF('autres surfaces'!B21="immeuble collectif",'autres surfaces'!E21,"") ->  | N71: =IF('autres surfaces'!B21="immeuble collectif",'autres surfaces'!H21,"") ->  | R71: =IF('autres surfaces'!B21="immeuble collectif",'autres surfaces'!G21,"") -> 
C72: =IF('autres surfaces'!B20="","",'autres surfaces'!C20) ->  | F72: =IF('autres surfaces'!B22="immeuble collectif",'autres surfaces'!E22,"") ->  | N72: =IF('autres surfaces'!B22="immeuble collectif",'autres surfaces'!H22,"") ->  | R72: =IF('autres surfaces'!B22="immeuble collectif",'autres surfaces'!G22,"") -> 
C73: =IF('autres surfaces'!B21="","",'autres surfaces'!C21) ->  | F73: =IF('autres surfaces'!B23="immeuble collectif",'autres surfaces'!E23,"") ->  | N73: =IF('autres surfaces'!B23="immeuble collectif",'autres surfaces'!H23,"") ->  | R73: =IF('autres surfaces'!B23="immeuble collectif",'autres surfaces'!G23,"") -> 
C74: =IF('autres surfaces'!B22="","",'autres surfaces'!C22) ->  | F74: =IF('autres surfaces'!B24="immeuble collectif",'autres surfaces'!E24,"") ->  | N74: =IF('autres surfaces'!B24="immeuble collectif",'autres surfaces'!H24,"") ->  | R74: =IF('autres surfaces'!B24="immeuble collectif",'autres surfaces'!G24,"") -> 
C75: =IF('autres surfaces'!B23="","",'autres surfaces'!C23) ->  | F75: =IF('autres surfaces'!B25="immeuble collectif",'autres surfaces'!E25,"") ->  | N75: =IF('autres surfaces'!B25="immeuble collectif",'autres surfaces'!H25,"") ->  | R75: =IF('autres surfaces'!B25="immeuble collectif",'autres surfaces'!G25,"") -> 
C76: =IF('autres surfaces'!B24="","",'autres surfaces'!C24) ->  | F76: =IF('autres surfaces'!B26="immeuble collectif",'autres surfaces'!E26,"") ->  | N76: =IF('autres surfaces'!B26="immeuble collectif",'autres surfaces'!H26,"") ->  | R76: =IF('autres surfaces'!B26="immeuble collectif",'autres surfaces'!G26,"") -> 
C77: =IF('autres surfaces'!B25="","",'autres surfaces'!C25) ->  | F77: =IF('autres surfaces'!B27="immeuble collectif",'autres surfaces'!E27,"") ->  | N77: =IF('autres surfaces'!B27="immeuble collectif",'autres surfaces'!H27,"") ->  | R77: =IF('autres surfaces'!B27="immeuble collectif",'autres surfaces'!G27,"") -> 
C78: =IF('autres surfaces'!B26="","",'autres surfaces'!C26) ->  | F78: =IF('autres surfaces'!B28="immeuble collectif",'autres surfaces'!E28,"") ->  | N78: =IF('autres surfaces'!B28="immeuble collectif",'autres surfaces'!H28,"") ->  | R78: =IF('autres surfaces'!B28="immeuble collectif",'autres surfaces'!G28,"") -> 
C79: =IF('autres surfaces'!B27="","",'autres surfaces'!C27) ->  | F79: =IF('autres surfaces'!B29="immeuble collectif",'autres surfaces'!E29,"") ->  | N79: =IF('autres surfaces'!B29="immeuble collectif",'autres surfaces'!H29,"") ->  | R79: =IF('autres surfaces'!B29="immeuble collectif",'autres surfaces'!G29,"") -> 
C80: =IF('autres surfaces'!B28="","",'autres surfaces'!C28) ->  | F80: =IF('autres surfaces'!B30="immeuble collectif",'autres surfaces'!E30,"") ->  | N80: =IF('autres surfaces'!B30="immeuble collectif",'autres surfaces'!H30,"") ->  | R80: =IF('autres surfaces'!B30="immeuble collectif",'autres surfaces'!G30,"") -> 
C81: =IF('autres surfaces'!B29="","",'autres surfaces'!C29) ->  | F81: =IF('autres surfaces'!B31="immeuble collectif",'autres surfaces'!E31,"") ->  | N81: =IF('autres surfaces'!B31="immeuble collectif",'autres surfaces'!H31,"") ->  | R81: =IF('autres surfaces'!B31="immeuble collectif",'autres surfaces'!G31,"") -> 
C82: =IF('autres surfaces'!B30="","",'autres surfaces'!C30) ->  | F82: =IF('autres surfaces'!B32="immeuble collectif",'autres surfaces'!E32,"") ->  | N82: =IF('autres surfaces'!B32="immeuble collectif",'autres surfaces'!H32,"") ->  | R82: =IF('autres surfaces'!B32="immeuble collectif",'autres surfaces'!G32,"") -> 
C83: =IF('autres surfaces'!B31="","",'autres surfaces'!C31) ->  | F83: =IF('autres surfaces'!B33="immeuble collectif",'autres surfaces'!E33,"") ->  | N83: =IF('autres surfaces'!B33="immeuble collectif",'autres surfaces'!H33,"") ->  | R83: =IF('autres surfaces'!B33="immeuble collectif",'autres surfaces'!G33,"") -> 
C84: =IF('autres surfaces'!B32="","",'autres surfaces'!C32) ->  | F84: =IF('autres surfaces'!B34="immeuble collectif",'autres surfaces'!E34,"") ->  | N84: =IF('autres surfaces'!B34="immeuble collectif",'autres surfaces'!H34,"") ->  | R84: =IF('autres surfaces'!B34="immeuble collectif",'autres surfaces'!G34,"") -> 
C85: =IF('autres surfaces'!B33="","",'autres surfaces'!C33) ->  | F85: =IF('autres surfaces'!B35="immeuble collectif",'autres surfaces'!E35,"") ->  | N85: =IF('autres surfaces'!B35="immeuble collectif",'autres surfaces'!H35,"") ->  | R85: =IF('autres surfaces'!B35="immeuble collectif",'autres surfaces'!G35,"") -> 
C86: =IF('autres surfaces'!B34="","",'autres surfaces'!C34) ->  | F86: =IF('autres surfaces'!B36="immeuble collectif",'autres surfaces'!E36,"") ->  | N86: =IF('autres surfaces'!B36="immeuble collectif",'autres surfaces'!H36,"") ->  | R86: =IF('autres surfaces'!B36="immeuble collectif",'autres surfaces'!G36,"") -> 
C87: =IF('autres surfaces'!B35="","",'autres surfaces'!C35) ->  | F87: =IF('autres surfaces'!B37="immeuble collectif",'autres surfaces'!E37,"") ->  | N87: =IF('autres surfaces'!B37="immeuble collectif",'autres surfaces'!H37,"") ->  | R87: =IF('autres surfaces'!B37="immeuble collectif",'autres surfaces'!G37,"") -> 
C88: =IF('autres surfaces'!B36="","",'autres surfaces'!C36) ->  | F88: =IF('autres surfaces'!B38="immeuble collectif",'autres surfaces'!E38,"") ->  | N88: =IF('autres surfaces'!B38="immeuble collectif",'autres surfaces'!H38,"") ->  | R88: =IF('autres surfaces'!B38="immeuble collectif",'autres surfaces'!G38,"") -> 
C89: =IF('autres surfaces'!B37="","",'autres surfaces'!C37) ->  | F89: =IF('autres surfaces'!B39="immeuble collectif",'autres surfaces'!E39,"") ->  | N89: =IF('autres surfaces'!B39="immeuble collectif",'autres surfaces'!H39,"") ->  | R89: =IF('autres surfaces'!B39="immeuble collectif",'autres surfaces'!G39,"") -> 
C90: =IF('autres surfaces'!B38="","",'autres surfaces'!C38) ->  | F90: =IF('autres surfaces'!B40="immeuble collectif",'autres surfaces'!E40,"") ->  | N90: =IF('autres surfaces'!B40="immeuble collectif",'autres surfaces'!H40,"") ->  | R90: =IF('autres surfaces'!B40="immeuble collectif",'autres surfaces'!G40,"") -> 
C91: =IF('autres surfaces'!B39="","",'autres surfaces'!C39) ->  | F91: =IF('autres surfaces'!B41="immeuble collectif",'autres surfaces'!E41,"") ->  | N91: =IF('autres surfaces'!B41="immeuble collectif",'autres surfaces'!H41,"") ->  | R91: =IF('autres surfaces'!B41="immeuble collectif",'autres surfaces'!G41,"") -> 
C92: =IF('autres surfaces'!B40="","",'autres surfaces'!C40) ->  | F92: =IF('autres surfaces'!B42="immeuble collectif",'autres surfaces'!E42,"") ->  | N92: =IF('autres surfaces'!B42="immeuble collectif",'autres surfaces'!H42,"") ->  | R92: =IF('autres surfaces'!B42="immeuble collectif",'autres surfaces'!G42,"") -> 
C93: =IF('autres surfaces'!B41="","",'autres surfaces'!C41) ->  | F93: =IF('autres surfaces'!B43="immeuble collectif",'autres surfaces'!E43,"") ->  | N93: =IF('autres surfaces'!B43="immeuble collectif",'autres surfaces'!H43,"") ->  | R93: =IF('autres surfaces'!B43="immeuble collectif",'autres surfaces'!G43,"") -> 
C94: =IF('autres surfaces'!B42="","",'autres surfaces'!C42) ->  | F94: =IF('autres surfaces'!B44="immeuble collectif",'autres surfaces'!E44,"") ->  | N94: =IF('autres surfaces'!B44="immeuble collectif",'autres surfaces'!H44,"") ->  | R94: =IF('autres surfaces'!B44="immeuble collectif",'autres surfaces'!G44,"") -> 
C95: =IF('autres surfaces'!B43="","",'autres surfaces'!C43) ->  | F95: =IF('autres surfaces'!B45="immeuble collectif",'autres surfaces'!E45,"") ->  | N95: =IF('autres surfaces'!B45="immeuble collectif",'autres surfaces'!H45,"") ->  | R95: =IF('autres surfaces'!B45="immeuble collectif",'autres surfaces'!G45,"") -> 
C96: =IF('autres surfaces'!B44="","",'autres surfaces'!C44) ->  | F96: =IF('autres surfaces'!B46="immeuble collectif",'autres surfaces'!E46,"") ->  | N96: =IF('autres surfaces'!B46="immeuble collectif",'autres surfaces'!H46,"") ->  | R96: =IF('autres surfaces'!B46="immeuble collectif",'autres surfaces'!G46,"") -> 
C97: =IF('autres surfaces'!B45="","",'autres surfaces'!C45) ->  | F97: =IF('autres surfaces'!B47="immeuble collectif",'autres surfaces'!E47,"") ->  | N97: =IF('autres surfaces'!B47="immeuble collectif",'autres surfaces'!H47,"") ->  | R97: =IF('autres surfaces'!B47="immeuble collectif",'autres surfaces'!G47,"") -> 
C98: =IF('autres surfaces'!B46="","",'autres surfaces'!C46) ->  | F98: =IF('autres surfaces'!B48="immeuble collectif",'autres surfaces'!E48,"") ->  | N98: =IF('autres surfaces'!B48="immeuble collectif",'autres surfaces'!H48,"") ->  | R98: =IF('autres surfaces'!B48="immeuble collectif",'autres surfaces'!G48,"") -> 
C99: =IF('autres surfaces'!B47="","",'autres surfaces'!C47) ->  | F99: =IF('autres surfaces'!B49="immeuble collectif",'autres surfaces'!E49,"") ->  | N99: =IF('autres surfaces'!B49="immeuble collectif",'autres surfaces'!H49,"") ->  | R99: =IF('autres surfaces'!B49="immeuble collectif",'autres surfaces'!G49,"") -> 
C100: =IF('autres surfaces'!B48="","",'autres surfaces'!C48) ->  | F100: =IF('autres surfaces'!B50="immeuble collectif",'autres surfaces'!E50,"") ->  | N100: =IF('autres surfaces'!B50="immeuble collectif",'autres surfaces'!H50,"") ->  | R100: =IF('autres surfaces'!B50="immeuble collectif",'autres surfaces'!G50,"") -> 
C101: =IF('autres surfaces'!B49="","",'autres surfaces'!C49) ->  | F101: =IF('autres surfaces'!B51="immeuble collectif",'autres surfaces'!E51,"") ->  | N101: =IF('autres surfaces'!B51="immeuble collectif",'autres surfaces'!H51,"") ->  | R101: =IF('autres surfaces'!B51="immeuble collectif",'autres surfaces'!G51,"") -> 
C102: =IF('autres surfaces'!B50="","",'autres surfaces'!C50) ->  | F102: =IF('autres surfaces'!B52="immeuble collectif",'autres surfaces'!E52,"") ->  | N102: =IF('autres surfaces'!B52="immeuble collectif",'autres surfaces'!H52,"") ->  | R102: =IF('autres surfaces'!B52="immeuble collectif",'autres surfaces'!G52,"") -> 
C103: =IF('autres surfaces'!B51="","",'autres surfaces'!C51) ->  | F103: =IF('autres surfaces'!B53="immeuble collectif",'autres surfaces'!E53,"") ->  | N103: =IF('autres surfaces'!B53="immeuble collectif",'autres surfaces'!H53,"") ->  | R103: =IF('autres surfaces'!B53="immeuble collectif",'autres surfaces'!G53,"") -> 
C104: =IF('autres surfaces'!B52="","",'autres surfaces'!C52) ->  | F104: =IF('autres surfaces'!B54="immeuble collectif",'autres surfaces'!E54,"") ->  | N104: =IF('autres surfaces'!B54="immeuble collectif",'autres surfaces'!H54,"") ->  | R104: =IF('autres surfaces'!B54="immeuble collectif",'autres surfaces'!G54,"") -> 
C105: =IF('autres surfaces'!B53="","",'autres surfaces'!C53) ->  | F105: =IF('autres surfaces'!B55="immeuble collectif",'autres surfaces'!E55,"") ->  | N105: =IF('autres surfaces'!B55="immeuble collectif",'autres surfaces'!H55,"") ->  | R105: =IF('autres surfaces'!B55="immeuble collectif",'autres surfaces'!G55,"") -> 
C106: =IF('autres surfaces'!B54="","",'autres surfaces'!C54) ->  | F106: =IF('autres surfaces'!B56="immeuble collectif",'autres surfaces'!E56,"") ->  | N106: =IF('autres surfaces'!B56="immeuble collectif",'autres surfaces'!H56,"") ->  | R106: =IF('autres surfaces'!B56="immeuble collectif",'autres surfaces'!G56,"") -> 
C107: =IF('autres surfaces'!B57="immeuble collectif",'autres surfaces'!C57,"") ->  | F107: =IF('autres surfaces'!B57="immeuble collectif",'autres surfaces'!E57,"") ->  | N107: =IF('autres surfaces'!B57="immeuble collectif",'autres surfaces'!H57,"") ->  | R107: =IF('autres surfaces'!B57="immeuble collectif",'autres surfaces'!G57,"") -> 
F115: ='autres surfaces'!E65 -> 0

Sheet data (hidden)
A1: localisation | B1: CPE | C1: cage d'escalier | D1: ascenseur | E1: sdd/sdb | F1: WC | G1: Affirmation | H1: murs mitoyens privatifs | I1: prime house | J1: logement intégré | K1: CPE | L1: stade du projet | M1: SUH nonlog | N1: ratio surfaces immeuble collectif | R1: emplacements privés | S1: pas d'emplacement | T1: car-port double | V1: surfaces | W1: espaces ext | X1: Cat | Y1: caves m2 | AA1: autres surfaces dropdown | AE1: emplacement list | AG1: Piece d'eau
A2: Rez-1 / Rez de jardin | C2: A | D2: pas d'ascenseur | E2: salle d'eau (a) | G2: oui | H2: oui | I2: oui | J2: oui | K2: A | L2: APS | M2: Commerce | N2: SUH/SCB | O2: 0.7 | R2: 1 | S2: 0 | T2: 2 | V2: oui | W2: Oui, >4 m2 | X2: tous publics | Y2: >4 m2 | AA2: =_xlfn.VSTACK(_xlfn._xlws.FILTER('maison(s)'!E10:E150,'maison(s)'!E10:E150 <> " "),_xlfn._xlws.FILTER('immeuble(s) collectif(s)'!E11:E150, 'immeuble(s) collectif(s)'!E11:E150 <> " ")) -> 0 | AB2: =_xlfn.UNIQUE(_xlfn.ANCHORARRAY(AA2)) -> 0 | AE2: emplacement intérieur | AG2: salle d'eau (a)
A3: Rez / Rez de rue | B3: à préciser | C3: B | D3: > 8 unités | E3: salle d'eau (b) | G3: non | H3: non | I3: non | J3: non | K3: B | L3: APD | M3: Bureau | N3: SNA/SCB | O3: 0.4 | R3: 2 | V3: non | W3: Oui, <4m2 | X3: dédié-DPI | Y3: <4 m2 | AA3: 0 | AE3: emplacement extérieur | AG3: salle d'eau (b)
A4: Rez+1 | C4: C | D4: < 8 unités | E4: wc séparé (a) | G4: commentaire | H4: à préciser | I4: à préciser | K4: C | L4: PdB | M4: Emplacement | R4: 3 | W4: Non | X4: dédié-étudiant | AA4: 0 | AE4: carport simple | AG4: wc séparé (a)
A5: Rez +2 | C5: D | D5: commentaire | E5: wc séparé (b) | K5: D | L5: en construction | M5: Salle divers | X5: dédié-accomp.soc. | AA5: 0 | AE5: auvent | AG5: wc séparé (b)
A6: Rez +3 | C6: E | E6: salle d'eau (a) en suite | K6: E | L6: construction terminée | M6: Bureau/Commerce | X6: dédié-jeunes | AA6: 0
A7: Rez +4 | C7: F | E7: salle d'eau (b) en suite | K7: F | L7: Bien existant marché libre | M7: Logement non-subventionné | X7: dédié-pers.agées | AA7: 0
A8: Rez +5 | E8: wc séparé (a) en suite | K8: G | L8: Bien existant art.72 | M8: Autres | X8: dédié-soc.coopérat. | AA8: 0
A9: Rez +6 | E9: wc séparé (b) en suite | K9: H | X9: dédié-salarié | AA9: 0
A10: Rez +7 | K10: I | X10: dédié-réserve | AA10: 0
A11: Rez +8 | AA11: 0
A12: Rez +9 | X12: vente abordable | AA12: 0
A13: Rez +10 | X13: vente à coût moderé | AA13: 0
A14: adapté PMR | B14: taille des pièces de séjour | V14: immeuble collectif | AA14: 0
A15: oui | B15: adaptée | V15: maison | AA15: 0
A16: non | B16: non adaptée | AA16: 0
A17: à vérifier | AA17: 0
AA18: 0
AA19: 0
A20: immeuble collectif | D20: équipements sanitaires | F20: Quote-part du nombre total d’appartements | G20: type | J20: PMR | R20: WG | X20: PMR+WG | AA20: 0
A21: Type | B21: SUH min | C21: SUH max | D21: Column1 | E21: Column2 | G21: Immeuble collectif | P21: typologie | Q21: min | R21: raisonable | S21: max | V21: typologie | W21: min | X21: raisonable | Y21: max | AA21: 0
A22: 0.1 | B22: 30 | C22: 45 | D22: sdd_1 | E22: x | F22: +/- 15% | G22: Bi-familial | I22: 0.1 | J22: =B22*1.1 -> 33 | K22: =C22*1.1 -> 49.5 | N22: 0.1 | P22: 2.2 | Q22: 55 | R22: 59 | S22: 68 | V22: 2.2 | W22: =Q22*1.1 -> 60.5 | X22: =R22*1.1 -> 64.9 | Y22: =S22*1.1 -> 74.8 | AA22: 0
A23: 1.1 | B23: 45 | C23: 50 | D23: sdd_1 | E23: x | I23: 1.1 | J23: =B23*1.1 -> 49.5 | K23: =C23*1.1 -> 55 | N23: 0.2 | P23: 2.3 | Q23: 70 | R23: 76 | S23: 84 | V23: 2.3 | W23: =Q23*1.1 -> 77 | X23: =R23*1.1 -> 83.6 | Y23: =S23*1.1 -> 92.4 | AA23: 0
A24: 1.2 | B24: 50 | C24: 60 | D24: sdd_1,sdb_1 | E24: x | I24: 1.2 | J24: 55 | K24: 66 | P24: 2.4 | Q24: 85 | R24: 92 | S24: 100 | V24: 2.4 | W24: =Q24*1.1 -> 93.5 | X24: 101.2 | Y24: =S24*1.1 -> 110 | AA24: 0
A25: 2.2 | B25: 60 | C25: 70 | D25: sdd_1,sdb_1 | E25: x | F25: +/- 35% | I25: 2.2 | J25: 66 | K25: 77 | N25: 2 | P25: 3.3 | Q25: 74 | R25: 81 | S25: 93 | V25: 3.3 | W25: =Q25*1.1 -> 81.4 | X25: 89.1 | Y25: 102.3 | AA25: 0
A26: 2.3 | B26: 70 | C26: 80 | D26: sdd_1,sdb_1 | E26: wc_1 | I26: 2.3 | J26: 77 | K26: 88 | P26: 3.5 | Q26: 105 | R26: 113 | S26: 126 | V26: 3.5 | W26: =Q26*1.1 -> 115.5 | X26: 124.3 | Y26: 138.6 | AA26: 0
A27: 2.4 | B27: 80 | C27: 90 | D27: sdd_1,sdb_1 | E27: wc_1 | I27: 2.4 | J27: 88 | K27: 99 | P27: 3.6 | Q27: 120 | R27: 130 | S27: 142 | V27: 3.6 | W27: =Q27*1.1 -> 132 | X27: 143 | Y27: 156.2 | AA27: 0
A28: 3.4 | B28: 90 | C28: 100 | D28: sdd_1,sdb_1 | E28: wc_1 | F28: +/- 35% | I28: 3.4 | J28: 99 | K28: 110 | P28: 4.4 | Q28: 94 | R28: 103 | S28: 119 | V28: 4.4 | W28: =Q28*1.1 -> 103.4 | X28: 113.3 | Y28: 130.9 | AA28: 0
A29: 3.5 | B29: 100 | C29: 110 | D29: sdd_1,sdb_1 | E29: wc_2 | I29: 3.5 | J29: 110 | K29: 121 | P29: 4.6 | Q29: 124 | R29: 135 | S29: 152 | V29: 4.6 | W29: 136.4 | X29: 148.5 | Y29: 167.2 | AA29: 0
A30: 3.6 | B30: 110 | C30: 115 | D30: sdd_1,sdb_1 | E30: wc_2 | I30: 3.6 | J30: 121 | K30: 126.5 | P30: 4.8 | Q30: 154 | R30: 167 | S30: 184 | V30: 4.8 | W30: 169.4 | X30: 183.7 | Y30: 202.4 | AA30: 0
A31: 4.5 | B31: 115 | C31: 120 | D31: sdd_2,sdb_2 | E31: wc_2 | F31: +/- 10% | I31: 4.5 | J31: 126.5 | K31: 132 | P31: 5.5 | Q31: 113 | R31: 124 | S31: 145 | V31: 5.5 | W31: 124.3 | X31: 136.4 | Y31: 159.5 | AA31: 0
A32: 4.6 | B32: 120 | C32: 125 | D32: sdd_2,sdb_2 | E32: wc_2 | I32: 4.6 | J32: 132 | K32: 137.5 | P32: 5.7 | Q32: 144 | R32: 157 | S32: 178 | V32: 5.7 | W32: 158.4 | X32: 172.7 | Y32: 195.8 | AA32: 0
A33: 4.7 | B33: 120 | C33: 125 | D33: sdd_2,sdb_2 | E33: wc_2 | F33: < 5% | I33: 4.7 | J33: 132 | K33: 137.5 | P33: 5.9 | Q33: 187 | R33: 202 | S33: 223 | V33: 5.9 | W33: 205.7 | X33: 222.2 | Y33: 245.3 | AA33: 0
A34: 4.8 | B34: 120 | C34: 125 | D34: sdd_2,sdb_2 | E34: wc_2 | I34: 4.8 | J34: 132 | K34: 137.5 | P34: 6.6 | Q34: 133 | R34: 146 | S34: 171 | V34: 6.6 | W34: 146.3 | X34: 160.6 | Y34: 188.1 | AA34: 0
A35: 5.7 | B35: 125 | C35: 130 | D35: sdd_2,sdb_2 | E35: wc_2 | I35: 5.7 | J35: 137.5 | K35: 143 | P35: 6.8 | Q35: 163 | R35: 178 | S35: 204 | V35: 6.8 | W35: 179.3 | X35: 195.8 | Y35: 224.4 | AA35: 0
A36: 5.8 | B36: 130 | C36: 140 | D36: sdd_2,sdb_2 | E36: wc_2 | I36: 5.8 | J36: 143 | K36: 154 | P36: 6.10 | Q36: 206 | R36: 224 | S36: 249 | V36: 6.10 | W36: 226.6 | X36: 246.4 | Y36: 273.9 | AA36: 0
A37: 5.9 | B37: 130 | C37: 140 | D37: sdd_2,sdb_2 | E37: wc_2 | I37: 5.9 | J37: 143 | K37: 154 | P37: 7.7 | Q37: 152 | R37: 167 | S37: 197 | V37: 7.7 | W37: 167.2 | X37: 183.7 | Y37: 216.7 | AA37: 0
A38: 5.10 | B38: 130 | C38: 140 | D38: sdd_2,sdb_2 | E38: wc_2 | I38: 5.10 | J38: 143 | K38: 154 | P38: 7.9 | Q38: 195 | R38: 213 | S38: 243 | V38: 7.9 | W38: 214.5 | X38: 234.3 | Y38: 267.3 | AA38: 0
A39: 6.7 | B39: 140 | C39: 145 | D39: sdd_2,sdb_2 | E39: wc_2 | I39: 6.7 | J39: 154 | K39: 159.5 | P39: 7.11 | Q39: 226 | R39: 245 | S39: 275 | V39: 7.11 | W39: 248.6 | X39: 269.5 | Y39: 302.5 | AA39: 0
A40: 6.8 | B40: 150 | C40: 155 | D40: sdd_2,sdb_2 | E40: wc_2 | I40: 6.8 | J40: 165 | K40: 170.5 | P40: 8.8 | Q40: 172 | R40: 189 | S40: 223 | V40: 8.8 | W40: 189.2 | X40: 207.9 | Y40: 245.3 | AA40: 0
P41: 8.10 | Q41: 215 | R41: 234 | S41: 268 | V41: 8.10 | W41: 236.5 | X41: 257.4 | Y41: 294.8 | AA41: 0
A42: maisons | D42: équipements sanitaires | F42: Quote-part du nombre total des maisons | P42: 8.12 | Q42: 245 | R42: 267 | S42: 301 | V42: 8.12 | W42: 269.5 | X42: 293.7 | Y42: 331.1 | AA42: 0
A43: Type | B43: SUH min | C43: SUH max | D43: Column1 | E43: Column2 | G43: Type de maison | P43: 9.9 | Q43: 204 | R43: 224 | S43: 262 | V43: 9.9 | W43: 224.4 | X43: 246.4 | Y43: 288.2 | AA43: 0
A44: 2.3 | B44: 65 | C44: 90 | D44: sdd_1,sdb_1 | E44: wc_1 | G44: Maison en bande | I44: 2.3 | J44: =Table5[[#This Row],[SUH min]]*1.1 -> 71.5 | K44: =Table5[[#This Row],[SUH max]]*1.1 -> 99 | P44: 9.13 | Q44: 265 | R44: 288 | S44: 327 | V44: 9.13 | W44: 291.5 | X44: 316.8 | Y44: 359.7 | AA44: 0
A45: 2.4 | B45: 90 | C45: 105 | D45: sdd_1,sdb_1 | E45: wc_2 | G45: Maison jumelée | I45: 2.4 | J45: =Table5[[#This Row],[SUH min]]*1.1 -> 99 | K45: =Table5[[#This Row],[SUH max]]*1.1 -> 115.5 | P45: 9.15 | Q45: 295 | R45: 321 | S45: 359 | V45: 9.15 | W45: 324.5 | X45: 353.1 | Y45: 394.9 | AA45: 0
A46: 3.4 | B46: 105 | C46: 125 | D46: sdd_2,sdb_2 | E46: wc_1 | G46: Maison comme logement collectif | I46: 3.4 | J46: =Table5[[#This Row],[SUH min]]*1.1 -> 115.5 | K46: =Table5[[#This Row],[SUH max]]*1.1 -> 137.5 | P46: 10.10 | Q46: 224 | R46: 245 | S46: 288 | V46: 10.10 | W46: 246.4 | X46: 269.5 | Y46: 316.8 | AA46: 0
A47: 3.5 | B47: 125 | C47: 140 | D47: sdd_2,sdb_2 | E47: wc_2 | G47: Maison avec logement intégré | I47: 3.5 | J47: =Table5[[#This Row],[SUH min]]*1.1 -> 137.5 | K47: =Table5[[#This Row],[SUH max]]*1.1 -> 154 | P47: 10.14 | Q47: 284 | R47: 310 | S47: 353 | V47: 10.14 | W47: 312.4 | X47: 341 | Y47: 388.3 | AA47: 0
A48: 3.6 | B48: 125 | C48: 140 | D48: sdd_2,sdb_2 | E48: wc_2 | G48: Logement intégré | I48: 3.6 | J48: =Table5[[#This Row],[SUH min]]*1.1 -> 137.5 | K48: =Table5[[#This Row],[SUH max]]*1.1 -> 154 | P48: 10.18 | Q48: 357 | R48: 388 | S48: 430 | V48: 10.18 | W48: 392.7 | X48: 426.8 | Y48: 473 | AA48: 0
A49: 4.5 | B49: 125 | C49: 140 | D49: sdd_2,sdb_2 | E49: wc_2 | G49: Maison isolée | I49: 4.5 | J49: =Table5[[#This Row],[SUH min]]*1.1 -> 137.5 | K49: =Table5[[#This Row],[SUH max]]*1.1 -> 154 | P49: 15.15 | Q49: 320 | R49: 353 | S49: 417 | V49: 15.15 | W49: 352 | X49: 388.3 | Y49: 458.7 | AA49: 0
A50: 4.6 | B50: 140 | C50: 145 | D50: sdd_2,sdb_2 | E50: wc_2 | I50: 4.6 | J50: =Table5[[#This Row],[SUH min]]*1.1 -> 154 | K50: =Table5[[#This Row],[SUH max]]*1.1 -> 159.5 | P50: 15.20 | Q50: 409 | R50: 447 | S50: 511 | V50: 15.20 | W50: 449.9 | X50: 491.7 | Y50: 562.1 | AA50: 0
A51: 4.7 | B51: 145 | C51: 155 | D51: sdd_2,sdb_2 | E51: wc_2 | I51: 4.7 | J51: =Table5[[#This Row],[SUH min]]*1.1 -> 159.5 | K51: =Table5[[#This Row],[SUH max]]*1.1 -> 170.5 | P51: 15.25 | Q51: 498 | R51: 541 | S51: 605 | V51: 15.25 | W51: 547.8 | X51: 595.1 | Y51: 665.5 | AA51: 0
A52: 4.8 | B52: 145 | C52: 155 | D52: sdd_2,sdb_2 | E52: wc_2 | I52: 4.8 | J52: =Table5[[#This Row],[SUH min]]*1.1 -> 159.5 | K52: =Table5[[#This Row],[SUH max]]*1.1 -> 170.5 | P52: 20.20 | Q52: 431 | R52: 474 | S52: 560 | V52: 20.20 | W52: 474.1 | X52: 521.4 | Y52: 616 | AA52: 0
A53: 5.7 | B53: 145 | C53: 155 | D53: sdd_2,sdb_2 | E53: wc_2 | I53: 5.7 | J53: =Table5[[#This Row],[SUH min]]*1.1 -> 159.5 | K53: =Table5[[#This Row],[SUH max]]*1.1 -> 170.5 | P53: 20.25 | Q53: 519 | R53: 568 | S53: 654 | V53: 20.25 | W53: 570.9 | X53: 624.8 | Y53: 719.4 | AA53: 0
A54: 5.8 | B54: 155 | C54: 160 | D54: sdd_2,sdb_2 | E54: wc_2 | I54: 5.8 | J54: =Table5[[#This Row],[SUH min]]*1.1 -> 170.5 | K54: =Table5[[#This Row],[SUH max]]*1.1 -> 176 | P54: 20.30 | Q54: 595 | R54: 649 | S54: 735 | V54: 20.30 | W54: 654.5 | X54: 713.9 | Y54: 808.5 | AA54: 0
A55: 5.9 | B55: 160 | C55: 165 | D55: sdd_2,sdb_2 | E55: wc_2 | I55: 5.9 | J55: =Table5[[#This Row],[SUH min]]*1.1 -> 176 | K55: =Table5[[#This Row],[SUH max]]*1.1 -> 181.5 | AA55: 0
A56: 5.10 | B56: 160 | C56: 165 | D56: sdd_2,sdb_2 | E56: wc_2 | I56: 5.10 | J56: =Table5[[#This Row],[SUH min]]*1.1 -> 176 | K56: =Table5[[#This Row],[SUH max]]*1.1 -> 181.5 | AA56: 0
A57: 6.7 | B57: 155 | C57: 183 | D57: sdd_2,sdb_2 | E57: wc_2 | I57: 6.7 | J57: =Table5[[#This Row],[SUH min]]*1.1 -> 170.5 | K57: =Table5[[#This Row],[SUH max]]*1.1 -> 201.3 | AA57: 0
A58: 6.8 | B58: 160 | C58: 183 | D58: sdd_2,sdb_2 | E58: wc_2 | I58: 6.8 | J58: =Table5[[#This Row],[SUH min]]*1.1 -> 176 | K58: =Table5[[#This Row],[SUH max]]*1.1 -> 201.3 | AA58: 0
A59: 6.9 | B59: 165 | C59: 183 | D59: sdd_2,sdb_2 | E59: wc_2 | I59: 6.9 | J59: =Table5[[#This Row],[SUH min]]*1.1 -> 181.5 | K59: =Table5[[#This Row],[SUH max]]*1.1 -> 201.3 | AA59: 0
A60: 6.10 | B60: 170 | C60: 183 | D60: sdd_2,sdb_2 | E60: wc_2 | I60: 6.10 | J60: =Table5[[#This Row],[SUH min]]*1.1 -> 187 | K60: =Table5[[#This Row],[SUH max]]*1.1 -> 201.3 | AA60: 0
A61: 6.11 | B61: 175 | C61: 183 | D61: sdd_2,sdb_2 | E61: wc_2 | I61: 6.11 | J61: =Table5[[#This Row],[SUH min]]*1.1 -> 192.5 | K61: =Table5[[#This Row],[SUH max]]*1.1 -> 201.3 | AA61: 0
A62: 6.12 | B62: 175 | C62: 183 | D62: sdd_2,sdb_2 | E62: wc_2 | I62: 6.12 | J62: =Table5[[#This Row],[SUH min]]*1.1 -> 192.5 | K62: =Table5[[#This Row],[SUH max]]*1.1 -> 201.3 | AA62: 0
A63: 7.10 | B63: 183 | C63: 216 | D63: sdd_2,sdb_2 | E63: wc_2 | I63: 7.10 | J63: =Table5[[#This Row],[SUH min]]*1.1 -> 201.3 | K63: =Table5[[#This Row],[SUH max]]*1.1 -> 237.6 | X63: =IFERROR(IF('immeuble(s) collectif(s)'!AX52 = "oui", VALUE(LEFT('immeuble(s) collectif(s)'!BJ52, FIND(".", 'immeuble(s) collectif(s)'!BJ52) - 1)) * 0.2, ""), "") ->  | AA63: 0
A64: 7.11 | B64: 183 | C64: 216 | D64: sdd_2,sdb_2 | E64: wc_2 | I64: 7.11 | J64: =Table5[[#This Row],[SUH min]]*1.1 -> 201.3 | K64: =Table5[[#This Row],[SUH max]]*1.1 -> 237.6 | AA64: 0
A65: 7.12 | B65: 185 | C65: 216 | D65: sdd_2,sdb_2 | E65: wc_2 | I65: 7.12 | J65: =Table5[[#This Row],[SUH min]]*1.1 -> 203.5 | K65: =Table5[[#This Row],[SUH max]]*1.1 -> 237.6 | AA65: 0
A66: 7.13 | B66: 185 | C66: 216 | D66: sdd_2,sdb_2 | E66: wc_2 | I66: 7.13 | J66: =Table5[[#This Row],[SUH min]]*1.1 -> 203.5 | K66: =Table5[[#This Row],[SUH max]]*1.1 -> 237.6 | AA66: 0
A67: 7.14 | B67: 200 | C67: 216 | D67: sdd_2,sdb_2 | E67: wc_2 | I67: 7.14 | J67: =Table5[[#This Row],[SUH min]]*1.1 -> 220 | K67: =Table5[[#This Row],[SUH max]]*1.1 -> 237.6 | X67: =IFERROR(IF('immeuble(s) collectif(s)'!AX56 = "oui", VALUE(LEFT('immeuble(s) collectif(s)'!BJ56, FIND(".", 'immeuble(s) collectif(s)'!BJ56) - 1)) * 0.2, ""), "") ->  | AA67: 0
AA68: 0
A69: Gestionnaire ML | AA69: 0
A70: à sélectionner | AA70: 0
A71: Paulo CARVALHO | AA71: 0
A72: Brian DEL BIANCO | AA72: 0
A73: Alex FLAMMANT | AA73: 0
A74: Catherine JUNIO | AA74: 0
AA75: 0
A76: Dispense ministérielle pour projets exceptionnels de rénovation pour bâtiments protégés au niveau national ou communal | AA76: 0
A77: oui | AA77: 0
A78: non | AA78: 0
AA79: 0
A80: matériaux façades | B80: type de construction | D80: classe énergétique | AA80: 0
A81: crépis | B81: ossature bois | D81: A | AA81: 0
A82: bardage en bois | B82: bois massiv | D82: B | AA82: 0
A83: bardage en PVC | B83: construction massive | D83: C | AA83: 0
A84: parements en pierre naturelle | B84: mixte | D84: D | AA84: 0
A85: bardage en ciment composite | D85: E | AA85: 0
A86: revêtements végétaux | D86: F | AA86: 0
D87: G | AA87: 0
A88: Vente/ location | D88: I | AA88: 0
A89: Location abordable | AA89: 0
A90: Vente abordable | AA90: 0
A91: Vente à coût modéré | AA91: 0
A92: Location - GLS | AA92: 0
A93: Location ss Aides à la pierre | AA93: 0
A94: Vente ss Aides à la pierre | AA94: 0
AA95: 0
AA96: 0
A97: Beaufort | AA97: 0
A98: Bech | AA98: 0
A99: Beckerich | AA99: 0
A100: Berdorf | AA100: 0
A101: Bertrange | AA101: 0
A102: Bettembourg | AA102: 0
A103: Bettendorf | AA103: 0
A104: Betzdorf | AA104: 0
A105: Bissen | AA105: 0
A106: Biwer | AA106: 0
A107: Boulaide | AA107: 0
A108: Bourscheid | AA108: 0
A109: Bous-Waldbredimus | AA109: 0
A110: Clervaux | AA110: 0
A111: Colmar-Berg | AA111: 0
A112: Consdorf | AA112: 0
A113: Contern | AA113: 0
A114: Dalheim | AA114: 0
A115: Diekirch | AA115: 0
A116: Differdange | AA116: 0
A117: Dippach | AA117: 0
A118: Dudelange | AA118: 0
A119: Echternach | AA119: 0
A120: Ell | AA120: 0
A121: Erpeldange-sur-Sûre | AA121: 0
A122: Esch-sur-Alzette | AA122: 0
A123: Esch-sur-Sûre | AA123: 0
A124: Ettelbruck | AA124: 0
A125: Feulen | AA125: 0
A126: Fischbach | AA126: 0
A127: Flaxweiler | AA127: 0
A128: Frisange | AA128: 0
A129: Garnich | AA129: 0
A130: Goesdorf | AA130: 0
A131: Grevenmacher | AA131: 0
A132: Groussbus-Wal | AA132: 0
A133: Habscht | AA133: 0
A134: Heffingen | AA134: 0
A135: Helperknapp | AA135: 0
A136: Hesperange | AA136: 0
A137: Junglinster | AA137: 0
A138: Käerjeng | AA138: 0
A139: Kayl | AA139: 0
A140: Kehlen | AA140: 0
A141: Kiischpelt | AA141: 0
A142: Koerich | AA142: 0
A143: Kopstal | AA143: 0
A144: Lac de la Haute-Sûre | AA144: 0
A145: Larochette | AA145: 0
A146: Lenningen | AA146: 0
A147: Leudelange | AA147: 0
A148: Lintgen | AA148: 0
A149: Lorentzweiler | AA149: 0
A150: Luxembourg | AA150: 0
A151: Mamer | AA151: 0
A152: Manternach | AA152: 0
A153: Mersch | AA153: 0
A154: Mertert | AA154: 0
A155: Mertzig | AA155: 0
A156: Mondercange | AA156: 0
A157: Mondorf-les-Bains | AA157: 0
A158: Niederanven | AA158: 0
A159: Nommern | AA159: 0
A160: Parc Hosingen | AA160: 0
A161: Pétange | AA161: 0
A162: Préizerdaul | AA162: 0
A163: Putscheid | AA163: 0
A164: Rambrouch | AA164: 0
A165: Reckange-sur-Mess | AA165: 0
A166: Redange/Attert | AA166: 0
A167: Reisdorf | AA167: 0
A168: Remich | AA168: 0
A169: Roeser | AA169: 0
A170: Rosport-Mompach | AA170: 0
A171: Rumelange | AA171: 0
A172: Saeul | AA172: 0
A173: Sandweiler | AA173: 0
A174: Sanem | AA174: 0
A175: Schengen | AA175: 0
A176: Schieren | AA176: 0
A177: Schifflange | AA177: 0
A178: Schuttrange | AA178: 0
A179: Stadtbredimus | AA179: 0
A180: Steinfort | AA180: 0
A181: Steinsel | AA181: 0
A182: Strassen | AA182: 0
A183: Tandel | AA183: 0
A184: Troisvierges | AA184: 0
A185: Useldange | AA185: 0
A186: Vallée de l'Ernz | AA186: 0
A187: Vianden | AA187: 0
A188: Vichten | AA188: 0
A189: Waldbillig | AA189: 0
A190: Walferdange | AA190: 0
A191: Weiler-la-Tour | AA191: 0
A192: Weiswampach | AA192: 0
A193: Wiltz | AA193: 0
A194: Wincrange | AA194: 0
A195: Winseler | AA195: 0
A196: Wormeldange | AA196: 0
AA197: 0
AA198: 0
AA199: 0
AA200: 0
... 82 more rows

Sheet ML Gestionnaire Sheet (hidden)
A1: immeuble collectif | D1: maison | H1: immeuble collectif | K1: maison
H2: Row Labels | I2: Count of catégorie | K2: Row Labels | L2: Count of catégorie | N2: 1. Click an een Tableau
H3: (blank) | K3: (blank) | N3: 2. PivotTable Tools (bar utils)
H4: Grand Total | K4: Grand Total | N4: 3. Analyze
N5: 4. Refresh
